Workbook

Sheet Итоговая
A2: Расчёт пропускной способности Центров питания филиала ОАО "МРСК Центра" Липецкэнерго по итогам зимнего замера максимума нагрузки 2013 г.
K3: таблица 1
A4: №п/п | B4: Наименование объекта центра питания, класс напряжения | C4: Текущий дефицит | M4: Примечание | N4: cosφ | P4: №п/п | Q4: Наименование объекта центра питания, класс напряжения | R4: Ожидаемый дефицит /профицит | AB4: Примечание
C5: Установленная мощность трансформаторов Sуст. с указанием их количества, шт/ МВА | E5: Суммарная полная мощность ЦП по результатам замеров максимума нагрузки Sмах , МВА | F5: Полная мощность, перераспределяемая в соответствии с ПТЭ, МВА за время | H5: Полная мощность с учётом перераспределения, МВА | I5: Ограничивающие факторы, МВА | J5: Допустимая нагрузка расчётная в режиме n-1, МВА | K5: Дефицит/профицит ЦП, МВА | R5: Установленная мощность трансформаторов Sуст. с указанием их количества в перспективе при условии выполнения ТУ на ТП или других мероприятий по реконструкции ЦП шт/ МВА | S5: Дополнительная мощность по выданным ТУ на ТП, МВА | T5: Ожидаемая нагрузка ЦП, МВА | U5: Полная перераспределяемая мощность в перспективе с учетом выполнения мероприятий ТУ или других мероприятий по реконструкции сети инвестпрограмм и др. | W5: Полная мощность с учётом перераспределения, МВА | X5: Ограничивающие факторы, МВА | Y5: Допустимая нагрузка расчётная в режиме n-1, МВА | Z5: Дефицит /профицит ЦП, МВА
F6: МВА | G6: Мин. | U6: МВА | V6: Мин.
A7: 1 | B7: 2 | C7: 3 | E7: 4 | F7: 5 | G7: 6 | H7: 7 | I7: 8 | J7: 9 | K7: 10 | L7: 11 | M7: 12 | P7: 1 | Q7: 2 | R7: 3 | S7: 4 | T7: 5 | U7: 6 | V7: 7 | W7: 8 | X7: 9 | Y7: 10 | Z7: 11 | AA7: 12 | AB7: 13
A8: Однотрансформаторные ПС | P8: Однотрансформаторные ПС
A9: 1 | B9: ПС 110/10кВ Лев Толстой | C9: 10 | D9: 10 | E9: 1.87 | F9: 1.87 | G9: 30 | H9: 0 | I9: 0 | J9: 1.87 | K9: 0 | L9: 0 | M9: открыт | N9: 0.972 | P9: 1 | Q9: ПС 110/10кВ Лев Толстой | R9: 10 | S9: 0.241 | T9: 2.111 | U9: 1.87 | V9: 30 | W9: 0.241 | X9: 0 | Y9: 1.87 | Z9: -0.241 | AA9: -0.241 | AB9: закрыт
A10: 2 | B10: ПС 110/10 кВ Двуречки | C10: 6.3 | D10: 6.3 | E10: 1.88 | F10: 0 | G10: 0 | H10: 1.88 | I10: 0 | J10: 0 | K10: -1.88 | L10: -1.88 | M10: закрыт | N10: 0.964 | P10: 2 | Q10: ПС 110/10 кВ Двуречки | R10: 6.3 | S10: 0.901 | T10: 2.781 | U10: 0 | V10: 0 | W10: 2.781 | X10: 0 | Y10: 0 | Z10: -2.781 | AA10: -2.781 | AB10: закрыт
A11: 3 | B11: ПС 35/10 кВ Веселое | C11: 2.5 | D11: 2.5 | E11: 0.16 | F11: 0.1 | G11: 90 | H11: 0.06 | I11: 0 | J11: 0.1 | K11: -0.06 | L11: -0.06 | M11: открыт | N11: 0.872 | P11: 3 | Q11: ПС 35/10 кВ Веселое | R11: 2.5 | S11: 0.01 | T11: 0.17 | U11: 0.1 | V11: 90 | W11: 0.07 | X11: 0 | Y11: 0.1 | Z11: -0.07 | AA11: -0.07 | AB11: открыт
A12: 4 | B12: ПС 35/10 кВ Кр.Пальна | C12: 3.2 | D12: 3.2 | E12: 0.76 | F12: 0.5 | G12: 180 | H12: 0.26 | I12: 0 | J12: 0.5 | K12: -0.26 | L12: -0.26 | M12: закрыт | N12: 0.897 | P12: 4 | Q12: ПС 35/10 кВ Кр.Пальна | R12: 3.2 | S12: 0.549 | T12: 1.309 | U12: 0.5 | V12: 180 | W12: 0.809 | X12: 0 | Y12: 0.5 | Z12: -0.809 | AA12: -0.809 | AB12: закрыт
A13: 5 | B13: ПС 35/10 кВ Каменка | C13: 2.5 | D13: 2.5 | E13: 0.64 | F13: 0 | G13: 0 | H13: 0.64 | I13: 0 | J13: 0 | K13: -0.64 | L13: -0.64 | M13: закрыт | N13: 0.928 | P13: 5 | Q13: ПС 35/10 кВ Каменка | R13: 2.5 | S13: 0.122 | T13: 0.762 | U13: 0 | V13: 0 | W13: 0.762 | X13: 0 | Y13: 0 | Z13: -0.762 | AA13: -0.762 | AB13: закрыт
A14: 6 | B14: ПС 35/10 кВ Красотыновка | C14: 2.5 | D14: 2.5 | E14: 0.81 | F14: 0.4 | G14: 50 | H14: 0.41 | I14: 0 | J14: 0.4 | K14: -0.41 | L14: -0.41 | M14: закрыт | N14: 0.924 | P14: 6 | Q14: ПС 35/10 кВ Красотыновка | R14: 2.5 | S14: 0.54 | T14: 1.35 | U14: 0.4 | V14: 50 | W14: 0.95 | X14: 0 | Y14: 0.4 | Z14: -0.95 | AA14: -0.95 | AB14: закрыт
A15: 7 | B15: ПС 35/10 кВ Озёрки | C15: 2.5 | D15: 2.5 | E15: 0.110028 | F15: 0 | G15: 0 | H15: 0.110028 | I15: 0 | J15: 0 | K15: -0.110028 | L15: -0.110028 | M15: открыт | N15: 0.838 | P15: 7 | Q15: ПС 35/10 кВ Озёрки | R15: 2.5 | T15: 0.110028 | U15: 0 | V15: 0 | W15: 0.110028 | X15: 0 | Y15: 0 | Z15: -0.110028 | AA15: -0.110028 | AB15: открыт
A16: 8 | B16: ПС 35/10 кВ Панкратовка | C16: 2.5 | D16: 2.5 | E16: 0.54 | F16: 0.05 | G16: 90 | H16: 0.49 | I16: 0 | J16: 0.05 | K16: -0.49 | L16: -0.49 | M16: закрыт | N16: 0.863 | P16: 8 | Q16: ПС 35/10 кВ Панкратовка | R16: 2.5 | S16: 0.045 | T16: 0.585 | U16: 0.05 | V16: 90 | W16: 0.535 | X16: 0 | Y16: 0.05 | Z16: -0.535 | AA16: -0.535 | AB16: закрыт
A17: 9 | B17: ПС 35/10 кВ Преображенье | C17: 2.5 | D17: 2.5 | E17: 0.27 | F17: 0.16 | G17: 40 | H17: 0.11 | I17: 0 | J17: 0.16 | K17: -0.11 | L17: -0.11 | M17: открыт | N17: 0.857 | P17: 9 | Q17: ПС 35/10 кВ Преображенье | R17: 2.5 | T17: 0.27 | U17: 0.16 | V17: 40 | W17: 0.11 | X17: 0 | Y17: 0.16 | Z17: -0.11 | AA17: -0.11 | AB17: открыт
A18: 10 | B18: ПС 35/10 кВ Яковлево | C18: 2.5 | D18: 2.5 | E18: 0.84 | F18: 0 | G18: 0 | H18: 0.84 | I18: 0 | J18: 0 | K18: -0.84 | L18: -0.84 | M18: закрыт | N18: 0.931 | P18: 10 | Q18: ПС 35/10 кВ Яковлево | R18: 2.5 | S18: 0.458 | T18: 1.298 | U18: 0 | V18: 0 | W18: 1.298 | X18: 0 | Y18: 0 | Z18: -1.298 | AA18: -1.298 | AB18: закрыт
A19: 11 | B19: ПС 35/10 кВ Первомайская | C19: 2.5 | D19: 2.5 | E19: 0.98 | F19: 0.7 | G19: 60 | H19: 0.28 | I19: 0 | J19: 0.7 | K19: -0.28 | L19: -0.28 | M19: закрыт | N19: 0.898 | P19: 11 | Q19: ПС 35/10 кВ Первомайская | R19: 2.5 | S19: 0.008 | T19: 0.988 | U19: 0.7 | V19: 60 | W19: 0.288 | X19: 0 | Y19: 0.7 | Z19: -0.288 | AA19: -0.288 | AB19: закрыт
A20: 12 | B20: ПС 35/10 кВ Каменная Лубна | C20: 2.5 | D20: 2.5 | E20: 0.61 | F20: 0.61 | G20: 90 | H20: 0 | I20: 0 | J20: 0.61 | K20: 0 | L20: 0 | M20: открыт | N20: 0.943 | P20: 12 | Q20: ПС 35/10 кВ Каменная Лубна | R20: 2.5 | S20: 0.075 | T20: 0.685 | U20: 0.61 | V20: 90 | W20: 0.075 | X20: 0 | Y20: 0.61 | Z20: -0.075 | AA20: -0.075 | AB20: открыт
A21: 13 | B21: ПС 35/10 кВ Знаменка | C21: 2.5 | D21: 2.5 | E21: 0.69 | F21: 0 | G21: 0 | H21: 0.69 | I21: 0 | J21: 0 | K21: -0.69 | L21: -0.69 | M21: закрыт | N21: 0.905 | P21: 13 | Q21: ПС 35/10 кВ Знаменка | R21: 2.5 | T21: 0.69 | U21: 0 | V21: 0 | W21: 0.69 | X21: 0 | Y21: 0 | Z21: -0.69 | AA21: -0.69 | AB21: закрыт
A22: 14 | B22: ПС 35/10 кВ Пиково | C22: 2.5 | D22: 2.5 | E22: 0.61 | F22: 0 | G22: 0 | H22: 0.61 | I22: 0 | J22: 0 | K22: -0.61 | L22: -0.61 | M22: закрыт | N22: 0.88 | P22: 14 | Q22: ПС 35/10 кВ Пиково | R22: 2.5 | S22: 0.05 | T22: 0.66 | U22: 0 | V22: 0 | W22: 0.66 | X22: 0 | Y22: 0 | Z22: -0.66 | AA22: -0.66 | AB22: закрыт
A23: 15 | B23: ПС 35/10 кВ Никольское | C23: 4 | D23: 4 | E23: 0.31 | F23: 0.31 | G23: 120 | H23: 0 | I23: 0 | J23: 0.31 | K23: 0 | L23: 0 | M23: открыт | N23: 0.99 | P23: 15 | Q23: ПС 35/10 кВ Никольское | R23: 4 | S23: 0.023 | T23: 0.333 | U23: 0.31 | V23: 120 | W23: 0.023 | X23: 0 | Y23: 0.31 | Z23: -0.023 | AA23: -0.023 | AB23: открыт
A24: 16 | B24: ПС 35/10 кВ Песковатка | C24: 1.6 | D24: 1.6 | E24: 0.47 | F24: 0.13 | G24: 30 | H24: 0.34 | I24: 0 | J24: 0.13 | K24: -0.34 | L24: -0.34 | M24: закрыт | N24: 0.945 | P24: 16 | Q24: ПС 35/10 кВ Песковатка | R24: 1.6 | T24: 0.47 | U24: 0.13 | V24: 30 | W24: 0.34 | X24: 0 | Y24: 0.13 | Z24: -0.34 | AA24: -0.34 | AB24: закрыт
A25: 17 | B25: ПС 35/6 кВ Дружба | C25: 5.6 | D25: 5.6 | E25: КРУНН-6кВ не наши | P25: 17 | Q25: ПС 35/6 кВ Дружба | R25: 5.6 | T25: 0
A26: 18 | B26: ПС 35/6 кВ Новониколаевка | C26: 4 | D26: 4 | E26: 0.72 | F26: 0 | G26: 0 | H26: 0.72 | I26: 0 | J26: 0 | K26: -0.72 | L26: -0.72 | M26: закрыт | N26: 0.979 | P26: 18 | Q26: ПС 35/6 кВ Новониколаевка | R26: 4 | S26: 0.009 | T26: 0.729 | U26: 0 | V26: 0 | W26: 0.729 | X26: 0 | Y26: 0 | Z26: -0.729 | AA26: -0.729 | AB26: закрыт
A27: 19 | B27: ПС 35/10 кВ Синдякино | C27: 2.5 | D27: 2.5 | E27: 0.22 | F27: 0 | G27: 0 | H27: 0.22 | I27: 0 | J27: 0 | K27: -0.22 | L27: -0.22 | M27: закрыт | N27: 0.897 | P27: 19 | Q27: ПС 35/10 кВ Синдякино | R27: 2.5 | S27: 0.141 | T27: 0.361 | U27: 0 | V27: 0 | W27: 0.361 | X27: 0 | Y27: 0 | Z27: -0.361 | AA27: -0.361 | AB27: закрыт
A28: 20 | B28: ПС 35/10 кВ Курино | C28: 2.5 | D28: 2.5 | E28: 0.59 | F28: 0.09 | G28: 40 | H28: 0.5 | I28: 0 | J28: 0.09 | K28: -0.5 | L28: -0.5 | M28: закрыт | N28: 0.898 | P28: 20 | Q28: ПС 35/10 кВ Курино | R28: 2.5 | S28: 1.429 | T28: 2.019 | U28: 0.09 | V28: 40 | W28: 1.929 | X28: 0 | Y28: 0.09 | Z28: -1.929 | AA28: -1.929 | AB28: закрыт
A29: 21 | B29: ПС 35/10 кВ Новодубовое | C29: 2.5 | D29: 2.5 | E29: 1.46 | F29: 0 | G29: 0 | H29: 1.46 | I29: 0 | J29: 0 | K29: -1.46 | L29: -1.46 | M29: закрыт | N29: 0.762 | P29: 21 | Q29: ПС 35/10 кВ Новодубовое | R29: 2.5 | S29: 0.007 | T29: 1.467 | U29: 0 | V29: 0 | W29: 1.467 | X29: 0 | Y29: 0 | Z29: -1.467 | AA29: -1.467 | AB29: закрыт
A30: 22 | B30: ПС 35/10 кВ Березовка | C30: 2.5 | D30: 2.5 | E30: 0 | F30: 0 | G30: 0 | H30: 0 | I30: 0 | J30: 0 | K30: 0 | L30: 0 | M30: открыт | N30: 0 | P30: 22 | Q30: ПС 35/10 кВ Березовка | R30: 2.5 | T30: 0 | U30: 0 | V30: 0 | W30: 0 | X30: 0 | Y30: 0 | Z30: 0 | AA30: 0 | AB30: открыт
A31: 23 | B31: ПС 35/6 кВ Карьер | C31: 4 | D31: 4 | E31: 0.02 | F31: 0 | G31: 0 | H31: 0.02 | I31: 0 | J31: 0 | K31: -0.02 | L31: -0.02 | M31: открыт | N31: 0.523 | P31: 23 | Q31: ПС 35/6 кВ Карьер | R31: 4 | T31: 0.02 | U31: 0 | V31: 0 | W31: 0.02 | X31: 0 | Y31: 0 | Z31: -0.02 | AA31: -0.02 | AB31: открыт
A32: 24 | B32: ПС 110/10 кВ Ирито | C32: 25 | D32: 25 | E32: 2.4 | F32: 0 | G32: 0 | H32: 2.4 | I32: 0 | J32: 0 | K32: -2.4 | L32: -2.4 | M32: закрыт | N32: 0.95 | P32: 24 | Q32: ПС 110/10 кВ Ирито | R32: 25 | S32: 20 | T32: 22.4 | U32: 0 | V32: 0 | W32: 22.4 | X32: 0 | Y32: 0 | Z32: -22.4 | AA32: -22.4 | AB32: закрыт
A33: Двух- и более трансформаторные ПС (на два уровня напряжения) | P33: Двух- и более трансформаторные ПС (на два уровня напряжения)
A34: 25 | B34: ПС 110/6 кВ Агрегатная | C34: 16+16 | D34: 32 | E34: 13.5 | F34: 0.85 | G34: 30 | H34: 12.65 | I34: 0 | J34: 16.8 | K34: 4.15 | L34: 4.15 | M34: открыт | N34: 0.946 | P34: 25 | Q34: ПС 110/6 кВ Агрегатная | R34: 16+16 | S34: 2.018 | T34: 15.518 | U34: 0.85 | V34: 30 | W34: 14.668 | X34: 0 | Y34: 16.8 | Z34: 2.132 | AA34: 2.132 | AB34: открыт
A35: 26 | B35: ПС 110/6 кВ Западная | C35: 40+40 | D35: 80 | E35: 22.91 | F35: 1.3 | G35: 30 | H35: 21.61 | I35: 0 | J35: 42 | K35: 20.39 | L35: 20.39 | M35: открыт | N35: 0.901 | P35: 26 | Q35: ПС 110/6 кВ Западная | R35: 40+40 | S35: 6.189 | T35: 29.099 | U35: 1.3 | V35: 30 | W35: 27.799 | X35: 0 | Y35: 42 | Z35: 14.201 | AA35: 14.201 | AB35: открыт
A36: 27 | B36: ПС 110/10 кВ Кашары | C36: 2,5+6,3 | D36: 8.8 | E36: 3.06 | F36: 0.45 | G36: 60 | H36: 2.61 | I36: 0 | J36: 2.625 | K36: 0.015 | L36: 0.015 | M36: открыт | N36: 0.976 | P36: 27 | Q36: ПС 110/10 кВ Кашары | R36: 2,5+6,3 | S36: 0.404 | T36: 3.464 | U36: 0.45 | V36: 60 | W36: 3.014 | X36: 0 | Y36: 2.625 | Z36: -0.389 | AA36: -0.389 | AB36: закрыт
A37: 28 | B37: ПС 110/10кВ Тербунский гончар | C37: 25+25 | D37: 50 | E37: 0.4 | F37: 0 | G37: 0 | H37: 0.4 | I37: 0 | J37: 26.25 | K37: 25.85 | L37: 25.85 | M37: открыт | N37: 0.991 | P37: 28 | Q37: ПС 110/10кВ Тербунский гончар | R37: 25+25 | S37: 13.046 | T37: 13.446 | U37: 0 | V37: 0 | W37: 13.446 | X37: 0 | Y37: 26.25 | Z37: 12.804 | AA37: 12.804 | AB37: открыт
A38: 29 | B38: ПС 110/6 кВ Табак | C38: 16+16 | D38: 32 | E38: 7.29 | F38: 1.5 | G38: 20 | H38: 5.79 | I38: 0 | J38: 16.8 | K38: 11.01 | L38: 11.01 | M38: открыт | N38: 0.926 | P38: 29 | Q38: ПС 110/6 кВ Табак | R38: 16+16 | S38: 0.39 | T38: 7.68 | U38: 1.5 | V38: 20 | W38: 6.18 | X38: 0 | Y38: 16.8 | Z38: 10.62 | AA38: 10.62 | AB38: открыт
A39: 30 | B39: ПС 110/10 кВ Лукошкино | C39: 10+2,5 | D39: 12.5 | E39: 0.7 | F39: 0.11 | G39: 60 | H39: 0.59 | I39: 0 | J39: 2.625 | K39: 2.035 | L39: 2.035 | M39: открыт | N39: 0.941 | P39: 30 | Q39: ПС 110/10 кВ Лукошкино | R39: 10+2,5 | S39: 0.072 | T39: 0.772 | U39: 0.11 | V39: 60 | W39: 0.662 | X39: 0 | Y39: 2.625 | Z39: 1.963 | AA39: 1.963 | AB39: открыт
A40: 31 | B40: ПС 110/10кВ Нива | C40: 10+10 | D40: 20 | E40: 7.31 | F40: 3 | G40: 120 | H40: 4.31 | I40: 0 | J40: 10.5 | K40: 6.19 | L40: 6.19 | M40: открыт | N40: 0.923 | P40: 31 | Q40: ПС 110/10кВ Нива | R40: 10+10 | S40: 0.384 | T40: 7.694 | U40: 3 | V40: 120 | W40: 4.694 | X40: 0 | Y40: 10.5 | Z40: 5.806 | AA40: 5.806 | AB40: открыт
A41: 32 | B41: ПС 110/10 кВ Ольховец | C41: 2,5+2,5 | D41: 5 | E41: 1.23 | F41: 0.7 | G41: 90 | H41: 0.53 | I41: 0 | J41: 2.625 | K41: 2.095 | L41: 2.095 | M41: открыт | N41: 0.943 | P41: 32 | Q41: ПС 110/10 кВ Ольховец | R41: 2,5+2,5 | S41: 0.08 | T41: 1.31 | U41: 0.7 | V41: 90 | W41: 0.61 | X41: 0 | Y41: 2.625 | Z41: 2.015 | AA41: 2.015 | AB41: открыт
A42: 33 | B42: ПС 110/10 кВ Куймань | C42: 2,5+2,5 | D42: 5 | E42: 0.8 | F42: 0.8 | G42: 90 | H42: 0 | I42: 0 | J42: 2.625 | K42: 2.625 | L42: 2.625 | M42: открыт | N42: 0.951 | P42: 33 | Q42: ПС 110/10 кВ Куймань | R42: 2,5+2,5 | S42: 1.045 | T42: 1.845 | U42: 0.8 | V42: 90 | W42: 1.045 | X42: 0 | Y42: 2.625 | Z42: 1.58 | AA42: 1.58 | AB42: открыт
A43: 34 | B43: ПС 110/10 кВ Лутошкино | C43: 2,5+2,5 | D43: 5 | E43: 0.21 | F43: 0.21 | G43: 60 | H43: 0 | I43: 0 | J43: 2.625 | K43: 2.625 | L43: 2.625 | M43: открыт | N43: 0.92 | P43: 34 | Q43: ПС 110/10 кВ Лутошкино | R43: 2,5+2,5 | T43: 0.21 | U43: 0.21 | V43: 60 | W43: 0 | X43: 0 | Y43: 2.625 | Z43: 2.625 | AA43: 2.625 | AB43: открыт
A44: 35 | B44: ПС 110/10 кВ Круглое | C44: 2,5+2,5 | D44: 5 | E44: 0.41 | F44: 0.41 | G44: 60 | H44: 0 | I44: 0 | J44: 2.625 | K44: 2.625 | L44: 2.625 | M44: открыт | N44: 0.883 | P44: 35 | Q44: ПС 110/10 кВ Круглое | R44: 2,5+2,5 | T44: 0.41 | U44: 0.41 | V44: 60 | W44: 0 | X44: 0 | Y44: 2.625 | Z44: 2.625 | AA44: 2.625 | AB44: открыт
A45: 36 | B45: ПС 110/10/6 кВ Юго-Западная | C45: 40+40+40 | D45: 120 | E45: 38.7 | F45: 7.12 | G45: 110 | H45: 31.58 | I45: 0 | J45: 84 | K45: 52.42 | L45: 52.42 | M45: открыт | N45: 0.965 | P45: 36 | Q45: ПС 110/10/6 кВ Юго-Западная | R45: 40+40+40 | S45: 23.725 | T45: 62.425 | U45: 7.12 | V45: 110 | W45: 55.305 | X45: 0 | Y45: 84 | Z45: 28.695 | AA45: 28.695 | AB45: открыт
A46: 37 | B46: ПС 110/6 кВ Привокзальная | C46: 20+20+25 | D46: 65 | E46: 41.14 | F46: 1.91 | G46: 60 | H46: 39.23 | I46: 0 | J46: 42 | K46: 2.77 | L46: 2.77 | M46: открыт | N46: 0.954 | P46: 37 | Q46: ПС 110/6 кВ Привокзальная | R46: 20+20+25 | S46: 0.3 | T46: 41.44 | U46: 1.91 | V46: 60 | W46: 39.53 | X46: 0 | Y46: 42 | Z46: 2.47 | AA46: 2.47 | AB46: открыт
A47: 38 | B47: ПС 110/10/6 кВ Южная | C47: 40+40 | D47: 80 | E47: 34.86 | F47: 2.36 | G47: 35 | H47: 32.5 | I47: 0 | J47: 42 | K47: 9.5 | L47: 9.5 | M47: открыт | N47: 0.977 | P47: 38 | Q47: ПС 110/10/6 кВ Южная | R47: 40+40 | S47: 0.96 | T47: 35.82 | U47: 2.36 | V47: 35 | W47: 33.46 | X47: 0 | Y47: 42 | Z47: 8.54 | AA47: 8.54 | AB47: открыт
A48: 39 | B48: ПС 110/6 кВ Ситовка | C48: 10+10 | D48: 20 | E48: 4.18 | F48: 0.98 | G48: 60 | H48: 3.2 | I48: 0 | J48: 10.5 | K48: 7.3 | L48: 7.3 | M48: открыт | N48: 0.85 | P48: 39 | Q48: ПС 110/6 кВ Ситовка | R48: 10+10 | T48: 4.18 | U48: 0.98 | V48: 60 | W48: 3.2 | X48: 0 | Y48: 10.5 | Z48: 7.3 | AA48: 7.3 | AB48: открыт
A49: 40 | B49: ПС 110/6 кВ ЛТП | C49: 6,3+10 | D49: 16.3 | E49: 2.41 | F49: 0 | G49: 0 | H49: 2.41 | I49: 0 | J49: 6.615 | K49: 4.205 | L49: 4.205 | M49: открыт | N49: 0.922 | P49: 40 | Q49: ПС 110/6 кВ ЛТП | R49: 6,3+10 | S49: 0.315 | T49: 2.725 | U49: 0 | V49: 0 | W49: 2.725 | X49: 0 | Y49: 6.615 | Z49: 3.89 | AA49: 3.89 | AB49: открыт
A50: 41 | B50: ПС 110/6 кВ КПД | C50: 10+16 | D50: 26 | E50: 4.84 | F50: 0 | G50: 0 | H50: 4.84 | I50: 0 | J50: 10.5 | K50: 5.66 | L50: 5.66 | M50: открыт | N50: 0.947 | P50: 41 | Q50: ПС 110/6 кВ КПД | R50: 10+16 | S50: 3.571 | T50: 8.411 | U50: 0 | V50: 0 | W50: 8.411 | X50: 0 | Y50: 10.5 | Z50: 2.089 | AA50: 2.089 | AB50: открыт
A51: 42 | B51: ПС 110/10 кВ Октябрьская | C51: 40+40 | D51: 80 | E51: 23.93 | F51: 3.45 | G51: 120 | H51: 20.48 | I51: 0 | J51: 42 | K51: 21.52 | L51: 21.52 | M51: открыт | N51: 0.983 | P51: 42 | Q51: ПС 110/10 кВ Октябрьская | R51: 40+40 | S51: 0.707 | T51: 24.637 | U51: 3.45 | V51: 120 | W51: 21.187 | X51: 0 | Y51: 42 | Z51: 20.813 | AA51: 20.813 | AB51: открыт
A52: 43 | B52: ПС 110/10 кВ Манежная | C52: 40+40 | D52: 80 | E52: 2.07 | F52: 0 | G52: 0 | H52: 2.07 | I52: 0 | J52: 42 | K52: 39.93 | L52: 39.93 | M52: открыт | N52: 0.95 | P52: 43 | Q52: ПС 110/10 кВ Манежная | R52: 40+40 | S52: 35.466 | T52: 37.536 | U52: 0 | V52: 0 | W52: 37.536 | X52: 0 | Y52: 42 | Z52: 4.464 | AA52: 4.464 | AB52: открыт
A53: 44 | B53: ПС 110/10 кВ Университетская | C53: 40+40 | D53: 80 | E53: 1.17 | F53: 0 | G53: 0 | H53: 1.17 | I53: 0 | J53: 42 | K53: 40.83 | L53: 40.83 | M53: открыт | N53: 0.85 | P53: 44 | Q53: ПС 110/10 кВ Университетская | R53: 40+40 | S53: 46.866 | T53: 48.036 | U53: 0 | V53: 0 | W53: 48.036 | X53: 0 | Y53: 42 | Z53: -6.036 | AA53: -6.036 | AB53: закрыт
A54: 45 | B54: ПС 110/6 кВ Тепличная | C54: 15+15 | D54: 30 | E54: 5.77 | F54: 1.69 | G54: 60 | H54: 4.08 | I54: 0 | J54: 15.75 | K54: 11.67 | L54: 11.67 | M54: открыт | N54: 0.939 | P54: 45 | Q54: ПС 110/6 кВ Тепличная | R54: 15+15 | S54: 4.226 | T54: 9.996 | U54: 1.69 | V54: 60 | W54: 8.306 | X54: 0 | Y54: 15.75 | Z54: 7.444 | AA54: 7.444 | AB54: открыт
A55: 46 | B55: ПС 110/6 кВ Трубная-2 | C55: 25+25 | D55: 50 | E55: 4.01 | F55: 0 | G55: 0 | H55: 4.01 | I55: 0 | J55: 26.25 | K55: 22.24 | L55: 22.24 | M55: открыт | N55: 0.939 | P55: 46 | Q55: ПС 110/6 кВ Трубная-2 | R55: 25+25 | S55: 20.64 | T55: 24.65 | U55: 0 | V55: 0 | W55: 24.65 | X55: 0 | Y55: 26.25 | Z55: 1.6 | AA55: 1.6 | AB55: открыт
A56: 47 | B56: ПС 110/6 кВ ГПП-2 ЛТЗ | C56: 63+63 | D56: 126 | E56: 13.56 | F56: 1.2 | G56: 70 | H56: 12.36 | I56: 0 | J56: 66.15 | K56: 53.79 | L56: 53.79 | M56: открыт | N56: 0.939 | P56: 47 | Q56: ПС 110/6 кВ ГПП-2 ЛТЗ | R56: 63+63 | S56: 12.472 | T56: 26.032 | U56: 1.2 | V56: 70 | W56: 24.832 | X56: 0 | Y56: 66.15 | Z56: 41.318 | AA56: 41.318 | AB56: открыт
A57: 48 | B57: ПС 35/10 кВ Авангард | C57: 4+4 | D57: 8 | E57: 1.9 | F57: 0.5 | G57: 60 | H57: 1.4 | I57: 0 | J57: 4.2 | K57: 2.8 | L57: 2.8 | M57: открыт | N57: 0.909 | P57: 48 | Q57: ПС 35/10 кВ Авангард | R57: 4+4 | S57: 0.167 | T57: 2.067 | U57: 0.5 | V57: 60 | W57: 1.567 | X57: 0 | Y57: 4.2 | Z57: 2.633 | AA57: 2.633 | AB57: открыт
A58: 49 | B58: ПС 35/10 кВ Афанасьево | C58: 2,5+2,5 | D58: 5 | E58: 1.67 | F58: 0 | G58: 0 | H58: 1.67 | I58: 0 | J58: 2.625 | K58: 0.955 | L58: 0.955 | M58: открыт | N58: 0.92 | P58: 49 | Q58: ПС 35/10 кВ Афанасьево | R58: 2,5+2,5 | S58: 1.046 | T58: 2.716 | U58: 0 | V58: 0 | W58: 2.716 | X58: 0 | Y58: 2.625 | Z58: -0.091 | AA58: -0.091 | AB58: открыт
A59: 50 | B59: ПС 35/10 кВ Бабарыкино | C59: 2,5+2,5 | D59: 5 | E59: 0.84 | F59: 0.3 | G59: 60 | H59: 0.54 | I59: 0 | J59: 2.625 | K59: 2.085 | L59: 2.085 | M59: открыт | N59: 0.957 | P59: 50 | Q59: ПС 35/10 кВ Бабарыкино | R59: 2,5+2,5 | S59: 0.453 | T59: 1.293 | U59: 0.3 | V59: 60 | W59: 0.993 | X59: 0 | Y59: 2.625 | Z59: 1.632 | AA59: 1.632 | AB59: открыт
A60: 51 | B60: ПС 35/10 кВ Аврора | C60: 2,5+2,5 | D60: 5 | E60: 0.96 | F60: 0.4 | G60: 60 | H60: 0.56 | I60: 0 | J60: 2.625 | K60: 2.065 | L60: 2.065 | M60: открыт | N60: 0.962 | P60: 51 | Q60: ПС 35/10 кВ Аврора | R60: 2,5+2,5 | S60: 0.136 | T60: 1.096 | U60: 0.4 | V60: 60 | W60: 0.696 | X60: 0 | Y60: 2.625 | Z60: 1.929 | AA60: 1.929 | AB60: открыт
A61: 52 | B61: ПС 35/10 кВ Б.Боёвка | C61: 2,5+2,5 | D61: 5 | E61: 0.36 | F61: 0.22 | G61: 180 | H61: 0.14 | I61: 0 | J61: 2.625 | K61: 2.485 | L61: 2.485 | M61: открыт | N61: 0.88 | P61: 52 | Q61: ПС 35/10 кВ Б.Боёвка | R61: 2,5+2,5 | T61: 0.36 | U61: 0.22 | V61: 180 | W61: 0.14 | X61: 0 | Y61: 2.625 | Z61: 2.485 | AA61: 2.485 | AB61: открыт
A62: 53 | B62: ПС 35/10 кВ Борки | C62: 2,5+2,5 | D62: 5 | E62: 1.02 | F62: 0 | G62: 0 | H62: 1.02 | I62: 0 | J62: 2.625 | K62: 1.605 | L62: 1.605 | M62: открыт | N62: 0.928 | P62: 53 | Q62: ПС 35/10 кВ Борки | R62: 2,5+2,5 | T62: 1.02 | U62: 0 | V62: 0 | W62: 1.02 | X62: 0 | Y62: 2.625 | Z62: 1.605 | AA62: 1.605 | AB62: открыт
A63: 54 | B63: ПС 35/6кВ Восточная | C63: 10+16 | D63: 26 | E63: 6.02 | F63: 1.15 | G63: 15 | H63: 4.87 | I63: 0 | J63: 10.5 | K63: 5.63 | L63: 5.63 | M63: открыт | N63: 0.923 | P63: 54 | Q63: ПС 35/6кВ Восточная | R63: 10+16 | S63: 0.762 | T63: 6.782 | U63: 1.15 | V63: 15 | W63: 5.632 | X63: 0 | Y63: 10.5 | Z63: 4.868 | AA63: 4.868 | AB63: открыт
A64: 55 | B64: ПС 35/10 кВ Васильевка | C64: 2,5+2,5 | D64: 5 | E64: 0.64 | F64: 0.1 | G64: 30 | H64: 0.54 | I64: 0 | J64: 2.625 | K64: 2.085 | L64: 2.085 | M64: открыт | N64: 0.799 | P64: 55 | Q64: ПС 35/10 кВ Васильевка | R64: 2,5+2,5 | T64: 0.64 | U64: 0.1 | V64: 30 | W64: 0.54 | X64: 0 | Y64: 2.625 | Z64: 2.085 | AA64: 2.085 | AB64: открыт
A65: 56 | B65: ПС 35/10 кВ Воронец | C65: 4+4 | D65: 8 | E65: 2.24 | F65: 0 | G65: 0 | H65: 2.24 | I65: 0 | J65: 4.2 | K65: 1.96 | L65: 1.96 | M65: открыт | N65: 0.931 | P65: 56 | Q65: ПС 35/10 кВ Воронец | R65: 4+4 | S65: 0.188 | T65: 2.428 | U65: 0 | V65: 0 | W65: 2.428 | X65: 0 | Y65: 4.2 | Z65: 1.772 | AA65: 1.772 | AB65: открыт
A66: 57 | B66: ПС 35/6 кВ Голиково | C66: 1,8+1,6 | D66: 3.4 | E66: 0.89 | F66: 0.8 | G66: 140 | H66: 0.09 | I66: 0 | J66: 1.68 | K66: 1.59 | L66: 1.59 | M66: открыт | N66: 0.838 | P66: 57 | Q66: ПС 35/6 кВ Голиково | R66: 1,8+1,6 | S66: 0.085 | T66: 0.975 | U66: 0.8 | V66: 140 | W66: 0.175 | X66: 0 | Y66: 1.68 | Z66: 1.505 | AA66: 1.505 | AB66: открыт
A67: 58 | B67: ПС 35/10 кВ Гатище | C67: 2,5+2,5 | D67: 5 | E67: 0.38 | F67: 0.1 | G67: 80 | H67: 0.28 | I67: 0 | J67: 2.625 | K67: 2.345 | L67: 2.345 | M67: открыт | N67: 0.874 | P67: 58 | Q67: ПС 35/10 кВ Гатище | R67: 2,5+2,5 | T67: 0.38 | U67: 0.1 | V67: 80 | W67: 0.28 | X67: 0 | Y67: 2.625 | Z67: 2.345 | AA67: 2.345 | AB67: открыт
A68: 59 | B68: ПС 35/10 кВ Гнилуша | C68: 6,3+6,3 | D68: 12.6 | E68: 1.45 | F68: 0.2 | G68: 70 | H68: 1.25 | I68: 0 | J68: 6.615 | K68: 5.365 | L68: 5.365 | M68: открыт | N68: 0.872 | P68: 59 | Q68: ПС 35/10 кВ Гнилуша | R68: 6,3+6,3 | S68: 0.095 | T68: 1.545 | U68: 0.2 | V68: 70 | W68: 1.345 | X68: 0 | Y68: 6.615 | Z68: 5.27 | AA68: 5.27 | AB68: открыт
A69: 60 | B69: ПС 35/10кВ Грызлово | C69: 2,5+2,5 | D69: 5 | E69: 0.89 | F69: 0.3 | G69: 60 | H69: 0.59 | I69: 0 | J69: 2.625 | K69: 2.035 | L69: 2.035 | M69: открыт | N69: 0.88 | P69: 60 | Q69: ПС 35/10кВ Грызлово | R69: 2,5+2,5 | T69: 0.89 | U69: 0.3 | V69: 60 | W69: 0.59 | X69: 0 | Y69: 2.625 | Z69: 2.035 | AA69: 2.035 | AB69: открыт
A70: 61 | B70: ПС 35/10 кВ Жерновное | C70: 2,5+2,5 | D70: 5 | E70: 0.52 | F70: 0.41 | G70: 80 | H70: 0.11 | I70: 0 | J70: 2.625 | K70: 2.515 | L70: 2.515 | M70: открыт | N70: 0.947 | P70: 61 | Q70: ПС 35/10 кВ Жерновное | R70: 2,5+2,5 | S70: 0.369 | T70: 0.889 | U70: 0.41 | V70: 80 | W70: 0.479 | X70: 0 | Y70: 2.625 | Z70: 2.146 | AA70: 2.146 | AB70: открыт
A71: 62 | B71: ПС 35/10 кВ Задонск-сельск. | C71: 3,2+4 | D71: 7.2 | E71: 1.88 | F71: 0 | G71: 0 | H71: 1.88 | I71: 0 | J71: 3.36 | K71: 1.48 | L71: 1.48 | M71: открыт | N71: 0.954 | P71: 62 | Q71: ПС 35/10 кВ Задонск-сельск. | R71: 3,2+4 | S71: 0.276 | T71: 2.156 | U71: 0 | V71: 0 | W71: 2.156 | X71: 0 | Y71: 3.36 | Z71: 1.204 | AA71: 1.204 | AB71: открыт
A72: 63 | B72: ПС 35/10 кВ Захаровка | C72: 2,5+2,5 | D72: 5 | E72: 0.43 | F72: 0.13 | G72: 60 | H72: 0.3 | I72: 0 | J72: 2.625 | K72: 2.325 | L72: 2.325 | M72: открыт | N72: 0.782 | P72: 63 | Q72: ПС 35/10 кВ Захаровка | R72: 2,5+2,5 | S72: 0.015 | T72: 0.445 | U72: 0.13 | V72: 60 | W72: 0.315 | X72: 0 | Y72: 2.625 | Z72: 2.31 | AA72: 2.31 | AB72: открыт
A73: 64 | B73: ПС 35/10 кВ Казаки | C73: 4+4 | D73: 8 | E73: 1.52 | F73: 0 | G73: 0 | H73: 1.52 | I73: 0 | J73: 4.2 | K73: 2.68 | L73: 2.68 | M73: открыт | N73: 0.941 | P73: 64 | Q73: ПС 35/10 кВ Казаки | R73: 4+4 | S73: 0.075 | T73: 1.595 | U73: 0 | V73: 0 | W73: 1.595 | X73: 0 | Y73: 4.2 | Z73: 2.605 | AA73: 2.605 | AB73: открыт
A74: 65 | B74: ПС 35/10 кВ Колесово | C74: 6,3+6,3 | D74: 12.6 | E74: 2.89 | F74: 0.3 | G74: 30 | H74: 2.59 | I74: 0 | J74: 6.615 | K74: 4.025 | L74: 4.025 | M74: открыт | N74: 0.942 | P74: 65 | Q74: ПС 35/10 кВ Колесово | R74: 6,3+6,3 | S74: 0.449 | T74: 3.339 | U74: 0.3 | V74: 30 | W74: 3.039 | X74: 0 | Y74: 6.615 | Z74: 3.576 | AA74: 3.576 | AB74: открыт
A75: 66 | B75: ПС 35/10 кВ Князево | C75: 2,5+2,5 | D75: 5 | E75: 0.31 | F75: 0 | G75: 0 | H75: 0.31 | I75: 0 | J75: 2.625 | K75: 2.315 | L75: 2.315 | M75: открыт | N75: 0.696 | P75: 66 | Q75: ПС 35/10 кВ Князево | R75: 2,5+2,5 | S75: 0.007 | T75: 0.317 | U75: 0 | V75: 0 | W75: 0.317 | X75: 0 | Y75: 2.625 | Z75: 2.308 | AA75: 2.308 | AB75: открыт
A76: 67 | B76: ПС 35/10 кВ Кириллово | C76: 2,5+2,5 | D76: 5 | E76: 0.62 | F76: 0 | G76: 0 | H76: 0.62 | I76: 0 | J76: 2.625 | K76: 2.005 | L76: 2.005 | M76: открыт | N76: 0.882 | P76: 67 | Q76: ПС 35/10 кВ Кириллово | R76: 2,5+2,5 | S76: 0.014 | T76: 0.634 | U76: 0 | V76: 0 | W76: 0.634 | X76: 0 | Y76: 2.625 | Z76: 1.991 | AA76: 1.991 | AB76: открыт
A77: 68 | B77: ПС 35/10 кВ Ксизово | C77: 2,5+2,5 | D77: 5 | E77: 0.2 | F77: 0 | G77: 0 | H77: 0.2 | I77: 0 | J77: 2.625 | K77: 2.425 | L77: 2.425 | M77: открыт | N77: 0.697 | P77: 68 | Q77: ПС 35/10 кВ Ксизово | R77: 2,5+2,5 | S77: 0.05 | T77: 0.25 | U77: 0 | V77: 0 | W77: 0.25 | X77: 0 | Y77: 2.625 | Z77: 2.375 | AA77: 2.375 | AB77: открыт
A78: 69 | B78: ПС 35/10 кВ Ламское | C78: 2,5+2,5 | D78: 5 | E78: 1.6 | F78: 0.24 | G78: 180 | H78: 1.36 | I78: 0 | J78: 2.625 | K78: 1.265 | L78: 1.265 | M78: открыт | N78: 0.902 | P78: 69 | Q78: ПС 35/10 кВ Ламское | R78: 2,5+2,5 | S78: 0.03 | T78: 1.63 | U78: 0.24 | V78: 180 | W78: 1.39 | X78: 0 | Y78: 2.625 | Z78: 1.235 | AA78: 1.235 | AB78: открыт
A79: 70 | B79: ПС 35/10 кВ Казачье | C79: 2,5+2,5 | D79: 5 | E79: 0.35 | F79: 0 | G79: 0 | H79: 0.35 | I79: 0 | J79: 2.625 | K79: 2.275 | L79: 2.275 | M79: открыт | N79: 0.82 | P79: 70 | Q79: ПС 35/10 кВ Казачье | R79: 2,5+2,5 | S79: 0.158 | T79: 0.508 | U79: 0 | V79: 0 | W79: 0.508 | X79: 0 | Y79: 2.625 | Z79: 2.117 | AA79: 2.117 | AB79: открыт
A80: 71 | B80: ПС 35/10 кВ Лебяжье | C80: 2,5+1,6 | D80: 4.1 | E80: 0.27 | F80: 0 | G80: 0 | H80: 0.27 | I80: 0 | J80: 1.68 | K80: 1.41 | L80: 1.41 | M80: открыт | N80: 0.735 | P80: 71 | Q80: ПС 35/10 кВ Лебяжье | R80: 2,5+1,6 | S80: 0.015 | T80: 0.285 | U80: 0 | V80: 0 | W80: 0.285 | X80: 0 | Y80: 1.68 | Z80: 1.395 | AA80: 1.395 | AB80: открыт
A81: 72 | B81: ПС 35/10 кВ Ломовец | C81: 1,6+2,5 | D81: 4.1 | E81: 0.38 | F81: 0 | G81: 0 | H81: 0.38 | I81: 0 | J81: 1.68 | K81: 1.3 | L81: 1.3 | M81: открыт | N81: 0.8 | P81: 72 | Q81: ПС 35/10 кВ Ломовец | R81: 1,6+2,5 | T81: 0.38 | U81: 0 | V81: 0 | W81: 0.38 | X81: 0 | Y81: 1.68 | Z81: 1.3 | AA81: 1.3 | AB81: открыт
A82: 73 | B82: ПС 35/10 кВ Ольшанец | C82: 2,5+4 | D82: 6.5 | E82: 1.17 | F82: 0 | G82: 0 | H82: 1.17 | I82: 0 | J82: 2.625 | K82: 1.455 | L82: 1.455 | M82: открыт | N82: 0.888 | P82: 73 | Q82: ПС 35/10 кВ Ольшанец | R82: 2,5+4 | T82: 1.17 | U82: 0 | V82: 0 | W82: 1.17 | X82: 0 | Y82: 2.625 | Z82: 1.455 | AA82: 1.455 | AB82: открыт
A83: 74 | B83: ПС 35/10 кВ Плоское | C83: 4+4 | D83: 8 | E83: 3.47 | F83: 0.8 | G83: 140 | H83: 2.67 | I83: 0 | J83: 4.2 | K83: 1.53 | L83: 1.53 | M83: открыт | N83: 0.939 | P83: 74 | Q83: ПС 35/10 кВ Плоское | R83: 4+4 | S83: 2.026 | T83: 5.496 | U83: 0.8 | V83: 140 | W83: 4.696 | X83: 0 | Y83: 4.2 | Z83: -0.496 | AA83: -0.496 | AB83: закрыт
A84: 75 | B84: ПС 35/10 кВ Стегаловка | C84: 2,5+3,2 | D84: 5.7 | E84: 0.43 | F84: 0.1 | G84: 80 | H84: 0.33 | I84: 0 | J84: 2.625 | K84: 2.295 | L84: 2.295 | M84: открыт | N84: 0.913 | P84: 75 | Q84: ПС 35/10 кВ Стегаловка | R84: 2,5+3,2 | S84: 0.015 | T84: 0.445 | U84: 0.1 | V84: 80 | W84: 0.345 | X84: 0 | Y84: 2.625 | Z84: 2.28 | AA84: 2.28 | AB84: открыт
A85: 76 | B85: ПС 35/10 кВ Солидарность | C85: 4+4 | D85: 8 | E85: 2.21 | F85: 1.2 | G85: 70 | H85: 1.01 | I85: 0 | J85: 4.2 | K85: 3.19 | L85: 3.19 | M85: открыт | N85: 0.953 | P85: 76 | Q85: ПС 35/10 кВ Солидарность | R85: 4+4 | S85: 1.995 | T85: 4.205 | U85: 1.2 | V85: 70 | W85: 3.005 | X85: 0 | Y85: 4.2 | Z85: 1.195 | AA85: 1.195 | AB85: открыт
A86: 77 | B86: ПС 35/10 кВ Тимирязево | C86: 4+4 | D86: 8 | E86: 1.22 | F86: 0.3 | G86: 60 | H86: 0.92 | I86: 0 | J86: 4.2 | K86: 3.28 | L86: 3.28 | M86: открыт | N86: 0.932 | P86: 77 | Q86: ПС 35/10 кВ Тимирязево | R86: 4+4 | S86: 0.337 | T86: 1.557 | U86: 0.3 | V86: 60 | W86: 1.257 | X86: 0 | Y86: 4.2 | Z86: 2.943 | AA86: 2.943 | AB86: открыт
A87: 78 | B87: ПС 35/10 кВ Талица | C87: 2,5+2,5 | D87: 5 | E87: 1.82 | F87: 0.2 | G87: 110 | H87: 1.62 | I87: 0 | J87: 2.625 | K87: 1.005 | L87: 1.005 | M87: открыт | N87: 0.972 | P87: 78 | Q87: ПС 35/10 кВ Талица | R87: 2,5+2,5 | S87: 0.357 | T87: 2.177 | U87: 0.2 | V87: 110 | W87: 1.977 | X87: 0 | Y87: 2.625 | Z87: 0.648 | AA87: 0.648 | AB87: открыт
A88: 79 | B88: ПС 35/10 кВ II-е Тербуны | C88: 2,5+2,5 | D88: 5 | E88: 1.26 | F88: 0 | G88: 0 | H88: 1.26 | I88: 0 | J88: 2.625 | K88: 1.365 | L88: 1.365 | M88: открыт | N88: 0.907 | P88: 79 | Q88: ПС 35/10 кВ II-е Тербуны | R88: 2,5+2,5 | S88: 0.202 | T88: 1.462 | U88: 0 | V88: 0 | W88: 1.462 | X88: 0 | Y88: 2.625 | Z88: 1.163 | AA88: 1.163 | AB88: открыт
A89: 80 | B89: ПС 35/10 кВ Тихий Дон | C89: 4+4 | D89: 8 | E89: 0.62 | F89: 0.13 | G89: 60 | H89: 0.49 | I89: 0 | J89: 4.2 | K89: 3.71 | L89: 3.71 | M89: открыт | N89: 0.908 | P89: 80 | Q89: ПС 35/10 кВ Тихий Дон | R89: 4+4 | S89: 0.347 | T89: 0.967 | U89: 0.13 | V89: 60 | W89: 0.837 | X89: 0 | Y89: 4.2 | Z89: 3.363 | AA89: 3.363 | AB89: открыт
A90: 81 | B90: ПС 35/10 кВ Хитрово | C90: 6,3+6,3 | D90: 12.6 | E90: 1.06 | F90: 0 | G90: 0 | H90: 1.06 | I90: 0 | J90: 6.615 | K90: 5.555 | L90: 5.555 | M90: открыт | N90: 0.823 | P90: 81 | Q90: ПС 35/10 кВ Хитрово | R90: 6,3+6,3 | S90: 0.055 | T90: 1.115 | U90: 0 | V90: 0 | W90: 1.115 | X90: 0 | Y90: 6.62 | Z90: 5.505 | AA90: 5.505 | AB90: открыт
A91: 82 | B91: ПС 35/10 кВ Чернава | C91: 2,5+2,5 | D91: 5 | E91: 1.63 | F91: 0 | G91: 0 | H91: 1.63 | I91: 0 | J91: 2.625 | K91: 0.995 | L91: 0.995 | M91: открыт | N91: 0.876 | P91: 82 | Q91: ПС 35/10 кВ Чернава | R91: 2,5+2,5 | S91: 0.065 | T91: 1.695 | U91: 0 | V91: 0 | W91: 1.695 | X91: 0 | Y91: 2.625 | Z91: 0.93 | AA91: 0.93 | AB91: открыт
A92: 83 | B92: ПС 35/10 кВ Чернолес | C92: 2,5+2,5 | D92: 5 | E92: 0.32 | F92: 0 | G92: 0 | H92: 0.32 | I92: 0 | J92: 2.625 | K92: 2.305 | L92: 2.305 | M92: открыт | N92: 0.879 | P92: 83 | Q92: ПС 35/10 кВ Чернолес | R92: 2,5+2,5 | S92: 0.007 | T92: 0.327 | U92: 0 | V92: 0 | W92: 0.327 | X92: 0 | Y92: 2.625 | Z92: 2.298 | AA92: 2.298 | AB92: открыт
A93: 84 | B93: ПС 35/6 кВ ПС № 5 | C93: 6,3+3,2 | D93: 9.5 | E93: 1.37 | F93: 0 | G93: 0 | H93: 1.37 | I93: 0 | J93: 3.36 | K93: 1.99 | L93: 1.99 | M93: открыт | N93: 0.884 | P93: 84 | Q93: ПС 35/6 кВ ПС № 5 | R93: 6,3+3,2 | S93: 0.007 | T93: 1.377 | U93: 0 | V93: 0 | W93: 1.377 | X93: 0 | Y93: 3.36 | Z93: 1.983 | AA93: 1.983 | AB93: открыт
A94: 85 | B94: ПС 35/10 кВ Красное | C94: 4+4 | D94: 8 | E94: 2.69 | F94: 1.3 | G94: 150 | H94: 1.39 | I94: 0 | J94: 4.2 | K94: 2.81 | L94: 2.81 | M94: открыт | N94: 0.906 | P94: 85 | Q94: ПС 35/10 кВ Красное | R94: 4+4 | S94: 0.181 | T94: 2.871 | U94: 1.3 | V94: 150 | W94: 1.571 | X94: 0 | Y94: 4.2 | Z94: 2.629 | AA94: 2.629 | AB94: открыт
A95: 86 | B95: ПС 35/10 кВ Теплое | C95: 2,5+2,5 | D95: 5 | E95: 1.34 | F95: 1.34 | G95: 150 | H95: 0 | I95: 0 | J95: 2.625 | K95: 2.625 | L95: 2.625 | M95: открыт | N95: 0.905 | P95: 86 | Q95: ПС 35/10 кВ Теплое | R95: 2,5+2,5 | S95: 0.023 | T95: 1.363 | U95: 1.34 | V95: 150 | W95: 0.023 | X95: 0 | Y95: 2.625 | Z95: 2.602 | AA95: 2.602 | AB95: открыт
A96: 87 | B96: ПС 35/10 кВ Данков-сельская | C96: 6,3+6,3 | D96: 12.6 | E96: 4.91 | F96: 2.1 | G96: 40 | H96: 2.81 | I96: 0 | J96: 6.615 | K96: 3.805 | L96: 3.805 | M96: открыт | N96: 0.917 | P96: 87 | Q96: ПС 35/10 кВ Данков-сельская | R96: 6,3+6,3 | S96: 0.403 | T96: 5.313 | U96: 2.1 | V96: 40 | W96: 3.213 | X96: 0 | Y96: 6.62 | Z96: 3.407 | AA96: 3.407 | AB96: открыт
A97: 88 | B97: ПС 35/10 кВ Колыбельская | C97: 2,5+2,5 | D97: 5 | E97: 1.01 | F97: 0 | G97: 0 | H97: 1.01 | I97: 0 | J97: 2.625 | K97: 1.615 | L97: 1.615 | M97: открыт | N97: 0.94 | P97: 88 | Q97: ПС 35/10 кВ Колыбельская | R97: 2,5+2,5 | S97: 0.124 | T97: 1.134 | U97: 0 | V97: 0 | W97: 1.134 | X97: 0 | Y97: 2.625 | Z97: 1.491 | AA97: 1.491 | AB97: открыт
A98: 89 | B98: ПС 35/10 кВ Топки | C98: 2,5+2,5 | D98: 5 | E98: 0.64 | F98: 0.64 | G98: 120 | H98: 0 | I98: 0 | J98: 2.625 | K98: 2.625 | L98: 2.625 | M98: открыт | N98: 0.837 | P98: 89 | Q98: ПС 35/10 кВ Топки | R98: 2,5+2,5 | S98: 0.025 | T98: 0.665 | U98: 0.64 | V98: 120 | W98: 0.025 | X98: 0 | Y98: 2.625 | Z98: 2.6 | AA98: 2.6 | AB98: открыт
A99: 90 | B99: ПС 35/10 кВ Агроном | C99: 4+6,3 | D99: 10.3 | E99: 1.88 | F99: 1 | G99: 60 | H99: 0.88 | I99: 0 | J99: 4.2 | K99: 3.32 | L99: 3.32 | M99: открыт | N99: 0.903 | P99: 90 | Q99: ПС 35/10 кВ Агроном | R99: 4+6,3 | S99: 0.085 | T99: 1.965 | U99: 1 | V99: 60 | W99: 0.965 | X99: 0 | Y99: 4.2 | Z99: 3.235 | AA99: 3.235 | AB99: открыт
A100: 91 | B100: ПС 35/10 кВ Троекурово-совхозная | C100: 2,5+2,5 | D100: 5 | E100: 1.7 | F100: 1 | G100: 60 | H100: 0.7 | I100: 0 | J100: 2.625 | K100: 1.925 | L100: 1.925 | M100: открыт | N100: 0.969 | P100: 91 | Q100: ПС 35/10 кВ Троекурово-совхозная | R100: 2,5+2,5 | S100: 1.262 | T100: 2.962 | U100: 1 | V100: 60 | W100: 1.962 | X100: 0 | Y100: 2.625 | Z100: 0.663 | AA100: 0.663 | AB100: открыт
A101: 92 | B101: ПС 35/10 кВ Гагарино | C101: 1,8+1,8 | D101: 3.6 | E101: 0.43 | F101: 0.43 | G101: 120 | H101: 0 | I101: 0 | J101: 1.89 | K101: 1.89 | L101: 1.89 | M101: открыт | N101: 0.924 | P101: 92 | Q101: ПС 35/10 кВ Гагарино | R101: 1,8+1,8 | S101: 0.027 | T101: 0.457 | U101: 0.43 | V101: 120 | W101: 0.027 | X101: 0 | Y101: 1.89 | Z101: 1.863 | AA101: 1.863 | AB101: открыт
A102: 93 | B102: ПС 35/10 кВ Раненбург | C102: 1,6+1,6 | D102: 3.2 | E102: 2 | F102: 0.3 | G102: 120 | H102: 1.7 | I102: 0 | J102: 1.68 | K102: -0.02 | L102: -0.02 | M102: открыт | N102: 0.926 | P102: 93 | Q102: ПС 35/10 кВ Раненбург | R102: 1,6+1,6 | S102: 0.387 | T102: 2.387 | U102: 0.3 | V102: 120 | W102: 2.087 | X102: 0 | Y102: 1.68 | Z102: -0.407 | AA102: -0.407 | AB102: закрыт
A103: 94 | B103: ПС 35/10 кВ Сергиевка | C103: 2,5+2,5 | D103: 5 | E103: 0.31 | F103: 0.31 | G103: 60 | H103: 0 | I103: 0 | J103: 2.625 | K103: 2.625 | L103: 2.625 | M103: открыт | N103: 0.832 | P103: 94 | Q103: ПС 35/10 кВ Сергиевка | R103: 2,5+2,5 | S103: 0.146 | T103: 0.456 | U103: 0.31 | V103: 60 | W103: 0.146 | X103: 0 | Y103: 2.625 | Z103: 2.479 | AA103: 2.479 | AB103: открыт
A104: 95 | B104: ПС 35/10 кВ Дрезгалово | C104: 1,6+1,6 | D104: 3.2 | E104: 0.72 | F104: 0.4 | G104: 60 | H104: 0.32 | I104: 0 | J104: 1.68 | K104: 1.36 | L104: 1.36 | M104: открыт | N104: 0.866 | P104: 95 | Q104: ПС 35/10 кВ Дрезгалово | R104: 1,6+1,6 | S104: 0.023 | T104: 0.743 | U104: 0.4 | V104: 60 | W104: 0.343 | X104: 0 | Y104: 1.68 | Z104: 1.337 | AA104: 1.337 | AB104: открыт
A105: 96 | B105: ПС 35/10 кВ Долгое | C105: 2,5+2,5 | D105: 5 | E105: 0.26 | F105: 0 | G105: 0 | H105: 0.26 | I105: 0 | J105: 2.625 | K105: 2.365 | L105: 2.365 | M105: открыт | N105: 0.857 | P105: 96 | Q105: ПС 35/10 кВ Долгое | R105: 2,5+2,5 | S105: 0.014 | T105: 0.274 | U105: 0 | V105: 0 | W105: 0.274 | X105: 0 | Y105: 2.625 | Z105: 2.351 | AA105: 2.351 | AB105: открыт
A106: 97 | B106: ПС 35/10 кВ Воскресеновка | C106: 1,6+1,6 | D106: 3.2 | E106: 0.45 | F106: 0 | G106: 0 | H106: 0.45 | I106: 0 | J106: 1.68 | K106: 1.23 | L106: 1.23 | M106: открыт | N106: 0.92 | P106: 97 | Q106: ПС 35/10 кВ Воскресеновка | R106: 1,6+1,6 | S106: 0.03 | T106: 0.48 | U106: 0 | V106: 0 | W106: 0.48 | X106: 0 | Y106: 1.68 | Z106: 1.2 | AA106: 1.2 | AB106: открыт
A107: 98 | B107: ПС 35/10 кВ Сапрыкино | C107: 1,6+2,5 | D107: 4.1 | E107: 0.53 | F107: 0 | G107: 0 | H107: 0.53 | I107: 0 | J107: 1.68 | K107: 1.15 | L107: 1.15 | M107: открыт | N107: 0.814 | P107: 98 | Q107: ПС 35/10 кВ Сапрыкино | R107: 1,6+2,5 | S107: 0.104 | T107: 0.634 | U107: 0 | V107: 0 | W107: 0.634 | X107: 0 | Y107: 1.68 | Z107: 1.046 | AA107: 1.046 | AB107: открыт
A108: 99 | B108: ПС 35/10 кВ Новополянье | C108: 2,5+2,5 | D108: 5 | E108: 0.48 | F108: 0 | G108: 0 | H108: 0.48 | I108: 0 | J108: 2.625 | K108: 2.145 | L108: 2.145 | M108: открыт | N108: 0.904 | P108: 99 | Q108: ПС 35/10 кВ Новополянье | R108: 2,5+2,5 | S108: 0.015 | T108: 0.495 | U108: 0 | V108: 0 | W108: 0.495 | X108: 0 | Y108: 2.625 | Z108: 2.13 | AA108: 2.13 | AB108: открыт
A109: 100 | B109: ПС 35/10 кВ Ведное | C109: 2,5+2,5 | D109: 5 | E109: 0.85 | F109: 0.3 | G109: 180 | H109: 0.55 | I109: 0 | J109: 2.625 | K109: 2.075 | L109: 2.075 | M109: открыт | N109: 0.895 | P109: 100 | Q109: ПС 35/10 кВ Ведное | R109: 2,5+2,5 | S109: 0.006 | T109: 0.856 | U109: 0.3 | V109: 180 | W109: 0.556 | X109: 0 | Y109: 2.625 | Z109: 2.069 | AA109: 2.069 | AB109: открыт
A110: 101 | B110: ПС 35/10 кВ Бигильдино | C110: 2,5+2,5 | D110: 5 | E110: 0.82 | F110: 0.35 | G110: 60 | H110: 0.47 | I110: 0 | J110: 2.625 | K110: 2.155 | L110: 2.155 | M110: открыт | N110: 0.84 | P110: 101 | Q110: ПС 35/10 кВ Бигильдино | R110: 2,5+2,5 | S110: 0.05 | T110: 0.87 | U110: 0.35 | V110: 60 | W110: 0.52 | X110: 0 | Y110: 2.625 | Z110: 2.105 | AA110: 2.105 | AB110: открыт
A111: 102 | B111: ПС 35/10 кВ Культура | C111: 2,5+2,5 | D111: 5 | E111: 0.94 | F111: 0.94 | G111: 60 | H111: 0 | I111: 0 | J111: 2.625 | K111: 2.625 | L111: 2.625 | M111: открыт | N111: 0.94 | P111: 102 | Q111: ПС 35/10 кВ Культура | R111: 2,5+2,5 | S111: 0.267 | T111: 1.207 | U111: 0.94 | V111: 60 | W111: 0.267 | X111: 0 | Y111: 2.625 | Z111: 2.358 | AA111: 2.358 | AB111: открыт
A112: 103 | B112: ПС 35/10 кВ Борятино | C112: 2,5+2,5 | D112: 5 | E112: 0.43 | F112: 0.43 | G112: 60 | H112: 0 | I112: 0 | J112: 2.625 | K112: 2.625 | L112: 2.625 | M112: открыт | N112: 0.8 | P112: 103 | Q112: ПС 35/10 кВ Борятино | R112: 2,5+2,5 | S112: 0.009 | T112: 0.439 | U112: 0.43 | V112: 60 | W112: 0.009 | X112: 0 | Y112: 2.625 | Z112: 2.616 | AA112: 2.616 | AB112: открыт
A113: 104 | B113: ПС 35/10 кВ Б.Попово | C113: 2,5+2,5 | D113: 5 | E113: 1.46 | F113: 1.46 | G113: 90 | H113: 0 | I113: 0 | J113: 2.625 | K113: 2.625 | L113: 2.625 | M113: открыт | N113: 0.95 | P113: 104 | Q113: ПС 35/10 кВ Б.Попово | R113: 2,5+2,5 | S113: 0.124 | T113: 1.584 | U113: 1.46 | V113: 90 | W113: 0.124 | X113: 0 | Y113: 2.625 | Z113: 2.501 | AA113: 2.501 | AB113: открыт
A114: 105 | B114: ПС 35/10 кВ Б. Избищи | C114: 2,5+2,5 | D114: 5 | E114: 1.38 | F114: 1 | G114: 60 | H114: 0.38 | I114: 0 | J114: 2.625 | K114: 2.245 | L114: 2.245 | M114: открыт | N114: 0.953 | P114: 105 | Q114: ПС 35/10 кВ Б. Избищи | R114: 2,5+2,5 | T114: 1.38 | U114: 1 | V114: 60 | W114: 0.38 | X114: 0 | Y114: 2.625 | Z114: 2.245 | AA114: 2.245 | AB114: открыт
A115: 106 | B115: ПС 35/10 кВ Полибино | C115: 2,5+2,5 | D115: 5 | E115: 0.29 | F115: 0 | G115: 0 | H115: 0.29 | I115: 0 | J115: 2.625 | K115: 2.335 | L115: 2.335 | M115: открыт | N115: 0.84 | P115: 106 | Q115: ПС 35/10 кВ Полибино | R115: 2,5+2,5 | S115: 0.055 | T115: 0.345 | U115: 0 | V115: 0 | W115: 0.345 | X115: 0 | Y115: 2.625 | Z115: 2.28 | AA115: 2.28 | AB115: открыт
A116: 107 | B116: ПС 35/10 кВ Дубрава | C116: 2,5+2,5 | D116: 5 | E116: 0.21 | F116: 0 | G116: 0 | H116: 0.21 | I116: 0 | J116: 2.625 | K116: 2.415 | L116: 2.415 | M116: открыт | N116: 0.894 | P116: 107 | Q116: ПС 35/10 кВ Дубрава | R116: 2,5+2,5 | S116: 0.045 | T116: 0.255 | U116: 0 | V116: 0 | W116: 0.255 | X116: 0 | Y116: 2.625 | Z116: 2.37 | AA116: 2.37 | AB116: открыт
A117: 108 | B117: ПС 35/10 кВ Хрущево | C117: 2,5+2,5 | D117: 5 | E117: 0.49 | F117: 0 | G117: 0 | H117: 0.49 | I117: 0 | J117: 2.625 | K117: 2.135 | L117: 2.135 | M117: открыт | N117: 0.886 | P117: 108 | Q117: ПС 35/10 кВ Хрущево | R117: 2,5+2,5 | S117: 0.014 | T117: 0.504 | U117: 0 | V117: 0 | W117: 0.504 | X117: 0 | Y117: 2.625 | Z117: 2.121 | AA117: 2.121 | AB117: открыт
A118: 109 | B118: ПС 35/10 кВ Б. Верх | C118: 2,5+2,5 | D118: 5 | E118: 0.5 | F118: 0 | G118: 0 | H118: 0.5 | I118: 0 | J118: 2.625 | K118: 2.125 | L118: 2.125 | M118: открыт | N118: 0.97 | P118: 109 | Q118: ПС 35/10 кВ Б. Верх | R118: 2,5+2,5 | S118: 0.022 | T118: 0.522 | U118: 0 | V118: 0 | W118: 0.522 | X118: 0 | Y118: 2.625 | Z118: 2.103 | AA118: 2.103 | AB118: открыт
A119: 110 | B119: ПС 35/10 кВ Головинщино | C119: 2,5+2,5 | D119: 5 | E119: 0.8 | F119: 0 | G119: 0 | H119: 0.8 | I119: 0 | J119: 2.625 | K119: 1.825 | L119: 1.825 | M119: открыт | N119: 0.93 | P119: 110 | Q119: ПС 35/10 кВ Головинщино | R119: 2,5+2,5 | S119: 0.025 | T119: 0.825 | U119: 0 | V119: 0 | W119: 0.825 | X119: 0 | Y119: 2.625 | Z119: 1.8 | AA119: 1.8 | AB119: открыт
A120: 111 | B120: ПС 35/10 кВ Яблонево | C120: 2,5+2,5 | D120: 5 | E120: 0.84 | F120: 0 | G120: 0 | H120: 0.84 | I120: 0 | J120: 2.625 | K120: 1.785 | L120: 1.785 | M120: открыт | N120: 0.828 | P120: 111 | Q120: ПС 35/10 кВ Яблоневое | R120: 2,5+2,5 | S120: 0.664 | T120: 1.504 | U120: 0 | V120: 0 | W120: 1.504 | X120: 0 | Y120: 2.625 | Z120: 1.121 | AA120: 1.121 | AB120: открыт
A121: 112 | B121: ПС 35/10 кВ Политово | C121: 2,5+2,5 | D121: 5 | E121: 0.87 | F121: 0 | G121: 0 | H121: 0.87 | I121: 0 | J121: 2.625 | K121: 1.755 | L121: 1.755 | M121: открыт | N121: 0.852 | P121: 112 | Q121: ПС 35/10 кВ Политово | R121: 2,5+2,5 | T121: 0.87 | U121: 0 | V121: 0 | W121: 0.87 | X121: 0 | Y121: 2.625 | Z121: 1.755 | AA121: 1.755 | AB121: открыт
A122: 113 | B122: ПС 35/10 кВ Комплекс | C122: 4+4 | D122: 8 | E122: 0.96 | F122: 0.96 | G122: 120 | H122: 0 | I122: 0 | J122: 4.2 | K122: 4.2 | L122: 4.2 | M122: открыт | N122: 0.898 | P122: 113 | Q122: ПС 35/10 кВ Комплекс | R122: 4+4 | T122: 0.96 | U122: 0.96 | V122: 120 | W122: 0 | X122: 0 | Y122: 4.2 | Z122: 4.2 | AA122: 4.2 | AB122: открыт
A123: 114 | B123: ПС 35/10 кВ № 1 | C123: 4+4 | D123: 8 | E123: 4.21 | F123: 0 | G123: 0 | H123: 4.21 | I123: 0 | J123: 4.2 | K123: -0.01 | L123: -0.01 | M123: открыт | N123: 0.981 | P123: 114 | Q123: ПС 35/10 кВ № 1 | R123: 4+4 | S123: 1.221 | T123: 5.431 | U123: 0 | V123: 0 | W123: 5.431 | X123: 0 | Y123: 4.2 | Z123: -1.231 | AA123: -1.231 | AB123: закрыт
A124: 115 | B124: ПС 35/6 кВ № 2 | C124: 2,5+1 | D124: 3.5 | E124: 1.82 | F124: 0 | G124: 0 | H124: 1.82 | I124: 0 | J124: 1.05 | K124: -0.77 | L124: -0.77 | M124: закрыт | N124: 0.95 | P124: 115 | Q124: ПС 35/6 кВ № 2 | R124: 2,5+1 | S124: 0.06 | T124: 1.88 | U124: 0 | V124: 0 | W124: 1.88 | X124: 0 | Y124: 1.05 | Z124: -0.83 | AA124: -0.83 | AB124: закрыт
A125: 116 | B125: ПС 35/10 кВ № 3 | C125: 2,5+2,5 | D125: 5 | E125: 2.67 | F125: 0.77 | G125: 75 | H125: 1.9 | I125: 0 | J125: 2.625 | K125: 0.725 | L125: 0.725 | M125: открыт | N125: 0.962 | P125: 116 | Q125: ПС 35/10 кВ № 3 | R125: 2,5+2,5 | S125: 2.022 | T125: 4.692 | U125: 0.77 | V125: 75 | W125: 3.922 | X125: 0 | Y125: 2.625 | Z125: -1.297 | AA125: -1.297 | AB125: закрыт
A126: 117 | B126: ПС 35/6 кВ № 4 | C126: 4+4 | D126: 8 | E126: 4.21 | F126: 1.46 | G126: 70 | H126: 2.75 | I126: 0 | J126: 4.2 | K126: 1.45 | L126: 1.45 | M126: открыт | N126: 0.932 | P126: 117 | Q126: ПС 35/6 кВ № 4 | R126: 4+4 | S126: 0.217 | T126: 4.427 | U126: 1.46 | V126: 70 | W126: 2.967 | X126: 0 | Y126: 4.2 | Z126: 1.233 | AA126: 1.233 | AB126: открыт
A127: 118 | B127: ПС 35/6 кВ Грязи-город | C127: 6,3+5,6 | D127: 11.9 | E127: 3.69 | F127: 1.5 | G127: 50 | H127: 2.19 | I127: 0 | J127: 5.88 | K127: 3.69 | L127: 3.69 | M127: открыт | N127: 0.956 | P127: 118 | Q127: ПС 35/6 кВ Грязи-город | R127: 6,3+5,6 | S127: 0.416 | T127: 4.106 | U127: 1.5 | V127: 50 | W127: 2.606 | X127: 0 | Y127: 5.88 | Z127: 3.274 | AA127: 3.274 | AB127: открыт
A128: 119 | B128: ПС 35/10 кВ Бутырки | C128: 5,6+6,3 | D128: 11.9 | E128: 5.94 | F128: 0.75 | G128: 40 | H128: 5.19 | I128: 0 | J128: 5.88 | K128: 0.69 | L128: 0.69 | M128: открыт | N128: 0.955 | P128: 119 | Q128: ПС 35/10 кВ Бутырки | R128: 5,6+6,3 | S128: 6.032 | T128: 11.972 | U128: 0.75 | V128: 40 | W128: 11.222 | X128: 0 | Y128: 5.88 | Z128: -5.342 | AA128: -5.342 | AB128: закрыт
A129: 120 | B129: ПС 35/10 кВ Ярлуково | C129: 3,2+4 | D129: 7.2 | E129: 3.48 | F129: 0.36 | G129: 60 | H129: 3.12 | I129: 0 | J129: 3.36 | K129: 0.24 | L129: 0.24 | M129: открыт | N129: 0.96 | P129: 120 | Q129: ПС 35/10 кВ Ярлуково | R129: 3,2+4 | S129: 0.823 | T129: 4.303 | U129: 0.36 | V129: 60 | W129: 3.943 | X129: 0 | Y129: 3.36 | Z129: -0.583 | AA129: -0.583 | AB129: закрыт
A130: 121 | B130: ПС 35/10 кВ Княжья Байгора | C130: 1,6+1,6 | D130: 3.2 | E130: 0.44 | F130: 0.07 | G130: 40 | H130: 0.37 | I130: 0 | J130: 1.68 | K130: 1.31 | L130: 1.31 | M130: открыт | N130: 0.908 | P130: 121 | Q130: ПС 35/10 кВ Княжья Байгора | R130: 1,6+1,6 | S130: 0.079 | T130: 0.519 | U130: 0.07 | V130: 40 | W130: 0.449 | X130: 0 | Y130: 1.68 | Z130: 1.231 | AA130: 1.231 | AB130: открыт
A131: 122 | B131: ПС 35/10 кВ Правда | C131: 4+2,5 | D131: 6.5 | E131: 1.12 | F131: 0 | G131: 0 | H131: 1.12 | I131: 0 | J131: 2.625 | K131: 1.505 | L131: 1.505 | M131: открыт | N131: 0.925 | P131: 122 | Q131: ПС 35/10 кВ Правда | R131: 4+2,5 | S131: 0.032 | T131: 1.152 | U131: 0 | V131: 0 | W131: 1.152 | X131: 0 | Y131: 2.625 | Z131: 1.473 | AA131: 1.473 | AB131: открыт
A132: 123 | B132: ПС 35/10 кВ Красная Дубрава | C132: 2,5+2,5 | D132: 5 | E132: 0.56 | F132: 0.23 | G132: 130 | H132: 0.33 | I132: 0 | J132: 2.625 | K132: 2.295 | L132: 2.295 | M132: открыт | N132: 0.966 | P132: 123 | Q132: ПС 35/10 кВ Красная Дубрава | R132: 2,5+2,5 | S132: 0.039 | T132: 0.599 | U132: 0.23 | V132: 130 | W132: 0.369 | X132: 0 | Y132: 2.625 | Z132: 2.256 | AA132: 2.256 | AB132: открыт
A133: 124 | B133: ПС 35/10 кВ Матыра | C133: 4+3,2 | D133: 7.2 | E133: 3.46 | F133: 0 | G133: 0 | H133: 3.46 | I133: 0 | J133: 3.36 | K133: -0.1 | L133: -0.1 | M133: закрыт | N133: 0.957 | P133: 124 | Q133: ПС 35/10 кВ Матыра | R133: 4+3,2 | S133: 0.08 | T133: 3.54 | U133: 0 | V133: 0 | W133: 3.54 | X133: 0 | Y133: 3.36 | Z133: -0.18 | AA133: -0.18 | AB133: закрыт
A134: 125 | B134: ПС 35/10 кВ Вперед | C134: 4+4 | D134: 8 | E134: 0.84 | F134: 0 | G134: 0 | H134: 0.84 | I134: 0 | J134: 4.2 | K134: 3.36 | L134: 3.36 | M134: открыт | N134: 0.95 | P134: 125 | Q134: ПС 35/10 кВ Вперед | R134: 4+4 | S134: 0.062 | T134: 0.902 | U134: 0 | V134: 0 | W134: 0.902 | X134: 0 | Y134: 4.2 | Z134: 3.298 | AA134: 3.298 | AB134: открыт
A135: 126 | B135: ПС 35/10 кВ Малей | C135: 4+2,5 | D135: 6.5 | E135: 0.68 | F135: 0.2 | G135: 60 | H135: 0.48 | I135: 0 | J135: 2.625 | K135: 2.145 | L135: 2.145 | M135: открыт | N135: 0.857 | P135: 126 | Q135: ПС 35/10 кВ Малей | R135: 4+2,5 | S135: 0.632 | T135: 1.312 | U135: 0.2 | V135: 60 | W135: 1.112 | X135: 0 | Y135: 2.625 | Z135: 1.513 | AA135: 1.513 | AB135: открыт
A136: 127 | B136: ПС 35/10 кВ СХТ | C136: 2,5+1,6 | D136: 4.1 | E136: 1.93 | F136: 0.64 | G136: 30 | H136: 1.29 | I136: 0 | J136: 1.68 | K136: 0.39 | L136: 0.39 | M136: открыт | N136: 0.94 | P136: 127 | Q136: ПС 35/10 кВ СХТ | R136: 2,5+1,6 | S136: 1.076 | T136: 3.006 | U136: 0.64 | V136: 30 | W136: 2.366 | X136: 0 | Y136: 1.68 | Z136: -0.686 | AA136: -0.686 | AB136: закрыт
A137: 128 | B137: ПС 35/10 кВ Сошки | C137: 4+4 | D137: 8 | E137: 0.67 | F137: 0.47 | G137: 60 | H137: 0.2 | I137: 0 | J137: 4.2 | K137: 4 | L137: 4 | M137: открыт | N137: 0.954 | P137: 128 | Q137: ПС 35/10 кВ Сошки | R137: 4+4 | S137: 0.091 | T137: 0.761 | U137: 0.47 | V137: 60 | W137: 0.291 | X137: 0 | Y137: 4.2 | Z137: 3.909 | AA137: 3.909 | AB137: открыт
A138: 129 | B138: ПС 35/6 кВ Таволжанка | C138: 4+4 | D138: 8 | E138: 5.23 | F138: 0.5 | G138: 40 | H138: 4.73 | I138: 0 | J138: 4.2 | K138: -0.53 | L138: -0.53 | M138: закрыт | N138: 0.967 | P138: 129 | Q138: ПС 35/6 кВ Таволжанка | R138: 4+4 | S138: 1.045 | T138: 6.275 | U138: 0.5 | V138: 40 | W138: 5.775 | X138: 0 | Y138: 4.2 | Z138: -1.575 | AA138: -1.575 | AB138: закрыт
A139: 130 | B139: ПС 35/10 кВ Трубетчино | C139: 2,5+2,5 | D139: 5 | E139: 1.57 | F139: 0 | G139: 0 | H139: 1.57 | I139: 0 | J139: 2.625 | K139: 1.055 | L139: 1.055 | M139: открыт | N139: 0.906 | P139: 130 | Q139: ПС 35/10 кВ Трубетчино | R139: 2,5+2,5 | S139: 0.127 | T139: 1.697 | U139: 0 | V139: 0 | W139: 1.697 | X139: 0 | Y139: 2.625 | Z139: 0.928 | AA139: 0.928 | AB139: открыт
A140: 131 | B140: ПС 35/10 кВ Ратчино | C140: 2,5+2,5 | D140: 5 | E140: 1.41 | F140: 0 | G140: 0 | H140: 1.41 | I140: 0 | J140: 2.625 | K140: 1.215 | L140: 1.215 | M140: открыт | N140: 0.9 | P140: 131 | Q140: ПС 35/10 кВ Ратчино | R140: 2,5+2,5 | S140: 0.055 | T140: 1.465 | U140: 0 | V140: 0 | W140: 1.465 | X140: 0 | Y140: 2.625 | Z140: 1.16 | AA140: 1.16 | AB140: открыт
A141: 132 | B141: ПС 35/10 кВ Каликино | C141: 3,2+3,2 | D141: 6.4 | E141: 1.75 | F141: 0 | G141: 0 | H141: 1.75 | I141: 0 | J141: 3.36 | K141: 1.61 | L141: 1.61 | M141: открыт | N141: 0.885 | P141: 132 | Q141: ПС 35/10 кВ Каликино | R141: 3,2+3,2 | S141: 0.071 | T141: 1.821 | U141: 0 | V141: 0 | W141: 1.821 | X141: 0 | Y141: 3.36 | Z141: 1.539 | AA141: 1.539 | AB141: открыт
A142: 133 | B142: ПС 35/10 кВ Борисовка | C142: 4+2,5 | D142: 6.5 | E142: 3.55 | F142: 0 | G142: 0 | H142: 3.55 | I142: 0 | J142: 2.625 | K142: -0.925 | L142: -0.925 | M142: закрыт | N142: 0.948 | P142: 133 | Q142: ПС 35/10 кВ Борисовка | R142: 4+2,5 | S142: 1.902 | T142: 5.452 | U142: 0 | V142: 0 | W142: 5.452 | X142: 0 | Y142: 2.625 | Z142: -2.827 | AA142: -2.827 | AB142: закрыт
A143: 134 | B143: ПС 35/10 кВ Введенка | C143: 4+4 | D143: 8 | E143: 3.54 | F143: 0 | G143: 0 | H143: 3.54 | I143: 0 | J143: 4.2 | K143: 0.66 | L143: 0.66 | M143: открыт | N143: 0.972 | P143: 134 | Q143: ПС 35/10 кВ Введенка | R143: 4+4 | S143: 2.01 | T143: 5.55 | U143: 0 | V143: 0 | W143: 5.55 | X143: 0 | Y143: 4.2 | Z143: -1.35 | AA143: -1.35 | AB143: закрыт
A144: 135 | B144: ПС 35/10 кВ Грязное | C144: 4+4 | D144: 8 | E144: 1.44 | F144: 0 | G144: 0 | H144: 1.44 | I144: 0 | J144: 4.2 | K144: 2.76 | L144: 2.76 | M144: открыт | N144: 0.982 | P144: 135 | Q144: ПС 35/10 кВ Грязное | R144: 4+4 | S144: 1.415 | T144: 2.855 | U144: 0 | V144: 0 | W144: 2.855 | X144: 0 | Y144: 4.2 | Z144: 1.345 | AA144: 1.345 | AB144: открыт
A145: 136 | B145: ПС 35/10 кВ Борино | C145: 4+4 | D145: 8 | E145: 4.59 | F145: 0.92 | G145: 75 | H145: 3.67 | I145: 0 | J145: 4.2 | K145: 0.53 | L145: 0.53 | M145: открыт | N145: 0.908 | P145: 136 | Q145: ПС 35/10 кВ Борино | R145: 4+4 | S145: 2.826 | T145: 7.416 | U145: 0.92 | V145: 75 | W145: 6.496 | X145: 0 | Y145: 4.2 | Z145: -2.296 | AA145: -2.296 | AB145: закрыт
A146: 137 | B146: ПС 35/10 кВ Частая Дубрава | C146: 4+4 | D146: 8 | E146: 1.87 | F146: 1.55 | G146: 115 | H146: 0.32 | I146: 0 | J146: 4.2 | K146: 3.88 | L146: 3.88 | M146: открыт | N146: 0.953 | P146: 137 | Q146: ПС 35/10 кВ Частая Дубрава | R146: 4+4 | S146: 2.849 | T146: 4.719 | U146: 1.55 | V146: 115 | W146: 3.169 | X146: 0 | Y146: 4.2 | Z146: 1.031 | AA146: 1.031 | AB146: открыт
A147: 138 | B147: ПС 35/10 кВ Троицкая | C147: 2,5+4 | D147: 6.5 | E147: 2.72 | F147: 0 | G147: 0 | H147: 2.72 | I147: 0 | J147: 2.625 | K147: -0.095 | L147: -0.095 | M147: закрыт | N147: 0.933 | P147: 138 | Q147: ПС 35/10 кВ Троицкая | R147: 2,5+4 | S147: 0.76 | T147: 3.48 | U147: 0 | V147: 0 | W147: 3.48 | X147: 0 | Y147: 2.625 | Z147: -0.855 | AA147: -0.855 | AB147: закрыт
A148: 139 | B148: ПС 35/6 кВ Вешаловка | C148: 2,5+2,5 | D148: 5 | E148: 0.79 | F148: 0 | G148: 0 | H148: 0.79 | I148: 0 | J148: 2.625 | K148: 1.835 | L148: 1.835 | M148: открыт | N148: 0.91 | P148: 139 | Q148: ПС 35/6 кВ Вешаловка | R148: 2,5+2,5 | S148: 0.209 | T148: 0.999 | U148: 0 | V148: 0 | W148: 0.999 | X148: 0 | Y148: 2.625 | Z148: 1.626 | AA148: 1.626 | AB148: открыт
A149: 140 | B149: ПС 35/10 кВ Пружинки | C149: 2,5+2,5 | D149: 5 | E149: 0.74 | F149: 0 | G149: 0 | H149: 0.74 | I149: 0 | J149: 2.625 | K149: 1.885 | L149: 1.885 | M149: открыт | N149: 0.937 | P149: 140 | Q149: ПС 35/10 кВ Пружинки | R149: 2,5+2,5 | S149: 0.088 | T149: 0.828 | U149: 0 | V149: 0 | W149: 0.828 | X149: 0 | Y149: 2.625 | Z149: 1.797 | AA149: 1.797 | AB149: открыт
A150: 141 | B150: ПС 35/10 кВ Стебаево | C150: 2,5+2,5 | D150: 5 | E150: 0.82 | F150: 0.35 | G150: 80 | H150: 0.47 | I150: 0 | J150: 2.625 | K150: 2.155 | L150: 2.155 | M150: открыт | N150: 0.929 | P150: 141 | Q150: ПС 35/10 кВ Стебаево | R150: 2,5+2,5 | S150: 0.325 | T150: 1.145 | U150: 0.35 | V150: 80 | W150: 0.795 | X150: 0 | Y150: 2.625 | Z150: 1.83 | AA150: 1.83 | AB150: открыт
A151: 142 | B151: ПС 35/10 кВ Хлебопродукты | C151: 6,3+6,3 | D151: 12.6 | E151: 4.79 | F151: 0.75 | G151: 30 | H151: 4.04 | I151: 0 | J151: 6.615 | K151: 2.575 | L151: 2.575 | M151: открыт | N151: 0.939 | P151: 142 | Q151: ПС 35/10 кВ Хлебопродукты | R151: 6,3+6,3 | S151: 1.545 | T151: 6.335 | U151: 0.75 | V151: 30 | W151: 5.585 | X151: 0 | Y151: 6.615 | Z151: 1.03 | AA151: 1.03 | AB151: открыт
A152: 143 | B152: ПС 35/10 кВ Сенцово | C152: 10+10 | D152: 20 | E152: 6.26 | F152: 0.26 | G152: 40 | H152: 6 | I152: 0 | J152: 10.5 | K152: 4.5 | L152: 4.5 | M152: открыт | N152: 0.887 | P152: 143 | Q152: ПС 35/10 кВ Сенцово | R152: 10+10 | S152: 0.697 | T152: 6.957 | U152: 0.26 | V152: 40 | W152: 6.697 | X152: 0 | Y152: 10.5 | Z152: 3.803 | AA152: 3.803 | AB152: открыт
A153: 144 | B153: ПС 35/10 кВ Мясокомбинат | C153: 6,3+6,3 | D153: 12.6 | E153: 4.35 | F153: 1.75 | G153: 60 | H153: 2.6 | I153: 0 | J153: 6.62 | K153: 4.02 | L153: 4.02 | M153: открыт | N153: 0.893 | P153: 144 | Q153: ПС 35/10 кВ Мясокомбинат | R153: 6,3+6,3 | S153: 3.137 | T153: 7.487 | U153: 1.75 | V153: 60 | W153: 5.737 | X153: 0 | Y153: 6.62 | Z153: 0.883 | AA153: 0.883 | AB153: открыт
A154: 145 | B154: ПС 35/6 кВ Птицефабрика | C154: 4+4 | D154: 8 | E154: 1.43 | F154: 0 | G154: 0 | H154: 1.43 | I154: 0 | J154: 4.2 | K154: 2.77 | L154: 2.77 | M154: открыт | N154: 0.91 | P154: 145 | Q154: ПС 35/6 кВ Птицефабрика | R154: 4+4 | S154: 0.985 | T154: 2.415 | U154: 0 | V154: 0 | W154: 2.415 | X154: 0 | Y154: 4.2 | Z154: 1.785 | AA154: 1.785 | AB154: открыт
A155: 146 | B155: ПС 35/6 кВ Водозабор | C155: 10+10 | D155: 20 | E155: 0.91 | F155: 0 | G155: 0 | H155: 0.91 | I155: 0 | J155: 10.5 | K155: 9.59 | L155: 9.59 | M155: открыт | N155: 0.989 | P155: 146 | Q155: ПС 35/6 кВ Водозабор | R155: 10+10 | S155: 0.784 | T155: 1.694 | U155: 0 | V155: 0 | W155: 1.694 | X155: 0 | Y155: 10.5 | Z155: 8.806 | AA155: 8.806 | AB155: открыт
A156: 147 | B156: ПС 35/10 кВ Петровская | C156: 2,5+4 | D156: 6.5 | E156: 0.62 | F156: 0.23 | G156: 170 | H156: 0.39 | I156: 0 | J156: 2.625 | K156: 2.235 | L156: 2.235 | M156: открыт | N156: 0.904 | P156: 147 | Q156: ПС 35/10 кВ Петровская | R156: 2,5+4 | S156: 0.012 | T156: 0.632 | U156: 0.23 | V156: 170 | W156: 0.402 | X156: 0 | Y156: 2.625 | Z156: 2.223 | AA156: 2.223 | AB156: открыт
A157: 148 | B157: ПС 35/10 кВ Лебедянка | C157: 2,5+2,5 | D157: 5 | E157: 0.68 | F157: 0 | G157: 0 | H157: 0.68 | I157: 0 | J157: 2.625 | K157: 1.945 | L157: 1.945 | M157: открыт | N157: 0.932 | P157: 148 | Q157: ПС 35/10 кВ Лебедянка | R157: 2,5+2,5 | S157: 0.58 | T157: 1.26 | U157: 0 | V157: 0 | W157: 1.26 | X157: 0 | Y157: 2.625 | Z157: 1.365 | AA157: 1.365 | AB157: открыт
A158: 149 | B158: ПС 35/10 кВ Новочеркутино | C158: 4+4 | D158: 8 | E158: 1.03 | F158: 0.2 | G158: 170 | H158: 0.83 | I158: 0 | J158: 4.2 | K158: 3.37 | L158: 3.37 | M158: открыт | N158: 0.938 | P158: 149 | Q158: ПС 35/10 кВ Новочеркутино | R158: 4+4 | T158: 1.03 | U158: 0.2 | V158: 170 | W158: 0.83 | X158: 0 | Y158: 4.2 | Z158: 3.37 | AA158: 3.37 | AB158: открыт
A159: 150 | B159: ПС 35/10 кВ Ивановка | C159: 2,5+2,5 | D159: 5 | E159: 1.02 | F159: 0.13 | G159: 160 | H159: 0.89 | I159: 0 | J159: 2.625 | K159: 1.735 | L159: 1.735 | M159: открыт | N159: 0.89 | P159: 150 | Q159: ПС 35/10 кВ Ивановка | R159: 2,5+2,5 | S159: 0.055 | T159: 1.075 | U159: 0.13 | V159: 160 | W159: 0.945 | X159: 0 | Y159: 2.625 | Z159: 1.68 | AA159: 1.68 | AB159: открыт
A160: 151 | B160: ПС 35/10 кВ Поддубровка | C160: 2,5+2,5 | D160: 5 | E160: 1.45 | F160: 0.8 | G160: 100 | H160: 0.65 | I160: 0 | J160: 2.625 | K160: 1.975 | L160: 1.975 | M160: открыт | N160: 0.898 | P160: 151 | Q160: ПС 35/10 кВ Поддубровка | R160: 2,5+2,5 | S160: 0.208 | T160: 1.658 | U160: 0.8 | V160: 100 | W160: 0.858 | X160: 0 | Y160: 2.625 | Z160: 1.767 | AA160: 1.767 | AB160: открыт
A161: 152 | B161: ПС 35/10 кВ Плавица | C161: 1,6+1,6 | D161: 3.2 | E161: 0.72 | F161: 0.16 | G161: 40 | H161: 0.56 | I161: 0 | J161: 1.68 | K161: 1.12 | L161: 1.12 | M161: открыт | N161: 0.954 | P161: 152 | Q161: ПС 35/10 кВ Плавица | R161: 1,6+1,6 | S161: 0.46 | T161: 1.18 | U161: 0.16 | V161: 40 | W161: 1.02 | X161: 0 | Y161: 1.68 | Z161: 0.66 | AA161: 0.66 | AB161: открыт
A162: 153 | B162: ПС 35/10 кВ Паршиновка | C162: 1,6+2,5 | D162: 4.1 | E162: 0.39 | F162: 0 | G162: 0 | H162: 0.39 | I162: 0 | J162: 1.68 | K162: 1.29 | L162: 1.29 | M162: открыт | N162: 0.933 | P162: 153 | Q162: ПС 35/10 кВ Паршиновка | R162: 1,6+2,5 | S162: 0.023 | T162: 0.413 | U162: 0 | V162: 0 | W162: 0.413 | X162: 0 | Y162: 1.68 | Z162: 1.267 | AA162: 1.267 | AB162: открыт
A163: 154 | B163: ПС 35/10 кВ Талицкий Чамлык | C163: 3,2+4 | D163: 7.2 | E163: 1.48 | F163: 0.58 | G163: 130 | H163: 0.9 | I163: 0 | J163: 3.36 | K163: 2.46 | L163: 2.46 | M163: открыт | N163: 0.835 | P163: 154 | Q163: ПС 35/10 кВ Талицкий Чамлык | R163: 3,2+4 | S163: 0.005 | T163: 1.485 | U163: 0.58 | V163: 130 | W163: 0.905 | X163: 0 | Y163: 3.36 | Z163: 2.455 | AA163: 2.455 | AB163: открыт
A164: 155 | B164: ПС 35/10 кВ Демшинка | C164: 2,5+2,5 | D164: 5 | E164: 0.46 | F164: 0 | G164: 0 | H164: 0.46 | I164: 0 | J164: 2.625 | K164: 2.165 | L164: 2.165 | M164: открыт | N164: 0.947 | P164: 155 | Q164: ПС 35/10 кВ Демшинка | R164: 2,5+2,5 | S164: 0.3 | T164: 0.76 | U164: 0 | V164: 0 | W164: 0.76 | X164: 0 | Y164: 2.625 | Z164: 1.865 | AA164: 1.865 | AB164: открыт
A165: 156 | B165: ПС 35/10 кВ Березняговка | C165: 1,6+1,6 | D165: 3.2 | E165: 1.17 | F165: 0.64 | G165: 130 | H165: 0.53 | I165: 0 | J165: 1.68 | K165: 1.15 | L165: 1.15 | M165: открыт | N165: 0.913 | P165: 156 | Q165: ПС 35/10 кВ Березняговка | R165: 1,6+1,6 | S165: 0.015 | T165: 1.185 | U165: 0.64 | V165: 130 | W165: 0.545 | X165: 0 | Y165: 1.68 | Z165: 1.135 | AA165: 1.135 | AB165: открыт
A166: 157 | B166: ПС 35/10 кВ Дмитриевка | C166: 2,5+2,5 | D166: 5 | E166: 0.73 | F166: 0.16 | G166: 70 | H166: 0.57 | I166: 0 | J166: 2.625 | K166: 2.055 | L166: 2.055 | M166: открыт | N166: 0.96 | P166: 157 | Q166: ПС 35/10 кВ Дмитриевка | R166: 2,5+2,5 | S166: 0.357 | T166: 1.087 | U166: 0.16 | V166: 70 | W166: 0.927 | X166: 0 | Y166: 2.625 | Z166: 1.698 | AA166: 1.698 | AB166: открыт
A167: 158 | B167: ПС 35/10 кВ Пашково | C167: 2,5+2,5 | D167: 5 | E167: 1.4 | F167: 0.93 | G167: 120 | H167: 0.47 | I167: 0 | J167: 2.625 | K167: 2.155 | L167: 2.155 | M167: открыт | N167: 0.924 | P167: 158 | Q167: ПС 35/10 кВ Пашково | R167: 2,5+2,5 | S167: 0.007 | T167: 1.407 | U167: 0.93 | V167: 120 | W167: 0.477 | X167: 0 | Y167: 2.625 | Z167: 2.148 | AA167: 2.148 | AB167: открыт
A168: 159 | B168: ПС 35/10 кВ Московка | C168: 1,6+1,6 | D168: 3.2 | E168: 1.17 | F168: 0 | G168: 0 | H168: 1.17 | I168: 0 | J168: 1.68 | K168: 0.51 | L168: 0.51 | M168: открыт | N168: 0.872 | P168: 159 | Q168: ПС 35/10 кВ Московка | R168: 1,6+1,6 | S168: 0.041 | T168: 1.211 | U168: 0 | V168: 0 | W168: 1.211 | X168: 0 | Y168: 1.68 | Z168: 0.469 | AA168: 0.469 | AB168: открыт
A169: 160 | B169: ПС 35/10 кВ Бочиновка | C169: 4+4 | D169: 8 | E169: 2.76 | F169: 0.64 | G169: 150 | H169: 2.12 | I169: 0 | J169: 4.2 | K169: 2.08 | L169: 2.08 | M169: открыт | N169: 0.93 | P169: 160 | Q169: ПС 35/10 кВ Бочиновка | R169: 4+4 | S169: 0.38 | T169: 3.14 | U169: 0.64 | V169: 150 | W169: 2.5 | X169: 0 | Y169: 4.2 | Z169: 1.7 | AA169: 1.7 | AB169: открыт
A170: 161 | B170: ПС 35/10 кВ Федоровка | C170: 2,5+2,5 | D170: 5 | E170: 0.37 | F170: 0.38 | G170: 150 | H170: -0.01 | I170: 0 | J170: 2.625 | K170: 2.635 | L170: 2.635 | M170: открыт | N170: 0.913 | P170: 161 | Q170: ПС 35/10 кВ Федоровка | R170: 2,5+2,5 | S170: 0.13 | T170: 0.5 | U170: 0.38 | V170: 150 | W170: 0.12 | X170: 0 | Y170: 2.625 | Z170: 2.505 | AA170: 2.505 | AB170: открыт
A171: 162 | B171: ПС 35/10 кВ Куликово | C171: 2,5+2,5 | D171: 5 | E171: 0.46 | F171: 0.31 | G171: 120 | H171: 0.15 | I171: 0 | J171: 2.625 | K171: 2.475 | L171: 2.475 | M171: открыт | N171: 0.95 | P171: 162 | Q171: ПС 35/10 кВ Куликово | R171: 2,5+2,5 | S171: 0.039 | T171: 0.499 | U171: 0.31 | V171: 120 | W171: 0.189 | X171: 0 | Y171: 2.625 | Z171: 2.436 | AA171: 2.436 | AB171: открыт
A172: 163 | B172: ПС 35/10 кВ Конь-Колодезь | C172: 2,5+2,5 | D172: 5 | E172: 1.78 | F172: 0 | G172: 0 | H172: 1.78 | I172: 0 | J172: 2.625 | K172: 0.845 | L172: 0.845 | M172: открыт | N172: 0.823 | P172: 163 | Q172: ПС 35/10 кВ Конь-Колодезь | R172: 2,5+2,5 | S172: 0.694 | T172: 2.474 | U172: 0 | V172: 0 | W172: 2.474 | X172: 0 | Y172: 2.625 | Z172: 0.151 | AA172: 0.151 | AB172: открыт
A173: 164 | B173: ПС 35/10 кВ Дмитряшевка | C173: 2,5+2,5 | D173: 5 | E173: 0.36 | F173: 0 | G173: 0 | H173: 0.36 | I173: 0 | J173: 2.625 | K173: 2.265 | L173: 2.265 | M173: открыт | N173: 0.95 | P173: 164 | Q173: ПС 35/10 кВ Дмитряшевка | R173: 2,5+2,5 | S173: 0.107 | T173: 0.467 | U173: 0 | V173: 0 | W173: 0.467 | X173: 0 | Y173: 2.625 | Z173: 2.158 | AA173: 2.158 | AB173: открыт
A174: 165 | B174: ПС 35/10 кВ Речная | C174: 4+4 | D174: 8 | E174: 1.18 | F174: 0 | G174: 0 | H174: 1.18 | I174: 0 | J174: 4.2 | K174: 3.02 | L174: 3.02 | M174: открыт | N174: 0.831 | P174: 165 | Q174: ПС 35/10 кВ Речная | R174: 4+4 | S174: 0.078 | T174: 1.258 | U174: 0 | V174: 0 | W174: 1.258 | X174: 0 | Y174: 4.2 | Z174: 2.942 | AA174: 2.942 | AB174: открыт
A175: 166 | B175: ПС 35/10 кВ Негачевка | C175: 2,5+2,5 | D175: 5 | E175: 0.66 | F175: 0 | G175: 0 | H175: 0.66 | I175: 0 | J175: 2.625 | K175: 1.965 | L175: 1.965 | M175: открыт | N175: 0.86 | P175: 166 | Q175: ПС 35/10 кВ Негачевка | R175: 2,5+2,5 | S175: 0.017 | T175: 0.677 | U175: 0 | V175: 0 | W175: 0.677 | X175: 0 | Y175: 2.625 | Z175: 1.948 | AA175: 1.948 | AB175: открыт
A176: 167 | B176: ПС 35/10 кВ Карамышево | C176: 10+10 | D176: 20 | E176: 0.88 | F176: 0 | G176: 0 | H176: 0.88 | I176: 0 | J176: 10.5 | K176: 9.62 | L176: 9.62 | M176: открыт | N176: 0.97 | P176: 167 | Q176: ПС 35/10 кВ Карамышево | R176: 10+10 | S176: 0.133 | T176: 1.013 | U176: 0 | V176: 0 | W176: 1.013 | X176: 0 | Y176: 10.5 | Z176: 9.487 | AA176: 9.487 | AB176: открыт
A177: 168 | B177: ПС 35/10 кВ Тюшевка | C177: 4+4 | D177: 8 | E177: 1.08 | F177: 0 | G177: 0 | H177: 1.08 | I177: 0 | J177: 4.2 | K177: 3.12 | L177: 3.12 | M177: открыт | N177: 0.925 | P177: 168 | Q177: ПС 35/10 кВ Тюшевка | R177: 4+4 | S177: 0.05 | T177: 1.13 | U177: 0 | V177: 0 | W177: 1.13 | X177: 0 | Y177: 4.2 | Z177: 3.07 | AA177: 3.07 | AB177: открыт
A178: 169 | B178: ПС 35/10 кВ Сселки | C178: 10+10 | D178: 20 | E178: 2.44 | F178: 0 | G178: 0 | H178: 2.44 | I178: 0 | J178: 10.5 | K178: 8.06 | L178: 8.06 | M178: открыт | N178: 0.976 | P178: 169 | Q178: ПС 35/10 кВ Сселки | R178: 10+10 | S178: 4.37 | T178: 6.81 | U178: 0 | V178: 0 | W178: 6.81 | X178: 0 | Y178: 10.5 | Z178: 3.69 | AA178: 3.69 | AB178: открыт
A179: Двух- и более трансформаторные ПС (на три уровня напряжения) | P179: Двух- и более трансформаторные ПС (на три уровня напряжения)
A180: 170 | B180: ПС 110/35/10 кВ Тербуны-110 | C180: 10+10 | D180: 20 | E180: 10.83 | F180: 1 | H180: 9.83 | I180: 0 | J180: 10.5 | K180: 0.67 | L180: 0.67 | M180: открыт | P180: 170 | Q180: ПС 110/35/10 кВ Тербуны-110 | R180: 10+10 | S180: 1.706 | T180: 12.536 | U180: 1 | W180: 11.536 | X180: 0 | Y180: 10.5 | Z180: -1.036 | AA180: -1.036 | AB180: закрыт
B181: Ном. Мощность СН, МВА | C181: 10+10 | E181: 2.84 | F181: 1 | G181: 30 | H181: 1.84 | I181: 0 | J181: 10.5 | K181: 8.66 | N181: 0.922 | Q181: Ном. Мощность СН, МВА | R181: 10+10 | S181: 0.473 | T181: 3.313 | U181: 1 | V181: 30 | W181: 2.313 | X181: 0 | Y181: 10.5 | Z181: 8.187
B182: Ном. мощность НН, МВА | C182: 10+10 | E182: 7.99 | F182: 0 | G182: 0 | H182: 7.99 | I182: 0 | J182: 10.5 | K182: 2.51 | N182: 0.936 | Q182: Ном. мощность НН, МВА | R182: 10+10 | S182: 1.233 | T182: 9.223 | U182: 0 | V182: 0 | W182: 9.223 | X182: 0 | Y182: 10.5 | Z182: 1.277
A183: 171 | B183: ПС 110/35/10 кВ Долгоруково | C183: 6,3+10 | D183: 16.3 | E183: 8.51 | F183: 3.5 | H183: 5.01 | I183: 0 | J183: 6.615 | K183: 1.605 | L183: 1.605 | M183: открыт | P183: 171 | Q183: ПС 110/35/10 кВ Долгоруково | R183: 6,3+10 | S183: 1.445 | T183: 9.955 | U183: 3.5 | W183: 6.455 | X183: 0 | Y183: 6.615 | Z183: 0.16 | AA183: 0.16 | AB183: открыт
B184: Ном. Мощность СН, МВА | C184: 6,3+10 | E184: 5.04 | F184: 2 | G184: 45 | H184: 3.04 | I184: 0 | J184: 6.615 | K184: 3.575 | N184: 0.892 | Q184: Ном. Мощность СН, МВА | R184: 6,3+10 | S184: 1.271 | T184: 6.311 | U184: 2 | V184: 45 | W184: 4.311 | X184: 0 | Y184: 6.615 | Z184: 2.304
B185: Ном. мощность НН, МВА | C185: 6,3+10 | E185: 3.47 | F185: 1.5 | G185: 140 | H185: 1.97 | I185: 0 | J185: 6.615 | K185: 4.645 | N185: 0.928 | Q185: Ном. мощность НН, МВА | R185: 6,3+10 | S185: 0.174 | T185: 3.644 | U185: 1.5 | V185: 140 | W185: 2.144 | X185: 0 | Y185: 6.615 | Z185: 4.471
A186: 172 | B186: ПС 110/35/10 кВ Волово | C186: 10+10 | D186: 20 | E186: 3.15 | F186: 1.5 | H186: 1.65 | I186: 0 | J186: 10.5 | K186: 8.85 | L186: 7.85 | M186: открыт | P186: 172 | Q186: ПС 110/35/10 кВ Волово | R186: 10+10 | S186: 1.305 | T186: 4.455 | U186: 1.5 | W186: 2.955 | X186: 0 | Y186: 10.5 | Z186: 7.545 | AA186: 6.545 | AB186: открыт
B187: Ном. Мощность СН, МВА | C187: 10+10 | E187: 0 | F187: 1 | G187: 60 | H187: -1 | I187: 0 | J187: 10.5 | K187: 11.5 | N187: 0.81 | Q187: Ном. Мощность СН, МВА | R187: 10+10 | T187: 0 | U187: 1 | V187: 60 | W187: -1 | X187: 0 | Y187: 10.5 | Z187: 11.5
B188: Ном. мощность НН, МВА | C188: 10+10 | E188: 3.15 | F188: 0.5 | G188: 120 | H188: 2.65 | I188: 0 | J188: 10.5 | K188: 7.85 | N188: 0.914 | Q188: Ном. мощность НН, МВА | R188: 10+10 | S188: 1.305 | T188: 4.455 | U188: 0.5 | V188: 120 | W188: 3.955 | X188: 0 | Y188: 10.5 | Z188: 6.545
A189: 173 | B189: ПС 110/35/10 кВ Измалково | C189: 10+10 | D189: 20 | E189: 6.46 | F189: 1.3 | H189: 5.16 | I189: 0 | J189: 10.5 | K189: 5.34 | L189: 5.34 | M189: открыт | P189: 173 | Q189: ПС 110/35/10 кВ Измалково | R189: 10+10 | S189: 2.742 | T189: 9.202 | U189: 1.3 | W189: 7.902 | X189: 0 | Y189: 10.5 | Z189: 2.598 | AA189: 2.598 | AB189: открыт
B190: Ном. Мощность СН, МВА | C190: 10+10 | E190: 2.24 | F190: 0.8 | G190: 30 | H190: 1.44 | I190: 0 | J190: 10.5 | K190: 9.06 | N190: 0.908 | Q190: Ном. Мощность СН, МВА | R190: 10+10 | S190: 0.074 | T190: 2.314 | U190: 0.8 | V190: 30 | W190: 1.514 | X190: 0 | Y190: 10.5 | Z190: 8.986
B191: Ном. мощность НН, МВА | C191: 10+10 | E191: 4.22 | F191: 0.5 | G191: 30 | H191: 3.72 | I191: 0 | J191: 10.5 | K191: 6.78 | N191: 0.925 | Q191: Ном. мощность НН, МВА | R191: 10+10 | S191: 2.668 | T191: 6.888 | U191: 0.5 | V191: 30 | W191: 6.388 | X191: 0 | Y191: 10.5 | Z191: 4.112
A192: 174 | B192: ПС 110/35/10 кВ Гороховская | C192: 16+16 | D192: 32 | E192: 13.89 | F192: 2.1 | H192: 11.79 | I192: 0 | J192: 16.8 | K192: 5.01 | L192: 5.01 | M192: открыт | P192: 174 | Q192: ПС 110/35/10 кВ Гороховская | R192: 16+16 | S192: 3.469 | T192: 17.359 | U192: 2.1 | W192: 15.259 | X192: 0 | Y192: 16.8 | Z192: 1.541 | AA192: 1.541 | AB192: открыт
B193: Ном. Мощность СН, МВА | C193: 16+16 | E193: 10.72 | F193: 1.65 | G193: 30 | H193: 9.07 | I193: 0 | J193: 16.8 | K193: 7.73 | N193: 0.777 | Q193: Ном. Мощность СН, МВА | R193: 16+16 | S193: 1.164 | T193: 11.884 | U193: 1.65 | V193: 30 | W193: 10.234 | X193: 0 | Y193: 16.8 | Z193: 6.566
B194: Ном. мощность НН, МВА | C194: 16+16 | E194: 3.17 | F194: 0.45 | G194: 60 | H194: 2.72 | I194: 0 | J194: 16.8 | K194: 14.08 | N194: 0.942 | Q194: Ном. мощность НН, МВА | R194: 16+16 | S194: 2.305 | T194: 5.475 | U194: 0.45 | V194: 60 | W194: 5.025 | X194: 0 | Y194: 16.8 | Z194: 11.775
A195: 175 | B195: ПС 110/35/10 кВ Донская | C195: 10+10 | D195: 20 | E195: 4.94 | F195: 2.7 | H195: 2.24 | I195: 0 | J195: 10.5 | K195: 8.26 | L195: 7.1 | M195: открыт | P195: 175 | Q195: ПС 110/35/10 кВ Донская | R195: 10+10 | S195: 1.505 | T195: 6.445 | U195: 2.7 | W195: 3.745 | X195: 0 | Y195: 10.5 | Z195: 6.755 | AA195: 6.024 | AB195: открыт
B196: Ном. Мощность СН, МВА | C196: 10+10 | E196: 1.54 | F196: 2.7 | G196: 30 | H196: -1.16 | I196: 0 | J196: 10.5 | K196: 11.66 | N196: 0.927 | Q196: Ном. Мощность СН, МВА | R196: 10+10 | S196: 0.429 | T196: 1.969 | U196: 2.7 | V196: 30 | W196: -0.731 | X196: 0 | Y196: 10.5 | Z196: 11.231
B197: Ном. мощность НН, МВА | C197: 10+10 | E197: 3.4 | F197: 0 | G197: 0 | H197: 3.4 | I197: 0 | J197: 10.5 | K197: 7.1 | N197: 0.904 | Q197: Ном. мощность НН, МВА | R197: 10+10 | S197: 1.076 | T197: 4.476 | U197: 0 | V197: 0 | W197: 4.476 | X197: 0 | Y197: 10.5 | Z197: 6.024
A198: 176 | B198: ПС 110/35/10 кВ Лебедянь | C198: 16+16 | D198: 32 | E198: 15.87 | F198: 12.52 | H198: 3.35 | I198: 0 | J198: 16.8 | K198: 13.45 | L198: 13.45 | M198: открыт | P198: 176 | Q198: ПС 110/35/10 кВ Лебедянь | R198: 16+16 | S198: 4.966 | T198: 20.836 | U198: 12.52 | W198: 8.316 | X198: 0 | Y198: 16.8 | Z198: 8.484 | AA198: 8.484 | AB198: открыт
B199: Ном. Мощность СН, МВА | C199: 16+16 | E199: 7.52 | F199: 7.52 | G199: 60 | H199: 0 | I199: 0 | J199: 16.8 | K199: 16.8 | N199: 0.91 | Q199: Ном. Мощность СН, МВА | R199: 16+16 | S199: 1.493 | T199: 9.013 | U199: 7.52 | V199: 60 | W199: 1.493 | X199: 0 | Y199: 16.8 | Z199: 15.307
B200: Ном. мощность НН, МВА | C200: 16+16 | E200: 8.35 | F200: 5 | G200: 120 | H200: 3.35 | I200: 0 | J200: 16.8 | K200: 13.45 | N200: 0.953 | Q200: Ном. мощность НН, МВА | R200: 16+16 | S200: 3.473 | T200: 11.823 | U200: 5 | V200: 120 | W200: 6.823 | X200: 0 | Y200: 16.8 | Z200: 9.977
A201: 177 | B201: ПС 110/35/10 кВ Чаплыгин-новая | C201: 16+16 | D201: 32 | E201: 10.41 | F201: 3.17 | H201: 7.24 | I201: 0 | J201: 16.8 | K201: 9.56 | L201: 9.56 | M201: открыт | P201: 177 | Q201: ПС 110/35/10 кВ Чаплыгин-новая | R201: 16+16 | S201: 0.186 | T201: 10.596 | U201: 3.17 | W201: 7.426 | X201: 0 | Y201: 16.8 | Z201: 9.374 | AA201: 9.374 | AB201: открыт
... 69 more rows

Sheet Интерактивная карта
A5: Наименование объекта центра питания, класс напряжения | B5: Год ввода /Год реконструкции (при изменении установленной мощности) | C5: Установленная мощность МВА | D5: Существующая нагрузка по результатам замеров, МВА | E5: Фактический резерв мощности с учетом замеров режимного дня, МВА | F5: Мощность по заключенным договорам на ТП, МВт | G5: Мощность по договорам на ТП находящихся на исполнении, МВА | H5: Максимальная разрешенная мощность (по актам ТП), МВт | I5: Планируемые сроки снятия ограничения | J5: Текущий статус | K5: Перспективный статус | L5: Широта | M5: Долгота
A6: ПС 110/10кВ Лев Толстой | B6: 1964 | C6: 10 | D6: 1.87 | E6: 0 | F6: 0.241 | G6: 0.241 | H6: 0 | J6: открыт | K6: закрыт | L6: 53.2169710924581 | M6: 39.4816246190518
A7: ПС 110/10 кВ Двуречки | B7: 1979 | C7: 6.3 | D7: 1.88 | E7: -1.88 | F7: 0.901 | G7: 0.901 | H7: 0 | J7: открыт | K7: закрыт | L7: 52.4486092290405 | M7: 39.7159163518556
A8: ПС 35/10 кВ Веселое | B8: 1984 | C8: 2.5 | D8: 0.16 | E8: 0 | F8: 0.01 | G8: 0.01 | H8: 0 | J8: открыт | K8: открыт | L8: 52.3525150743259 | M8: 38.0676900226417
A9: ПС 35/10 кВ Кр.Пальна | B9: 1965 | C9: 3.2 | D9: 0.76 | E9: -0.26 | F9: 0.549 | G9: 0.549 | H9: 0 | J9: открыт | K9: закрыт | L9: 52.8577628106483 | M9: 38.487695690839
A10: ПС 35/10 кВ Каменка | B10: 1968 | C10: 2.5 | D10: 0.64 | E10: -0.64 | F10: 0.122 | G10: 0.122 | H10: 0 | J10: открыт | K10: закрыт | L10: 52.8701001386934 | M10: 38.2525186358997
A11: ПС 35/10 кВ Красотыновка | B11: 1981 | C11: 2.5 | D11: 0.81 | E11: -0.41 | F11: 0.54 | G11: 0.54 | H11: 0 | J11: открыт | K11: закрыт | L11: 52.3057754067838 | M11: 38.1823795066869
A12: ПС 35/10 кВ Озёрки | B12: 1984 | C12: 2.5 | D12: 0.110028 | E12: 0 | F12: 0 | G12: 0 | H12: 0 | J12: открыт | K12: открыт | L12: 52.0841765721138 | M12: 38.7350564896252
A13: ПС 35/10 кВ Панкратовка | B13: 1973 | C13: 2.5 | D13: 0.54 | E13: -0.49 | F13: 0.045 | G13: 0.045 | H13: 0 | J13: открыт | K13: закрыт | L13: 52.6481469564784 | M13: 38.0996776649148
A14: ПС 35/10 кВ Преображенье | B14: 1982 | C14: 2.5 | D14: 0.27 | E14: 0 | F14: 0 | G14: 0 | H14: 0 | J14: открыт | K14: открыт | L14: 52.5712532849197 | M14: 37.8690034342148
A15: ПС 35/10 кВ Яковлево | B15: 1970 | C15: 2.5 | D15: 0.84 | E15: -0.84 | F15: 0.458 | G15: 0.458 | H15: 0 | J15: открыт | K15: закрыт | L15: 52.1285944455269 | M15: 38.5827525624266
A16: ПС 35/10 кВ Первомайская | B16: 1981 | C16: 2.5 | D16: 0.98 | E16: -0.28 | F16: 0.008 | G16: 0.008 | H16: 0 | J16: открыт | K16: закрыт | L16: 53.0767153199779 | M16: 39.6057742579006
A17: ПС 35/10 кВ Каменная Лубна | B17: 1970 | C17: 2.5 | D17: 0.61 | E17: 0 | F17: 0.075 | G17: 0.075 | H17: 0 | J17: открыт | K17: открыт | L17: 52.7655586195661 | M17: 39.1130959391351
A18: ПС 35/10 кВ Знаменка | B18: 1980 | C18: 2.5 | D18: 0.69 | E18: -0.69 | F18: 0 | G18: 0 | H18: 0 | J18: открыт | K18: закрыт | L18: 53.2880316966625 | M18: 39.3973902575631
A19: ПС 35/10 кВ Пиково | B19: 1982 | C19: 2.5 | D19: 0.61 | E19: -0.61 | F19: 0.05 | G19: 0.05 | H19: 0 | J19: открыт | K19: закрыт | L19: 53.2958883312812 | M19: 39.8288769946169
A20: ПС 35/10 кВ Никольское | B20: 1984 | C20: 4 | D20: 0.31 | E20: 0 | F20: 0.023 | G20: 0.023 | H20: 0 | J20: открыт | K20: открыт | L20: 53.3727406250845 | M20: 39.9231647947107
A21: ПС 35/10 кВ Песковатка | B21: 1973 | C21: 1.6 | D21: 0.47 | E21: -0.34 | F21: 0 | G21: 0 | H21: 0 | J21: открыт | K21: закрыт | L21: 52.5195641667129 | M21: 40.0323180632977
A22: ПС 35/6 кВ Новониколаевка | B22: 1974 | C22: 4 | D22: 0.72 | E22: -0.72 | F22: 0.009 | G22: 0.009 | H22: 0 | J22: открыт | K22: закрыт | L22: 52.6306788353631 | M22: 39.4308758269795
A23: ПС 35/10 кВ Синдякино | B23: 1983 | C23: 2.5 | D23: 0.22 | E23: -0.22 | F23: 0.141 | G23: 0.141 | H23: 0 | J23: открыт | K23: закрыт | L23: 52.1159578794024 | M23: 39.3176328688655
A24: ПС 35/10 кВ Курино | B24: 1988 | C24: 2.5 | D24: 0.59 | E24: -0.5 | F24: 1.429 | G24: 1.429 | H24: 0 | J24: открыт | K24: закрыт | L24: 52.197765090447 | M24: 39.3671810051223
A25: ПС 35/10 кВ Новодубовое | B25: 1983 | C25: 2.5 | D25: 1.46 | E25: -1.46 | F25: 0.007 | G25: 0.007 | H25: 0 | J25: открыт | K25: закрыт | L25: 52.3043236094129 | M25: 39.1871558621568
A26: ПС 110/10 кВ Ирито | B26: 2013 | C26: 25 | D26: 2.4 | E26: -2.4 | F26: 20 | G26: 20 | H26: 0 | I26: 2014 | J26: открыт | K26: закрыт | L26: 52.889797 | M26: 38.96636
A27: ПС 110/6 кВ Агрегатная | B27: 1977 | C27: 16+16 | D27: 13.5 | E27: 4.15 | F27: 2.018 | G27: 2.018 | H27: 2.132 | J27: открыт | K27: открыт | L27: 52.6535505277202 | M27: 38.4427058472369
A28: ПС 110/6 кВ Западная | B28: 1999 | C28: 40+40 | D28: 22.91 | E28: 20.39 | F28: 6.189 | G28: 6.189 | H28: 14.201 | J28: открыт | K28: открыт | L28: 52.5994546253252 | M28: 38.4643683068255
A29: ПС 110/10 кВ Кашары | B29: 1972 | C29: 2,5+6,3 | D29: 3.06 | E29: 0.015 | F29: 0.404 | G29: 0.404 | H29: 0 | J29: открыт | K29: закрыт | L29: 52.4746944848908 | M29: 38.9719646100004
A30: ПС 110/10кВ Тербунский гончар | B30: 2008 | C30: 25+25 | D30: 0.4 | E30: 25.85 | F30: 13.046 | G30: 13.046 | H30: 12.804 | J30: открыт | K30: открыт | L30: 52.1066755003307 | M30: 38.2589461687148
A31: ПС 110/6 кВ Табак | B31: 1981 | C31: 16+16 | D31: 7.29 | E31: 11.01 | F31: 0.39 | G31: 0.39 | H31: 10.62 | J31: открыт | K31: открыт | L31: 52.628051190566 | M31: 38.5542240311774
A32: ПС 110/10 кВ Лукошкино | B32: 1990 | C32: 10+2,5 | D32: 0.7 | E32: 2.035 | F32: 0.072 | G32: 0.072 | H32: 1.963 | J32: открыт | K32: открыт | L32: 52.6183283453015 | M32: 38.8066637501099
A33: ПС 110/10кВ Нива | B33: 1986 | C33: 10+10 | D33: 7.31 | E33: 6.19 | F33: 0.384 | G33: 0.384 | H33: 5.806 | J33: открыт | K33: открыт | L33: 53.0257961468405 | M33: 39.1411711996949
A34: ПС 110/10 кВ Ольховец | B34: 1978 | C34: 2,5+2,5 | D34: 1.23 | E34: 2.095 | F34: 0.08 | G34: 0.08 | H34: 2.015 | J34: открыт | K34: открыт | L34: 53.116157613602 | M34: 39.1942105207262
A35: ПС 110/10 кВ Куймань | B35: 1979 | C35: 2,5+2,5 | D35: 0.8 | E35: 2.625 | F35: 1.045 | G35: 1.045 | H35: 1.58 | J35: открыт | K35: открыт | L35: 52.86344115494 | M35: 39.2759624262646
A36: ПС 110/10 кВ Лутошкино | B36: 1983 | C36: 2,5+2,5 | D36: 0.21 | E36: 2.625 | F36: 0 | G36: 0 | H36: 2.625 | J36: открыт | K36: открыт | L36: 52.7902315394858 | M36: 38.798486440786
A37: ПС 110/10 кВ Круглое | B37: 1989 | C37: 2,5+2,5 | D37: 0.41 | E37: 2.625 | F37: 0 | G37: 0 | H37: 2.625 | J37: открыт | K37: открыт | L37: 53.1706696593029 | M37: 39.2650081919431
A38: ПС 110/10/6 кВ Юго-Западная | B38: 1982/2013 | C38: 40+40+40 | D38: 38.7 | E38: 52.42 | F38: 23.725 | G38: 23.725 | H38: 28.695 | J38: открыт | K38: открыт | L38: 52.5898571538358 | M38: 39.5154976461141
A39: ПС 110/6 кВ Привокзальная | B39: 1970 | C39: 20+20+25 | D39: 41.14 | E39: 2.77 | F39: 0.3 | G39: 0.3 | H39: 2.47 | J39: открыт | K39: открыт | L39: 52.6246042294447 | M39: 39.5514360980437
A40: ПС 110/10/6 кВ Южная | B40: 1978 | C40: 40+40 | D40: 34.86 | E40: 9.5 | F40: 0.96 | G40: 0.96 | H40: 8.54 | J40: открыт | K40: открыт | L40: 52.5866167884604 | M40: 39.596803352794
A41: ПС 110/6 кВ Ситовка | B41: 1983 | C41: 10+10 | D41: 4.18 | E41: 7.3 | F41: 0 | G41: 0 | H41: 7.3 | J41: открыт | K41: открыт | L41: 52.6759469196564 | M41: 39.6218707112186
A42: ПС 110/6 кВ ЛТП | B42: 1987 | C42: 6,3+10 | D42: 2.41 | E42: 4.205 | F42: 0.315 | G42: 0.315 | H42: 3.89 | J42: открыт | K42: открыт | L42: 52.6628866101015 | M42: 39.6114044866994
A43: ПС 110/6 кВ КПД | B43: 1987/2011 | C43: 10+16 | D43: 4.84 | E43: 5.66 | F43: 3.571 | G43: 3.571 | H43: 2.089 | J43: открыт | K43: открыт | L43: 52.6475947747513 | M43: 39.6041773604874
A44: ПС 110/10 кВ Октябрьская | B44: 1997 | C44: 40+40 | D44: 23.93 | E44: 21.52 | F44: 0.707 | G44: 0.707 | H44: 20.813 | J44: открыт | K44: открыт | L44: 52.5764494255388 | M44: 39.5171354373216
A45: ПС 110/10 кВ Манежная | B45: 2010 | C45: 40+40 | D45: 2.07 | E45: 39.93 | F45: 35.466 | G45: 35.466 | H45: 4.464 | J45: открыт | K45: открыт | L45: 52.5917451268018 | M45: 39.5811865921873
A46: ПС 110/10 кВ Университетская | B46: 2009 | C46: 40+40 | D46: 1.17 | E46: 40.83 | F46: 46.866 | G46: 46.866 | H46: 0 | J46: открыт | K46: закрыт | L46: 52.5949796968824 | M46: 39.4729196319163
A47: ПС 110/6 кВ Тепличная | B47: 1989 | C47: 15+15 | D47: 5.77 | E47: 11.67 | F47: 4.226 | G47: 4.226 | H47: 7.444 | J47: открыт | K47: открыт | L47: 52.6327076280048 | M47: 39.546736756446
A48: ПС 110/6 кВ Трубная-2 | B48: 2009 | C48: 25+25 | D48: 4.01 | E48: 22.24 | F48: 20.64 | G48: 20.64 | H48: 1.6 | J48: открыт | K48: открыт | L48: 52.6187090103373 | M48: 39.552076674228
A49: ПС 110/6 кВ ГПП-2 ЛТЗ | B49: 1986 | C49: 63+63 | D49: 13.56 | E49: 53.79 | F49: 12.472 | G49: 12.472 | H49: 41.318 | J49: открыт | K49: открыт | L49: 52.5407199939185 | M49: 39.5801401609722
A50: ПС 35/10 кВ Авангард | B50: 1990 | C50: 4+4 | D50: 1.9 | E50: 2.8 | F50: 0.167 | G50: 0.167 | H50: 2.633 | J50: открыт | K50: открыт | L50: 52.5554639779839 | M50: 38.6950206572069
A51: ПС 35/10 кВ Афанасьево | B51: 1978 | C51: 2,5+2,5 | D51: 1.67 | E51: 0.955 | F51: 1.046 | G51: 1.046 | H51: 0 | J51: открыт | K51: открыт | L51: 52.5747716598297 | M51: 38.2076765482435
A52: ПС 35/10 кВ Бабарыкино | B52: 1982 | C52: 2,5+2,5 | D52: 0.84 | E52: 2.085 | F52: 0.453 | G52: 0.453 | H52: 1.632 | J52: открыт | K52: открыт | L52: 52.9336472539061 | M52: 38.2232740187004
A53: ПС 35/10 кВ Аврора | B53: 1981 | C53: 2,5+2,5 | D53: 0.96 | E53: 2.065 | F53: 0.136 | G53: 0.136 | H53: 1.929 | J53: открыт | K53: открыт | L53: 52.3970154320664 | M53: 38.8253372484728
A54: ПС 35/10 кВ Б.Боёвка | B54: 1983 | C54: 2,5+2,5 | D54: 0.36 | E54: 2.485 | F54: 0 | G54: 0 | H54: 2.485 | J54: открыт | K54: открыт | L54: 52.4054369548077 | M54: 38.5540805524847
A55: ПС 35/10 кВ Борки | B55: 1981 | C55: 2,5+2,5 | D55: 1.02 | E55: 1.605 | F55: 0 | G55: 0 | H55: 1.605 | J55: открыт | K55: открыт | L55: 52.1503493887351 | M55: 38.1062489666505
A56: ПС 35/6кВ Восточная | B56: 1966 | C56: 10+16 | D56: 6.02 | E56: 5.63 | F56: 0.762 | G56: 0.762 | H56: 4.868 | J56: открыт | K56: открыт | L56: 52.6279978869399 | M56: 38.564505790682
A57: ПС 35/10 кВ Васильевка | B57: 1981 | C57: 2,5+2,5 | D57: 0.64 | E57: 2.085 | F57: 0 | G57: 0 | H57: 2.085 | J57: открыт | K57: открыт | L57: 51.9781510957345 | M57: 38.0193423929724
A58: ПС 35/10 кВ Воронец | B58: 1982 | C58: 4+4 | D58: 2.24 | E58: 1.96 | F58: 0.188 | G58: 0.188 | H58: 1.772 | J58: открыт | K58: открыт | L58: 52.5339927444411 | M58: 38.4934995636393
A59: ПС 35/6 кВ Голиково | B59: 1974 | C59: 1,8+1,6 | D59: 0.89 | E59: 1.59 | F59: 0.085 | G59: 0.085 | H59: 1.505 | J59: открыт | K59: открыт | L59: 52.6738140241752 | M59: 38.8146244963904
A60: ПС 35/10 кВ Гатище | B60: 1973 | C60: 2,5+2,5 | D60: 0.38 | E60: 2.345 | F60: 0 | G60: 0 | H60: 2.345 | J60: открыт | K60: открыт | L60: 52.1608350549674 | M60: 38.0010817695499
A61: ПС 35/10 кВ Гнилуша | B61: 1973 | C61: 6,3+6,3 | D61: 1.45 | E61: 5.365 | F61: 0.095 | G61: 0.095 | H61: 5.27 | J61: открыт | K61: открыт | L61: 52.32321879705 | M61: 39.0692579543072
A62: ПС 35/10кВ Грызлово | B62: 1973 | C62: 2,5+2,5 | D62: 0.89 | E62: 2.035 | F62: 0 | G62: 0 | H62: 2.035 | J62: открыт | K62: открыт | L62: 52.4395476833466 | M62: 38.1858147853273
A63: ПС 35/10 кВ Жерновное | B63: 1994 | C63: 2,5+2,5 | D63: 0.52 | E63: 2.515 | F63: 0.369 | G63: 0.369 | H63: 2.146 | J63: открыт | K63: открыт | L63: 52.3064043727265 | M63: 38.495672071006
A64: ПС 35/10 кВ Задонск-сельск. | B64: 1968/2013 | C64: 3,2+4 | D64: 1.88 | E64: 1.48 | F64: 0.276 | G64: 0.276 | H64: 1.204 | J64: открыт | K64: открыт | L64: 52.3851069034602 | M64: 38.9269245446528
A65: ПС 35/10 кВ Захаровка | B65: 1984 | C65: 2,5+2,5 | D65: 0.43 | E65: 2.325 | F65: 0.015 | G65: 0.015 | H65: 2.31 | J65: открыт | K65: открыт | L65: 52.1000681242528 | M65: 37.9580362660224
A66: ПС 35/10 кВ Казаки | B66: 1992 | C66: 4+4 | D66: 1.52 | E66: 2.68 | F66: 0.075 | G66: 0.075 | H66: 2.605 | J66: открыт | K66: открыт | L66: 52.601665901583 | M66: 38.2659587262969
A67: ПС 35/10 кВ Колесово | B67: 1999 | C67: 6,3+6,3 | D67: 2.89 | E67: 4.025 | F67: 0.449 | G67: 0.449 | H67: 3.576 | J67: открыт | K67: открыт | L67: 52.467957414819 | M67: 38.8717600416978
A68: ПС 35/10 кВ Князево | B68: 1979 | C68: 2,5+2,5 | D68: 0.31 | E68: 2.315 | F68: 0.007 | G68: 0.007 | H68: 2.308 | J68: открыт | K68: открыт | L68: 52.0092041255687 | M68: 38.3120319671956
A69: ПС 35/10 кВ Кириллово | B69: 1989 | C69: 2,5+2,5 | D69: 0.62 | E69: 2.005 | F69: 0.014 | G69: 0.014 | H69: 1.991 | J69: открыт | K69: открыт | L69: 52.742250449486 | M69: 38.2058103617269
A70: ПС 35/10 кВ Ксизово | B70: 1988 | C70: 2,5+2,5 | D70: 0.2 | E70: 2.425 | F70: 0.05 | G70: 0.05 | H70: 2.375 | J70: открыт | K70: открыт | L70: 52.3047706063873 | M70: 38.943724336909
A71: ПС 35/10 кВ Ламское | B71: 1966 | C71: 2,5+2,5 | D71: 1.6 | E71: 1.265 | F71: 0.03 | G71: 0.03 | H71: 1.235 | J71: открыт | K71: открыт | L71: 52.9566273241799 | M71: 38.0587727786928
A72: ПС 35/10 кВ Казачье | B72: 1990 | C72: 2,5+2,5 | D72: 0.35 | E72: 2.275 | F72: 0.158 | G72: 0.158 | H72: 2.117 | J72: открыт | K72: открыт | L72: 52.3547263951253 | M72: 38.8808928671411
A73: ПС 35/10 кВ Лебяжье | B73: 1978 | C73: 2,5+1,6 | D73: 0.27 | E73: 1.41 | F73: 0.015 | G73: 0.015 | H73: 1.395 | J73: открыт | K73: открыт | L73: 52.8702504249512 | M73: 37.9782969828135
A74: ПС 35/10 кВ Ломовец | B74: 1979 | C74: 1,6+2,5 | D74: 0.38 | E74: 1.3 | F74: 0 | G74: 0 | H74: 1.3 | J74: открыт | K74: открыт | L74: 52.2513312037844 | M74: 38.5928171517355
A75: ПС 35/10 кВ Ольшанец | B75: 1979 | C75: 2,5+4 | D75: 1.17 | E75: 1.455 | F75: 0 | G75: 0 | H75: 1.455 | J75: открыт | K75: открыт | L75: 52.2703117550213 | M75: 38.8105611602941
A76: ПС 35/10 кВ Плоское | B76: 1973 | C76: 4+4 | D76: 3.47 | E76: 1.53 | F76: 2.026 | G76: 2.026 | H76: 0 | J76: открыт | K76: закрыт | L76: 52.7584468245313 | M76: 38.3666568778766
A77: ПС 35/10 кВ Стегаловка | B77: 1967 | C77: 2,5+3,2 | D77: 0.43 | E77: 2.295 | F77: 0.015 | G77: 0.015 | H77: 2.28 | J77: открыт | K77: открыт | L77: 52.4050219951099 | M77: 38.3188400969633
A78: ПС 35/10 кВ Солидарность | B78: 1978 | C78: 4+4 | D78: 2.21 | E78: 3.19 | F78: 1.995 | G78: 1.995 | H78: 1.195 | J78: открыт | K78: открыт | L78: 52.5947174843504 | M78: 38.5789854656937
A79: ПС 35/10 кВ Тимирязево | B79: 1986 | C79: 4+4 | D79: 1.22 | E79: 3.28 | F79: 0.337 | G79: 0.337 | H79: 2.943 | J79: открыт | K79: открыт | L79: 52.3180848799492 | M79: 38.3278819715478
A80: ПС 35/10 кВ Талица | B80: 1969 | C80: 2,5+2,5 | D80: 1.82 | E80: 1.005 | F80: 0.357 | G80: 0.357 | H80: 0.648 | J80: открыт | K80: открыт | L80: 52.7167446015476 | M80: 38.7076116164037
A81: ПС 35/10 кВ II-е Тербуны | B81: 1982 | C81: 2,5+2,5 | D81: 1.26 | E81: 1.365 | F81: 0.202 | G81: 0.202 | H81: 1.163 | J81: открыт | K81: открыт | L81: 52.1249662735499 | M81: 38.4799543269035
A82: ПС 35/10 кВ Тихий Дон | B82: 1987 | C82: 4+4 | D82: 0.62 | E82: 3.71 | F82: 0.347 | G82: 0.347 | H82: 3.363 | J82: открыт | K82: открыт | L82: 52.6832500673729 | M82: 38.936710149447
A83: ПС 35/10 кВ Хитрово | B83: 1973 | C83: 6,3+6,3 | D83: 1.06 | E83: 5.555 | F83: 0.055 | G83: 0.055 | H83: 5.505 | J83: открыт | K83: открыт | L83: 52.4591685252601 | M83: 38.6362515189274
A84: ПС 35/10 кВ Чернава | B84: 1967 | C84: 2,5+2,5 | D84: 1.63 | E84: 0.995 | F84: 0.065 | G84: 0.065 | H84: 0.93 | J84: открыт | K84: открыт | L84: 52.4967518763096 | M84: 38.0637704486141
A85: ПС 35/10 кВ Чернолес | B85: 1986 | C85: 2,5+2,5 | D85: 0.32 | E85: 2.305 | F85: 0.007 | G85: 0.007 | H85: 2.298 | J85: открыт | K85: открыт | L85: 52.9260817588539 | M85: 38.4597733974286
A86: ПС 35/6 кВ ПС № 5 | B86: 1954 | C86: 6,3+3,2 | D86: 1.37 | E86: 1.99 | F86: 0.007 | G86: 0.007 | H86: 1.983 | J86: открыт | K86: открыт | L86: 52.6269759064713 | M86: 39.0139669626504
A87: ПС 35/10 кВ Красное | B87: 1965 | C87: 4+4 | D87: 2.69 | E87: 2.81 | F87: 0.181 | G87: 0.181 | H87: 2.629 | J87: открыт | K87: открыт | L87: 52.8506009732135 | M87: 38.7742452593793
A88: ПС 35/10 кВ Теплое | B88: 1992 | C88: 2,5+2,5 | D88: 1.34 | E88: 2.625 | F88: 0.023 | G88: 0.023 | H88: 2.602 | J88: открыт | K88: открыт | L88: 53.2072358575215 | M88: 38.8958026449592
A89: ПС 35/10 кВ Данков-сельская | B89: 1966/2012 | C89: 6,3+6,3 | D89: 4.91 | E89: 3.805 | F89: 0.403 | G89: 0.403 | H89: 3.407 | J89: открыт | K89: открыт | L89: 53.2662632238608 | M89: 39.1338919512096
A90: ПС 35/10 кВ Колыбельская | B90: 1969 | C90: 2,5+2,5 | D90: 1.01 | E90: 1.615 | F90: 0.124 | G90: 0.124 | H90: 1.491 | J90: открыт | K90: открыт | L90: 53.0989926730346 | M90: 39.9119484733396
A91: ПС 35/10 кВ Топки | B91: 1997 | C91: 2,5+2,5 | D91: 0.64 | E91: 2.625 | F91: 0.025 | G91: 0.025 | H91: 2.6 | J91: открыт | K91: открыт | L91: 53.3503464116415 | M91: 39.5855577229596
A92: ПС 35/10 кВ Агроном | B92: 1968 | C92: 4+6,3 | D92: 1.88 | E92: 3.32 | F92: 0.085 | G92: 0.085 | H92: 3.235 | J92: открыт | K92: открыт | L92: 53.030961707514 | M92: 39.0196577303286
A93: ПС 35/10 кВ Троекурово-совхозная | B93: 1970 | C93: 2,5+2,5 | D93: 1.7 | E93: 1.925 | F93: 1.262 | G93: 1.262 | H93: 0.663 | J93: открыт | K93: открыт | L93: 52.9775843443344 | M93: 38.9714056711296
A94: ПС 35/10 кВ Гагарино | B94: 1974 | C94: 1,8+1,8 | D94: 0.43 | E94: 1.89 | F94: 0.027 | G94: 0.027 | H94: 1.863 | J94: открыт | K94: открыт | L94: 53.3406829912947 | M94: 39.7029783935529
A95: ПС 35/10 кВ Раненбург | B95: 1975 | C95: 1,6+1,6 | D95: 2 | E95: 0 | F95: 0.387 | G95: 0.387 | H95: 0 | J95: открыт | K95: закрыт | L95: 53.2531596041981 | M95: 40.0064268005424
A96: ПС 35/10 кВ Сергиевка | B96: 1996 | C96: 2,5+2,5 | D96: 0.31 | E96: 2.625 | F96: 0.146 | G96: 0.146 | H96: 2.479 | J96: открыт | K96: открыт | L96: 53.0157198380114 | M96: 38.8455594472827
A97: ПС 35/10 кВ Дрезгалово | B97: 1976 | C97: 1,6+1,6 | D97: 0.72 | E97: 1.36 | F97: 0.023 | G97: 0.023 | H97: 1.337 | J97: открыт | K97: открыт | L97: 52.7643146500229 | M97: 38.793289112713
A98: ПС 35/10 кВ Долгое | B98: 1976 | C98: 2,5+2,5 | D98: 0.26 | E98: 2.365 | F98: 0.014 | G98: 0.014 | H98: 2.351 | J98: открыт | K98: открыт | L98: 53.4509742166288 | M98: 39.0888047559182
A99: ПС 35/10 кВ Воскресеновка | B99: 1975 | C99: 1,6+1,6 | D99: 0.45 | E99: 1.23 | F99: 0.03 | G99: 0.03 | H99: 1.2 | J99: открыт | K99: открыт | L99: 53.2004196568037 | M99: 38.727410939117
A100: ПС 35/10 кВ Сапрыкино | B100: 1977 | C100: 1,6+2,5 | D100: 0.53 | E100: 1.15 | F100: 0.104 | G100: 0.104 | H100: 1.046 | J100: открыт | K100: открыт | L100: 52.9811074026891 | M100: 38.7038874908454
A101: ПС 35/10 кВ Новополянье | B101: 1977 | C101: 2,5+2,5 | D101: 0.48 | E101: 2.145 | F101: 0.015 | G101: 0.015 | H101: 2.13 | J101: открыт | K101: открыт | L101: 53.1859482721752 | M101: 39.8280662503093
A102: ПС 35/10 кВ Ведное | B102: 1978 | C102: 2,5+2,5 | D102: 0.85 | E102: 2.075 | F102: 0.006 | G102: 0.006 | H102: 2.069 | J102: открыт | K102: открыт | L102: 53.4940158367293 | M102: 39.7902724025895
A103: ПС 35/10 кВ Бигильдино | B103: 1979 | C103: 2,5+2,5 | D103: 0.82 | E103: 2.155 | F103: 0.05 | G103: 0.05 | H103: 2.105 | J103: открыт | K103: открыт | L103: 53.3519436423209 | M103: 39.1501187748859
A104: ПС 35/10 кВ Культура | B104: 1979 | C104: 2,5+2,5 | D104: 0.94 | E104: 2.625 | F104: 0.267 | G104: 0.267 | H104: 2.358 | J104: открыт | K104: открыт | L104: 53.0316810906413 | M104: 39.4314408120338
A105: ПС 35/10 кВ Борятино | B105: 1980 | C105: 2,5+2,5 | D105: 0.43 | E105: 2.625 | F105: 0.009 | G105: 0.009 | H105: 2.616 | J105: открыт | K105: открыт | L105: 53.3393788396775 | M105: 38.7533467115582
A106: ПС 35/10 кВ Б.Попово | B106: 1980 | C106: 2,5+2,5 | D106: 1.46 | E106: 2.625 | F106: 0.124 | G106: 0.124 | H106: 2.501 | J106: открыт | K106: открыт | L106: 52.916084487414 | M106: 39.0961908900579
A107: ПС 35/10 кВ Б. Избищи | B107: 1983 | C107: 2,5+2,5 | D107: 1.38 | E107: 2.245 | F107: 0 | G107: 0 | H107: 2.245 | J107: открыт | K107: открыт | L107: 52.9490964512647 | M107: 39.3919282932421
A108: ПС 35/10 кВ Полибино | B108: 1985 | C108: 2,5+2,5 | D108: 0.29 | E108: 2.335 | F108: 0.055 | G108: 0.055 | H108: 2.28 | J108: открыт | K108: открыт | L108: 53.5135137151775 | M108: 38.9702229228205
A109: ПС 35/10 кВ Дубрава | B109: 1985 | C109: 2,5+2,5 | D109: 0.21 | E109: 2.415 | F109: 0.045 | G109: 0.045 | H109: 2.37 | J109: открыт | K109: открыт | L109: 52.8928343131534 | M109: 38.6261297295594
A110: ПС 35/10 кВ Хрущево | B110: 1987 | C110: 2,5+2,5 | D110: 0.49 | E110: 2.135 | F110: 0.014 | G110: 0.014 | H110: 2.121 | J110: открыт | K110: открыт | L110: 53.1316813316363 | M110: 38.9816199959201
A111: ПС 35/10 кВ Б. Верх | B111: 1988 | C111: 2,5+2,5 | D111: 0.5 | E111: 2.125 | F111: 0.022 | G111: 0.022 | H111: 2.103 | J111: открыт | K111: открыт | L111: 53.1094749372983 | M111: 38.756379163884
A112: ПС 35/10 кВ Головинщино | B112: 1988 | C112: 2,5+2,5 | D112: 0.8 | E112: 1.825 | F112: 0.025 | G112: 0.025 | H112: 1.8 | J112: открыт | K112: открыт | L112: 53.1969004192792 | M112: 39.6549530389204
A113: ПС 35/10 кВ Яблонево | B113: 1990 | C113: 2,5+2,5 | D113: 0.84 | E113: 1.785 | F113: 0.664 | G113: 0.664 | H113: 1.121 | J113: открыт | K113: открыт | L113: 52.8116913182408 | M113: 38.9226384642615
A114: ПС 35/10 кВ Политово | B114: 1991 | C114: 2,5+2,5 | D114: 0.87 | E114: 1.755 | F114: 0 | G114: 0 | H114: 1.755 | J114: открыт | K114: открыт | L114: 53.3503911725405 | M114: 38.9499536773673
A115: ПС 35/10 кВ Комплекс | B115: 2006 | C115: 4+4 | D115: 0.96 | E115: 4.2 | F115: 0 | G115: 0 | H115: 4.2 | J115: открыт | K115: открыт | L115: 53.2586983709845 | M115: 39.6135615121317
A116: ПС 35/10 кВ № 1 | B116: 1985 | C116: 4+4 | D116: 4.21 | E116: 0 | F116: 1.221 | G116: 1.221 | H116: 0 | I116: 2015 | J116: открыт | K116: закрыт | L116: 52.5414978240682 | M116: 39.7992414486201
A117: ПС 35/6 кВ № 2 | B117: 1954/2012 | C117: 2,5+1 | D117: 1.82 | E117: -0.77 | F117: 0.06 | G117: 0.06 | H117: 0 | J117: закрыт | K117: закрыт | L117: 52.6375642161791 | M117: 39.4930345241364
A118: ПС 35/10 кВ № 3 | B118: 1968 | C118: 2,5+2,5 | D118: 2.67 | E118: 0.725 | F118: 2.022 | G118: 2.022 | H118: 0 | J118: открыт | K118: закрыт | L118: 52.5803381210763 | M118: 39.3508334557333
A119: ПС 35/6 кВ № 4 | B119: 1953 | C119: 4+4 | D119: 4.21 | E119: 1.45 | F119: 0.217 | G119: 0.217 | H119: 1.233 | J119: открыт | K119: открыт | L119: 52.6873582365407 | M119: 39.4359861850541
A120: ПС 35/6 кВ Грязи-город | B120: 1966 | C120: 6,3+5,6 | D120: 3.69 | E120: 3.69 | F120: 0.416 | G120: 0.416 | H120: 3.274 | J120: открыт | K120: открыт | L120: 52.4818739864321 | M120: 39.9612398539912
A121: ПС 35/10 кВ Бутырки | B121: 1968/2012 | C121: 5,6+6,3 | D121: 5.94 | E121: 0.69 | F121: 6.032 | G121: 6.032 | H121: 0 | J121: открыт | K121: закрыт | L121: 52.6543188029843 | M121: 39.8023052543494
A122: ПС 35/10 кВ Ярлуково | B122: 1972 | C122: 3,2+4 | D122: 3.48 | E122: 0.24 | F122: 0.823 | G122: 0.823 | H122: 0 | J122: открыт | K122: закрыт | L122: 52.5484187694008 | M122: 39.8452222291569
A123: ПС 35/10 кВ Княжья Байгора | B123: 1975 | C123: 1,6+1,6 | D123: 0.44 | E123: 1.31 | F123: 0.079 | G123: 0.079 | H123: 1.231 | J123: открыт | K123: открыт | L123: 52.3457468031625 | M123: 40.0121396197755
A124: ПС 35/10 кВ Правда | B124: 1984 | C124: 4+2,5 | D124: 1.12 | E124: 1.505 | F124: 0.032 | G124: 0.032 | H124: 1.473 | J124: открыт | K124: открыт | L124: 52.4341652926498 | M124: 40.1378691012693
A125: ПС 35/10 кВ Красная Дубрава | B125: 1984 | C125: 2,5+2,5 | D125: 0.56 | E125: 2.295 | F125: 0.039 | G125: 0.039 | H125: 2.256 | J125: открыт | K125: открыт | L125: 52.3874909336884 | M125: 39.9144238332961
A126: ПС 35/10 кВ Матыра | B126: 1973 | C126: 4+3,2 | D126: 3.46 | E126: -0.1 | F126: 0.08 | G126: 0.08 | H126: 0 | J126: закрыт | K126: закрыт | L126: 52.545803807677 | M126: 39.7551952409661
A127: ПС 35/10 кВ Вперед | B127: 1973 | C127: 4+4 | D127: 0.84 | E127: 3.36 | F127: 0.062 | G127: 0.062 | H127: 3.298 | J127: открыт | K127: открыт | L127: 52.4607874887549 | M127: 40.0969424131759
A128: ПС 35/10 кВ Малей | B128: 1993 | C128: 4+2,5 | D128: 0.68 | E128: 2.145 | F128: 0.632 | G128: 0.632 | H128: 1.513 | J128: открыт | K128: открыт | L128: 52.5754592950912 | M128: 39.7900567545482
A129: ПС 35/10 кВ СХТ | B129: 1978 | C129: 2,5+1,6 | D129: 1.93 | E129: 0.39 | F129: 1.076 | G129: 1.076 | H129: 0 | I129: 2019 | J129: открыт | K129: закрыт | L129: 52.5158377828838 | M129: 39.9751340301161
A130: ПС 35/10 кВ Сошки | B130: 1988 | C130: 4+4 | D130: 0.67 | E130: 4 | F130: 0.091 | G130: 0.091 | H130: 3.909 | J130: открыт | K130: открыт | L130: 52.3427448591472 | M130: 39.7112365976393
A131: ПС 35/6 кВ Таволжанка | B131: 1995 | C131: 4+4 | D131: 5.23 | E131: -0.53 | F131: 1.045 | G131: 1.045 | H131: 0 | J131: закрыт | K131: закрыт | L131: 52.4927596353164 | M131: 39.9098858955515
A132: ПС 35/10 кВ Трубетчино | B132: 1965 | C132: 2,5+2,5 | D132: 1.57 | E132: 1.055 | F132: 0.127 | G132: 0.127 | H132: 0.928 | J132: открыт | K132: открыт | L132: 52.8914971844473 | M132: 39.5359369966189
A133: ПС 35/10 кВ Ратчино | B133: 1982 | C133: 2,5+2,5 | D133: 1.41 | E133: 1.215 | F133: 0.055 | G133: 0.055 | H133: 1.16 | J133: открыт | K133: открыт | L133: 53.0350468518422 | M133: 39.8588347938855
A134: ПС 35/10 кВ Каликино | B134: 1971 | C134: 3,2+3,2 | D134: 1.75 | E134: 1.61 | F134: 0.071 | G134: 0.071 | H134: 1.539 | J134: открыт | K134: открыт | L134: 52.9587565748467 | M134: 39.799968070966
A135: ПС 35/10 кВ Борисовка | B135: 1979 | C135: 4+2,5 | D135: 3.55 | E135: -0.925 | F135: 1.902 | G135: 1.902 | H135: 0 | J135: закрыт | K135: закрыт | L135: 52.8126299022544 | M135: 39.9064214820044
A136: ПС 35/10 кВ Введенка | B136: 1971 | C136: 4+4 | D136: 3.54 | E136: 0.66 | F136: 2.01 | G136: 2.01 | H136: 0 | J136: открыт | K136: закрыт | L136: 52.7344053494921 | M136: 39.6627663067305
A137: ПС 35/10 кВ Грязное | B137: 1976 | C137: 4+4 | D137: 1.44 | E137: 2.76 | F137: 1.415 | G137: 1.415 | H137: 1.345 | J137: открыт | K137: открыт | L137: 52.4104817421381 | M137: 39.4506066424625
A138: ПС 35/10 кВ Борино | B138: 1959 | C138: 4+4 | D138: 4.59 | E138: 0.53 | F138: 2.826 | G138: 2.826 | H138: 0 | I138: 2015 | J138: открыт | K138: закрыт | L138: 52.4688851455606 | M138: 39.3706795364844
A139: ПС 35/10 кВ Частая Дубрава | B139: 1974/2014 | C139: 4+4 | D139: 1.87 | E139: 3.88 | F139: 2.849 | G139: 2.849 | H139: 1.031 | J139: открыт | K139: открыт | L139: 52.5426961453674 | M139: 39.2772251118083
A140: ПС 35/10 кВ Троицкая | B140: 1974 | C140: 2,5+4 | D140: 2.72 | E140: -0.095 | F140: 0.76 | G140: 0.76 | H140: 0 | J140: закрыт | K140: закрыт | L140: 52.5010807530039 | M140: 39.5093375600795
A141: ПС 35/6 кВ Вешаловка | B141: 1978 | C141: 2,5+2,5 | D141: 0.79 | E141: 1.835 | F141: 0.209 | G141: 0.209 | H141: 1.626 | J141: открыт | K141: открыт | L141: 52.748680992023 | M141: 39.3005415791656
A142: ПС 35/10 кВ Пружинки | B142: 1986 | C142: 2,5+2,5 | D142: 0.74 | E142: 1.885 | F142: 0.088 | G142: 0.088 | H142: 1.797 | J142: открыт | K142: открыт | L142: 52.7222744417311 | M142: 39.1817700718053
A143: ПС 35/10 кВ Стебаево | B143: 1987 | C143: 2,5+2,5 | D143: 0.82 | E143: 2.155 | F143: 0.325 | G143: 0.325 | H143: 1.83 | J143: открыт | K143: открыт | L143: 52.4072426557147 | M143: 39.2453301833298
A144: ПС 35/10 кВ Хлебопродукты | B144: 1990 | C144: 6,3+6,3 | D144: 4.79 | E144: 2.575 | F144: 1.545 | G144: 1.545 | H144: 1.03 | J144: открыт | K144: открыт | L144: 52.545579153569 | M144: 39.4854557014233
A145: ПС 35/10 кВ Сенцово | B145: 1985 | C145: 10+10 | D145: 6.26 | E145: 4.5 | F145: 0.697 | G145: 0.697 | H145: 3.803 | J145: открыт | K145: открыт | L145: 52.6367313305411 | M145: 39.3627959314803
A146: ПС 35/10 кВ Мясокомбинат | B146: 1975 | C146: 6,3+6,3 | D146: 4.35 | E146: 4.02 | F146: 3.137 | G146: 3.137 | H146: 0.883 | J146: открыт | K146: открыт | L146: 52.5273298252285 | M146: 39.4929591213698
A147: ПС 35/6 кВ Птицефабрика | B147: 1972 | C147: 4+4 | D147: 1.43 | E147: 2.77 | F147: 0.985 | G147: 0.985 | H147: 1.785 | J147: открыт | K147: открыт | L147: 52.6682344198108 | M147: 39.4666664025028
A148: ПС 35/6 кВ Водозабор | B148: 1991 | C148: 10+10 | D148: 0.91 | E148: 9.59 | F148: 0.784 | G148: 0.784 | H148: 8.806 | J148: открыт | K148: открыт | L148: 52.6696732231267 | M148: 39.6924640594314
A149: ПС 35/10 кВ Петровская | B149: 1973 | C149: 2,5+4 | D149: 0.62 | E149: 2.235 | F149: 0.012 | G149: 0.012 | H149: 2.223 | J149: открыт | K149: открыт | L149: 52.247397841412 | M149: 40.6425386978674
A150: ПС 35/10 кВ Лебедянка | B150: 1960 | C150: 2,5+2,5 | D150: 0.68 | E150: 1.945 | F150: 0.58 | G150: 0.58 | H150: 1.365 | J150: открыт | K150: открыт | L150: 52.0106269469092 | M150: 40.3460443865573
A151: ПС 35/10 кВ Новочеркутино | B151: 1974 | C151: 4+4 | D151: 1.03 | E151: 3.37 | F151: 0 | G151: 0 | H151: 3.37 | J151: открыт | K151: открыт | L151: 52.3251006853863 | M151: 40.3971839960458
A152: ПС 35/10 кВ Ивановка | B152: 1978 | C152: 2,5+2,5 | D152: 1.02 | E152: 1.735 | F152: 0.055 | G152: 0.055 | H152: 1.68 | J152: открыт | K152: открыт | L152: 52.3215113508017 | M152: 40.2364965774938
A153: ПС 35/10 кВ Поддубровка | B153: 1980 | C153: 2,5+2,5 | D153: 1.45 | E153: 1.975 | F153: 0.208 | G153: 0.208 | H153: 1.767 | J153: открыт | K153: открыт | L153: 52.130016427507 | M153: 39.5445329049888
A154: ПС 35/10 кВ Плавица | B154: 1978 | C154: 1,6+1,6 | D154: 0.72 | E154: 1.12 | F154: 0.46 | G154: 0.46 | H154: 0.66 | J154: открыт | K154: открыт | L154: 52.2081364807742 | M154: 40.3364873897501
A155: ПС 35/10 кВ Паршиновка | B155: 1980 | C155: 1,6+2,5 | D155: 0.39 | E155: 1.29 | F155: 0.023 | G155: 0.023 | H155: 1.267 | J155: открыт | K155: открыт | L155: 51.9898167425167 | M155: 40.5289218790788
A156: ПС 35/10 кВ Талицкий Чамлык | B156: 1972 | C156: 3,2+4 | D156: 1.48 | E156: 2.46 | F156: 0.005 | G156: 0.005 | H156: 2.455 | J156: открыт | K156: открыт | L156: 52.0439033743599 | M156: 40.5372675731968
A157: ПС 35/10 кВ Демшинка | B157: 1991 | C157: 2,5+2,5 | D157: 0.46 | E157: 2.165 | F157: 0.3 | G157: 0.3 | H157: 1.865 | J157: открыт | K157: открыт | L157: 52.1004527224073 | M157: 40.3268325147014
A158: ПС 35/10 кВ Березняговка | B158: 1969 | C158: 1,6+1,6 | D158: 1.17 | E158: 1.15 | F158: 0.015 | G158: 0.015 | H158: 1.135 | J158: открыт | K158: открыт | L158: 52.1537308634375 | M158: 40.057713165357
A159: ПС 35/10 кВ Дмитриевка | B159: 1980 | C159: 2,5+2,5 | D159: 0.73 | E159: 2.055 | F159: 0.357 | G159: 0.357 | H159: 1.698 | J159: открыт | K159: открыт | L159: 52.2840116987414 | M159: 39.9273783914538
A160: ПС 35/10 кВ Пашково | B160: 1977 | C160: 2,5+2,5 | D160: 1.4 | E160: 2.155 | F160: 0.007 | G160: 0.007 | H160: 2.148 | J160: открыт | K160: открыт | L160: 51.9984701991785 | M160: 39.9631758452293
A161: ПС 35/10 кВ Московка | B161: 1988 | C161: 1,6+1,6 | D161: 1.17 | E161: 0.51 | F161: 0.041 | G161: 0.041 | H161: 0.469 | J161: открыт | K161: открыт | L161: 52.1512805175011 | M161: 39.6469840611373
A162: ПС 35/10 кВ Бочиновка | B162: 1993 | C162: 4+4 | D162: 2.76 | E162: 2.08 | F162: 0.38 | G162: 0.38 | H162: 1.7 | J162: открыт | K162: открыт | L162: 52.0551413061779 | M162: 39.7532913133045
A163: ПС 35/10 кВ Федоровка | B163: 1979 | C163: 2,5+2,5 | D163: 0.37 | E163: 2.635 | F163: 0.13 | G163: 0.13 | H163: 2.505 | J163: открыт | K163: открыт | L163: 52.1274504817887 | M163: 39.8994109690528
A164: ПС 35/10 кВ Куликово | B164: 1995 | C164: 2,5+2,5 | D164: 0.46 | E164: 2.475 | F164: 0.039 | G164: 0.039 | H164: 2.436 | J164: открыт | K164: открыт | L164: 52.225646885356 | M164: 39.5719961856667
A165: ПС 35/10 кВ Конь-Колодезь | B165: 1982 | C165: 2,5+2,5 | D165: 1.78 | E165: 0.845 | F165: 0.694 | G165: 0.694 | H165: 0.151 | J165: открыт | K165: открыт | L165: 52.1326751359102 | M165: 39.1631365481394
A166: ПС 35/10 кВ Дмитряшевка | B166: 1977 | C166: 2,5+2,5 | D166: 0.36 | E166: 2.265 | F166: 0.107 | G166: 0.107 | H166: 2.158 | J166: открыт | K166: открыт | L166: 52.1787923064093 | M166: 38.9486054891325
A167: ПС 35/10 кВ Речная | B167: 1983 | C167: 4+4 | D167: 1.18 | E167: 3.02 | F167: 0.078 | G167: 0.078 | H167: 2.942 | J167: открыт | K167: открыт | L167: 52.1402326449722 | M167: 39.0663753887138
A168: ПС 35/10 кВ Негачевка | B168: 1975 | C168: 2,5+2,5 | D168: 0.66 | E168: 1.965 | F168: 0.017 | G168: 0.017 | H168: 1.948 | J168: открыт | K168: открыт | L168: 52.0531094998947 | M168: 39.0248503065336
A169: ПС 35/10 кВ Карамышево | B169: 1999 | C169: 10+10 | D169: 0.88 | E169: 9.62 | F169: 0.133 | G169: 0.133 | H169: 9.487 | J169: открыт | K169: открыт | L169: 52.3617974233206 | M169: 39.4997193751989
A170: ПС 35/10 кВ Тюшевка | B170: 1982 | C170: 4+4 | D170: 1.08 | E170: 3.12 | F170: 0.05 | G170: 0.05 | H170: 3.07 | J170: открыт | K170: открыт | L170: 52.7597199639299 | M170: 39.4990373170864
A171: ПС 35/10 кВ Сселки | B171: 2009 | C171: 10+10 | D171: 2.44 | E171: 8.06 | F171: 4.37 | G171: 4.37 | H171: 3.69 | J171: открыт | K171: открыт | L171: 52.6626787329002 | M171: 39.7375784085889
A172: ПС 110/35/10 кВ Тербуны-110 | B172: 1973 | C172: 10+10 | D172: 10.83 | E172: 0.67 | F172: 1.706 | G172: 1.706 | H172: 0 | J172: открыт | K172: закрыт | L172: 52.1515299155489 | M172: 38.3052643217394
A173: ПС 110/35/10 кВ Долгоруково | B173: 1970 | C173: 6,3+10 | D173: 8.51 | E173: 1.605 | F173: 1.445 | G173: 1.445 | H173: 0.16 | J173: открыт | K173: открыт | L173: 52.3046328371681 | M173: 38.365686084183
A174: ПС 110/35/10 кВ Волово | B174: 1993 | C174: 10+10 | D174: 3.15 | E174: 7.85 | F174: 1.305 | G174: 1.305 | H174: 6.545 | J174: открыт | K174: открыт | L174: 52.0329257634473 | M174: 37.879796475825
A175: ПС 110/35/10 кВ Измалково | B175: 1980 | C175: 10+10 | D175: 6.46 | E175: 5.34 | F175: 2.742 | G175: 2.742 | H175: 2.598 | J175: открыт | K175: открыт | L175: 52.6874343348974 | M175: 37.9767444800384
A176: ПС 110/35/10 кВ Гороховская | B176: 1974 | C176: 16+16 | D176: 13.89 | E176: 5.01 | F176: 3.469 | G176: 3.469 | H176: 1.541 | J176: открыт | K176: открыт | L176: 52.3834207439759 | M176: 38.9552059392968
A177: ПС 110/35/10 кВ Донская | B177: 1966 | C177: 10+10 | D177: 4.94 | E177: 7.1 | F177: 1.505 | G177: 1.505 | H177: 6.024 | J177: открыт | K177: открыт | L177: 52.6089936424621 | M177: 38.9801263936986
A178: ПС 110/35/10 кВ Лебедянь | B178: 1964 | C178: 16+16 | D178: 15.87 | E178: 13.45 | F178: 4.966 | G178: 4.966 | H178: 8.484 | J178: открыт | K178: открыт | L178: 53.0061621574824 | M178: 39.1061476435234
A179: ПС 110/35/10 кВ Чаплыгин-новая | B179: 1996 | C179: 16+16 | D179: 10.41 | E179: 9.56 | F179: 0.186 | G179: 0.186 | H179: 9.374 | J179: открыт | K179: открыт | L179: 53.228548925315 | M179: 39.9297119863202
A180: ПС 110/35/10 кВ Компрессорная | B180: 1981 | C180: 16+16 | D180: 6.5 | E180: 14.3 | F180: 6.184 | G180: 6.184 | H180: 8.116 | J180: открыт | K180: открыт | L180: 53.1970435830594 | M180: 40.0028284814397
A181: ПС 110/35/10 кВ Россия | B181: 1981 | C181: 16+16 | D181: 6.12 | E181: 16.11 | F181: 3.408 | G181: 3.408 | H181: 12.702 | J181: открыт | K181: открыт | L181: 52.8602564444447 | M181: 38.7026556815198
A182: ПС 110/35/10 кВ Березовка | B182: 1983 | C182: 16+10 | D182: 2.64 | E182: 9.91 | F182: 0.158 | G182: 0.158 | H182: 9.752 | J182: открыт | K182: открыт | L182: 53.4338338986065 | M182: 38.8847558863036
A183: ПС 110/35/10 кВ Астапово | B183: 1986 | C183: 16+16 | D183: 12.32 | E183: 16.04 | F183: 2.692 | G183: 2.692 | H183: 13.348 | J183: открыт | K183: открыт | L183: 53.2110028557221 | M183: 39.4782269130365
A184: ПС 110/35/10 кВ Химическая | B184: 1986 | C184: 16+16 | D184: 8.94 | E184: 14.44 | F184: 7.905 | G184: 7.905 | H184: 6.535 | J184: открыт | K184: открыт | L184: 53.2452784722464 | M184: 39.1909623696903
A185: ПС 110/35/6 кВ Бугор | B185: 1934/2012 | C185: 63+63 | D185: 22.96 | E185: 42.19 | F185: 17.152 | G185: 17.152 | H185: 25.038 | J185: открыт | K185: открыт | L185: 52.5910593450283 | M185: 39.5593254828985
A186: ПС 110/35/6 кВ Цементная | B186: 1963/2012 | C186: 40+32+63 | D186: 37.83 | E186: 29.44 | F186: 23.5115 | G186: 23.5115 | H186: 8.2845 | J186: открыт | K186: открыт | L186: 52.6563746002173 | M186: 39.6356523120047
A187: ПС 110/10/6 кВ Т-1, Т-2 Гидрооборудование | B187: 1976 | C187: 25+25 | D187: 6.82 | E187: 9.935 | F187: 0.73 | G187: 0.73 | H187: 9.736 | J187: открыт | K187: открыт | L187: 52.4759051273509 | M187: 39.9352672866921
A188: ПС 110/35 кВ Т-3 Гидрооборудование | B188: 1976 | C188: 31.5 | D188: 7.25 | E188: -1.75 | F188: 0.4355 | G188: 0.4355 | H188: 0 | J188: открыт | K188: закрыт
A189: ПС 110/35/10 кВ Усмань | B189: 1954 | C189: 16+16 | D189: 14.19 | E189: 6.81 | F189: 1.489 | G189: 1.489 | H189: 5.321 | J189: открыт | K189: открыт | L189: 52.0700777242178 | M189: 39.7039397457518
A190: ПС 110/35/10 кВ Аксай | B190: 1984 | C190: 10+10 | D190: 3.14 | E190: 8.15 | F190: 0.7535 | G190: 0.7535 | H190: 7.6665 | J190: открыт | K190: открыт | L190: 52.2750068766476 | M190: 39.7738448060333
A191: ПС 110/35/10 кВ Никольская | B191: 1976 | C191: 6,3+6,3 | D191: 5.35 | E191: 3.015 | F191: 0.46 | G191: 0.46 | H191: 2.555 | J191: открыт | K191: открыт | L191: 52.1029292053373 | M191: 39.7345486735108
A192: ПС 110/35/10 кВ Хворостянка | B192: 1976 | C192: 10+16 | D192: 10.7 | E192: 1 | F192: 2.361 | G192: 2.361 | H192: 0 | J192: открыт | K192: закрыт | L192: 52.3217576254476 | M192: 40.2489701837281
A193: ПС 110/35/10 кВ Добринка | B193: 1976 | C193: 16+10 | D193: 10.35 | E193: 2.65 | F193: 0.771 | G193: 0.771 | H193: 1.879 | J193: открыт | K193: открыт | L193: 52.1706893483561 | M193: 40.4441556865811
A194: ПС 110/35/10 кВ Верхняя Матренка | B194: 1977 | C194: 6,3+6,3 | D194: 2.24 | E194: 5.175 | F194: 0.554 | G194: 0.554 | H194: 4.621 | J194: открыт | K194: открыт | L194: 52.0486067901387 | M194: 40.1657296205465
A195: ПС 110/35/10 кВ Казинка | B195: 1979 | C195: 16+16 | D195: 18.21 | E195: 4.95 | F195: 6.1405 | G195: 6.1405 | H195: 0 | J195: открыт | K195: закрыт | L195: 52.5278730990253 | M195: 39.8076857831775
A196: ПС 110/35/10 кВ Доброе | B196: 1983 | C196: 16+16 | D196: 11.91 | E196: 7.89 | F196: 4.887 | G196: 4.887 | H196: 3.003 | J196: открыт | K196: открыт | L196: 52.8432798512822 | M196: 39.7955231595461
A197: ПС 110/35/6 кВ Новая Деревня | B197: 1973 | C197: 10+6,3 | D197: 8.34 | E197: 0.965 | F197: 1.4305 | G197: 1.4305 | H197: 0 | I197: 2014 | J197: открыт | K197: закрыт | L197: 52.737417118238 | M197: 39.415152267449
A198: ПС 110/35/6 кВ Вербилово | B198: 1978 | C198: 10+6,3 | D198: 3.53 | E198: 3.89 | F198: 1.802 | G198: 1.802 | H198: 2.088 | J198: открыт | K198: открыт | L198: 52.3083753749925 | M198: 39.3767132900328
A199: ПС 110/35/10 кВ Хлевное | B199: 1981 | C199: 16+16 | D199: 13.87 | E199: 5.43 | F199: 5.6 | G199: 5.6 | H199: 0 | J199: открыт | K199: закрыт | L199: 52.1752847129628 | M199: 39.1083237793929
A200: ПС 110/35/10 кВ Набережное | B200: 1973 | C200: 6,3+10 | D200: 3.31 | E200: 4.51 | F200: 0.231 | G200: 0.231 | H200: 4.279 | J200: открыт | K200: открыт | L200: 51.984302952947 | M200: 38.1191689789719
A201: ПС 110/35/10 кВ Троекурово | B201: 1998 | C201: 10+6,3 | D201: 1.67 | E201: 6.62 | F201: 0.026 | G201: 0.026 | H201: 6.594 | J201: открыт | K201: открыт | L201: 53.4096287002666 | M201: 39.6929801549621
A204: *Данная вкладка является дублирующей вкладкой "Итоговая" и приведена в ОЗНАКОМИТЕЛЬНЫХ (вспомогательных) целях так как является приложением к программе по графическому и цветовому отображению подстанций на местности. Текущий и перспективный статус подстанций может отличаться от статуса подстанций во вкладе "Итоговая".

Sheet Свод тек. дефицит
A1: Перечень закрытых центров питания ОАО "МРСК Центра" по итогам зимнего замера максимума нагрузки 2013 г. (текущий дефицит мощности).
A2: № п/п | B2: Наименование объекта центра питания, класс напряжения | C2: Установленная мощность трансформаторов Sуст. с указанием их количества, шт/ МВА | E2: Текущий дефицит
A3: Липецкэнерго
A4: 1 | B4: ПС 110/10 кВ Двуречки | C4: 6.3 | D4: 6.3 | E4: -1.88
A5: 2 | B5: ПС 35/10 кВ Кр.Пальна | C5: 3.2 | D5: 3.2 | E5: -0.26
A6: 3 | B6: ПС 35/10 кВ Каменка | C6: 2.5 | D6: 2.5 | E6: -0.64
A7: 4 | B7: ПС 35/10 кВ Красотыновка | C7: 2.5 | D7: 2.5 | E7: -0.41
A8: 5 | B8: ПС 35/10 кВ Панкратовка | C8: 2.5 | D8: 2.5 | E8: -0.49
A9: 6 | B9: ПС 35/10 кВ Яковлево | C9: 2.5 | D9: 2.5 | E9: -0.84
A10: 7 | B10: ПС 35/10 кВ Первомайская | C10: 2.5 | D10: 2.5 | E10: -0.28
A11: 8 | B11: ПС 35/10 кВ Знаменка | C11: 2.5 | D11: 2.5 | E11: -0.69
A12: 9 | B12: ПС 35/10 кВ Пиково | C12: 2.5 | D12: 2.5 | E12: -0.61
A13: 10 | B13: ПС 35/10 кВ Песковатка | C13: 1.6 | D13: 1.6 | E13: -0.34
A14: 11 | B14: ПС 35/6 кВ Новониколаевка | C14: 4 | D14: 4 | E14: -0.72
A15: 12 | B15: ПС 35/10 кВ Синдякино | C15: 2.5 | D15: 2.5 | E15: -0.22
A16: 13 | B16: ПС 35/10 кВ Курино | C16: 2.5 | D16: 2.5 | E16: -0.5
A17: 14 | B17: ПС 35/10 кВ Новодубовое | C17: 2.5 | D17: 2.5 | E17: -1.46
A18: 15 | B18: ПС 110/10 кВ Ирито | C18: 25 | D18: 25 | E18: -2.4
A19: 16 | B19: ПС 35/6 кВ № 2 | C19: 2,5+1 | D19: 3.5 | E19: -0.77
A20: 17 | B20: ПС 35/10 кВ Матыра | C20: 4+3,2 | D20: 7.2 | E20: -0.1
A21: 18 | B21: ПС 35/6 кВ Таволжанка | C21: 4+4 | D21: =4+4 -> 8 | E21: -0.53
A22: 19 | B22: ПС 35/10 кВ Борисовка | C22: 4+2,5 | D22: 6.5 | E22: -0.93
A23: 20 | B23: ПС 35/10 кВ Троицкая | C23: 2,5+4 | D23: 6.5 | E23: -0.1
A24: 21 | B24: ПС 110/35 кВ Т-3 Гидрооборудование | C24: 31.5 | D24: 31.5 | E24: -1.75
A25: Итого текущий дефицит (зима) | C25: =SUM(D4:D24) -> 128.3 | E25: =SUM(E4:E24) -> -15.92

Sheet Свод ожид. дефицит
A1: Перечень закрытых центров питания ОАО "МРСК Центра" по итогам зимнего замера максимума нагрузки 2013 г. (ожидаемый дефицит мощности).
A2: № п/п | B2: Наименование объекта центра питания, класс напряжения | C2: Установленная мощность трансформаторов Sуст. с указанием их количества, шт/ МВА | E2: Ожидаемый дефицит
A3: Липецкэнерго
A4: 1 | B4: ПС 110/10кВ Лев Толстой | C4: 10 | D4: 10 | E4: -0.24
A5: 2 | B5: ПС 110/10 кВ Двуречки | C5: 6.3 | D5: 6.3 | E5: -2.78
A6: 3 | B6: ПС 35/10 кВ Кр.Пальна | C6: 3.2 | D6: 3.2 | E6: -0.81
A7: 4 | B7: ПС 35/10 кВ Каменка | C7: 2.5 | D7: 2.5 | E7: -0.76
A8: 5 | B8: ПС 35/10 кВ Красотыновка | C8: 2.5 | D8: 2.5 | E8: -0.95
A9: 6 | B9: ПС 35/10 кВ Панкратовка | C9: 2.5 | D9: 2.5 | E9: -0.54
A10: 7 | B10: ПС 35/10 кВ Яковлево | C10: 2.5 | D10: 2.5 | E10: -1.3
A11: 8 | B11: ПС 35/10 кВ Первомайская | C11: 2.5 | D11: 2.5 | E11: -0.29
A12: 9 | B12: ПС 35/10 кВ Знаменка | C12: 2.5 | D12: 2.5 | E12: -0.69
A13: 10 | B13: ПС 35/10 кВ Пиково | C13: 2.5 | D13: 2.5 | E13: -0.66
A14: 11 | B14: ПС 35/10 кВ Песковатка | C14: 1.6 | D14: 1.6 | E14: -0.34
A15: 12 | B15: ПС 35/6 кВ Новониколаевка | C15: 4 | D15: 4 | E15: -0.73
A16: 13 | B16: ПС 35/10 кВ Синдякино | C16: 2.5 | D16: 2.5 | E16: -0.36
A17: 14 | B17: ПС 35/10 кВ Курино | C17: 2.5 | D17: 2.5 | E17: -1.93
A18: 15 | B18: ПС 35/10 кВ Новодубовое | C18: 2.5 | D18: 2.5 | E18: -1.47
A19: 16 | B19: ПС 110/10 кВ Ирито | C19: 25 | D19: 25 | E19: -22.4
A20: 17 | B20: ПС 110/10 кВ Кашары | C20: 2,5+6,3 | D20: =2.5+6.3 -> 8.8 | E20: -0.39
A21: 18 | B21: ПС 110/10 кВ Университетская | C21: 40+40 | D21: =40+40 -> 80 | E21: -6.04
A22: 19 | B22: ПС 35/10 кВ Плоское | C22: 4+4 | D22: =4+4 -> 8 | E22: -0.5
A23: 20 | B23: ПС 35/10 кВ Раненбург | C23: 1,6+1,6 | D23: =1.6+1.6 -> 3.2 | E23: -0.41
A24: 21 | B24: ПС 35/10 кВ № 1 | C24: 4+4 | D24: =4+4 -> 8 | E24: -1.23
A25: 22 | B25: ПС 35/6 кВ № 2 | C25: 2,5+1 | D25: =2.5+1 -> 3.5 | E25: -0.83
A26: 23 | B26: ПС 35/10 кВ № 3 | C26: 2,5+2,5 | D26: =2.5+2.5 -> 5 | E26: -1.3
A27: 24 | B27: ПС 35/10 кВ Бутырки | C27: 5,6+6,3 | D27: =5.6+6.3 -> 11.9 | E27: -5.34
A28: 25 | B28: ПС 35/10 кВ Ярлуково | C28: 3,2+4 | D28: =3.2+4 -> 7.2 | E28: -0.58
A29: 26 | B29: ПС 35/10 кВ Матыра | C29: 4+3,2 | D29: =4+3.2 -> 7.2 | E29: -0.18
A30: 27 | B30: ПС 35/10 кВ СХТ | C30: 2,5+1,6 | D30: =2.5+1.6 -> 4.1 | E30: -0.69
A31: 28 | B31: ПС 35/6 кВ Таволжанка | C31: 4+4 | D31: =4+4 -> 8 | E31: -1.58
A32: 29 | B32: ПС 35/10 кВ Борисовка | C32: 4+2,5 | D32: =4+2.5 -> 6.5 | E32: -2.83
A33: 30 | B33: ПС 35/10 кВ Введенка | C33: 4+4 | D33: =4+4 -> 8 | E33: -1.35
A34: 31 | B34: ПС 35/10 кВ Борино | C34: 4+4 | D34: =4+4 -> 8 | E34: -2.3
A35: 32 | B35: ПС 35/10 кВ Троицкая | C35: 2,5+4 | D35: =2.5+4 -> 6.5 | E35: -0.86
A36: 33 | B36: ПС 110/35/10 кВ Тербуны-110 | C36: 10+10 | D36: =10+10 -> 20 | E36: -1.04
B37: Ном. Мощность СН, МВА | C37: 10+10
B38: Ном. мощность НН, МВА | C38: 10+10
A39: 34 | B39: ПС 110/35 кВ Т-3 Гидрооборудование | C39: 31.5 | D39: 31.5 | E39: -2.19
A40: 35 | B40: ПС 110/35/10 кВ Хворостянка | C40: 10+16 | D40: =10+16 -> 26 | E40: -1.36
B41: Ном. Мощность СН, МВА | C41: 10+16
B42: Ном. мощность НН, МВА | C42: 10+16
A43: 36 | B43: ПС 110/35/10 кВ Казинка | C43: 16+16 | D43: =16+16 -> 32 | E43: -1.19
B44: Ном. Мощность СН, МВА | C44: 16+16
B45: Ном. мощность НН, МВА | C45: 16+16
A46: 37 | B46: ПС 110/35/6 кВ Новая Деревня | C46: 10+6,3 | D46: =10+6.3 -> 16.3 | E46: -0.29
B47: Ном. Мощность СН, МВА | C47: 10+6,3
B48: Ном. мощность НН, МВА | C48: 10+6,3
A49: 38 | B49: ПС 110/35/10 кВ Хлевное | C49: 16+16 | D49: =16+16 -> 32 | E49: -0.17
B50: Ном. Мощность СН, МВА | C50: 16+16
B51: Ном. мощность НН, МВА | C51: 16+16
A52: Итого ожидаемый дефицит (зима) | C52: =SUM(D4:D51) -> 416.8 | E52: =SUM(E4:E51) -> -68.9

Sheet Информация ТП
A1: Сведения о наличии свободной для технологического присоединения потребителей трансформаторной мощности с указанием текущего объема свободной мощности по центрам питания ниже 35 кВ филиала ОАО "МРСК Центра" - "Липецкэнерго" за 2-й квартал 2013 года
A2: Населенный пункт | B2: Район субъекта РФ | C2: Наименование РЭС | D2: Наименование объекта (№ ТП) | E2: Эксплуатирующая организация | F2: Собственник | G2: Тип объекта, класс напряжения | H2: Установленная мощность и кол-во трансформаторов, кВА | I2: Свободная полная трансформаторная мощность для технологического присоединения потребителей по результатам замера максимума нагрузки, кВА | J2: Диспетчерский номер объекта ТМ в системе SAP/R3 | K2: Год ввода в эксплуатацию | L2: Тип потребления
A3: с. Васильевка | B3: Воловский | C3: Воловский РЭС | D3: КТП-10кВ 63 кВА №В-283 Васильевка | E3: Филиал ОАО "МРСК-Центра" - "Липецкэнерго" | F3: Филиал ОАО "МРСК-Центра" - "Липецкэнерго" | G3: ТП 10кВ | H3: 63,00 кВА | I3: 58 | J3: TP010-0030661 | K3: 2004-01-01 | L3: Электроснабжение
A4: с. Васильевка | B4: Воловский | C4: Воловский РЭС | D4: КТП-10кВ 100 кВА №В-282 Васильевка | E4: Филиал ОАО "МРСК-Центра" - "Липецкэнерго" | F4: Филиал ОАО "МРСК-Центра" - "Липецкэнерго" | G4: ТП 10кВ | H4: 100,00 кВА | I4: 89 | J4: TP010-0031039 | K4: 2004-01-01 | L4: Электроснабжение
A5: с. Васильевка | B5: Воловский | C5: Воловский РЭС | D5: КТП-10кВ 63 кВА №В-281 Васильевка | E5: Филиал ОАО "МРСК-Центра" - "Липецкэнерго" | F5: Филиал ОАО "МРСК-Центра" - "Липецкэнерго" | G5: ТП 10кВ | H5: 63,00 кВА | I5: 60 | J5: TP010-0031048 | K5: 2004-01-01 | L5: Электроснабжение
A6: с. Васильевка | B6: Воловский | C6: Воловский РЭС | D6: КТП-10кВ 250 кВА №В-280 Васильевка | E6: Филиал ОАО "МРСК-Центра" - "Липецкэнерго" | F6: Филиал ОАО "МРСК-Центра" - "Липецкэнерго" | G6: ТП 10кВ | H6: 250,00 кВА | I6: 238 | J6: TP010-0032535 | K6: 2004-01-01 | L6: Электроснабжение
A7: с. Набережное | B7: Воловский | C7: Воловский РЭС | D7: КТП-10кВ 63 кВА №В-361 Набережное | E7: Филиал ОАО "МРСК-Центра" - "Липецкэнерго" | F7: Филиал ОАО "МРСК-Центра" - "Липецкэнерго" | G7: ТП 10кВ | H7: 63,00 кВА | I7: 40 | J7: TP010-0032536 | K7: 2003-01-01 | L7: Электроснабжение
A8: д. Семеновка | B8: Воловский | C8: Воловский РЭС | D8: КТП-10кВ 63 кВА №В-360 Семеновка | E8: Филиал ОАО "МРСК-Центра" - "Липецкэнерго" | F8: Филиал ОАО "МРСК-Центра" - "Липецкэнерго" | G8: ТП 10кВ | H8: 63,00 кВА | I8: 56 | J8: TP010-0032543 | K8: 1985-01-01 | L8: Электроснабжение
A9: д. Княжное | B9: Воловский | C9: Воловский РЭС | D9: КТП-10кВ 40 кВА №В-359 Княжное | E9: Филиал ОАО "МРСК-Центра" - "Липецкэнерго" | F9: Филиал ОАО "МРСК-Центра" - "Липецкэнерго" | G9: ТП 10кВ | H9: 40,00 кВА | I9: 28 | J9: TP010-0032551 | K9: 1994-01-01 | L9: Электроснабжение
A10: д. Грачевка | B10: Воловский | C10: Воловский РЭС | D10: КТП-10кВ 63 кВА №В-355 Грачевка | E10: Филиал ОАО "МРСК-Центра" - "Липецкэнерго" | F10: Филиал ОАО "МРСК-Центра" - "Липецкэнерго" | G10: ТП 10кВ | H10: 63,00 кВА | I10: 57 | J10: TP010-0032553 | K10: 1995-01-01 | L10: Электроснабжение
A11: д. Семеновка | B11: Воловский | C11: Воловский РЭС | D11: КТП-10кВ 250 кВА №В-350 Семеновка | E11: Филиал ОАО "МРСК-Центра" - "Липецкэнерго" | F11: Филиал ОАО "МРСК-Центра" - "Липецкэнерго" | G11: ТП 10кВ | H11: 250,00 кВА | I11: 223 | J11: TP010-0032555 | K11: 1969-01-01 | L11: Электроснабжение
A12: с. Коломенец | B12: Воловский | C12: Воловский РЭС | D12: КТП-10кВ 400 кВА №В-349 Коломенец | E12: Филиал ОАО "МРСК-Центра" - "Липецкэнерго" | F12: Филиал ОАО "МРСК-Центра" - "Липецкэнерго" | G12: ТП 10кВ | H12: 400,00 кВА | I12: 395 | J12: TP010-0032557 | K12: 1970-01-01 | L12: Электроснабжение
A13: с. Васильевка | B13: Воловский | C13: Воловский РЭС | D13: КТП-10кВ 100 кВА №В-284 Васильевка | E13: Филиал ОАО "МРСК-Центра" - "Липецкэнерго" | F13: Филиал ОАО "МРСК-Центра" - "Липецкэнерго" | G13: ТП 10кВ | H13: 100,00 кВА | I13: 83 | J13: TP010-0032570 | K13: 2004-01-01 | L13: Электроснабжение
A14: с. Набережное | B14: Воловский | C14: Воловский РЭС | D14: КТП-10кВ 40 кВА №В-308 Набережное | E14: Филиал ОАО "МРСК-Центра" - "Липецкэнерго" | F14: Филиал ОАО "МРСК-Центра" - "Липецкэнерго" | G14: ТП 10кВ | H14: 40,00 кВА | I14: 27 | J14: TP010-0032577 | K14: 2003-01-01 | L14: Электроснабжение
A15: с. Набережное | B15: Воловский | C15: Воловский РЭС | D15: КТП-10кВ 160 кВА №В-307 Набережное | E15: Филиал ОАО "МРСК-Центра" - "Липецкэнерго" | F15: Филиал ОАО "МРСК-Центра" - "Липецкэнерго" | G15: ТП 10кВ | H15: 160,00 кВА | I15: 119 | J15: TP010-0032580 | K15: 1994-01-01 | L15: Электроснабжение
A16: с. Набережное | B16: Воловский | C16: Воловский РЭС | D16: КТП-10кВ 160 кВА №В-305 Набережное | E16: Филиал ОАО "МРСК-Центра" - "Липецкэнерго" | F16: Филиал ОАО "МРСК-Центра" - "Липецкэнерго" | G16: ТП 10кВ | H16: 160,00 кВА | I16: 122 | J16: TP010-0032581 | K16: 2003-01-01 | L16: Электроснабжение
A17: с. Набережное | B17: Воловский | C17: Воловский РЭС | D17: КТП-10кВ 250 кВА №В-304 Набережное | E17: Филиал ОАО "МРСК-Центра" - "Липецкэнерго" | F17: Филиал ОАО "МРСК-Центра" - "Липецкэнерго" | G17: ТП 10кВ | H17: 250,00 кВА | I17: 235 | J17: TP010-0032582 | K17: 1969-01-01 | L17: Электроснабжение
A18: с. Набережное | B18: Воловский | C18: Воловский РЭС | D18: КТП-10кВ 250 кВА №В-302 Набережное | E18: Филиал ОАО "МРСК-Центра" - "Липецкэнерго" | F18: Филиал ОАО "МРСК-Центра" - "Липецкэнерго" | G18: ТП 10кВ | H18: 250,00 кВА | I18: 190 | J18: TP010-0032584 | K18: 1999-01-01 | L18: Электроснабжение
A19: д. Воздвиженка | B19: Воловский | C19: Воловский РЭС | D19: КТП-10кВ 250 кВА №В-298 Воздвиженка | E19: Филиал ОАО "МРСК-Центра" - "Липецкэнерго" | F19: Филиал ОАО "МРСК-Центра" - "Липецкэнерго" | G19: ТП 10кВ | H19: 250,00 кВА | I19: 222 | J19: TP010-0032592 | K19: 1994-01-01 | L19: Электроснабжение
A20: д. Литвиновка | B20: Воловский | C20: Воловский РЭС | D20: КТП-10кВ 160 кВА №В-295 Литвиновка | E20: Филиал ОАО "МРСК-Центра" - "Липецкэнерго" | F20: Филиал ОАО "МРСК-Центра" - "Липецкэнерго" | G20: ТП 10кВ | H20: 160,00 кВА | I20: 139 | J20: TP010-0032596 | K20: 1989-01-01 | L20: Электроснабжение
A21: с. Липовец | B21: Воловский | C21: Воловский РЭС | D21: КТП-10кВ 60 кВА №В-240 Липовец | E21: Филиал ОАО "МРСК-Центра" - "Липецкэнерго" | F21: Филиал ОАО "МРСК-Центра" - "Липецкэнерго" | G21: ТП 10кВ | H21: 60,00 кВА | I21: 54 | J21: TP010-0032605 | K21: 1985-01-01 | L21: Электроснабжение
A22: с. Гатище | B22: Воловский | C22: Воловский РЭС | D22: КТП-10кВ 63 кВА №В-002 Гатище | E22: Филиал ОАО "МРСК-Центра" - "Липецкэнерго" | F22: Филиал ОАО "МРСК-Центра" - "Липецкэнерго" | G22: ТП 10кВ | H22: 63,00 кВА | I22: 45 | J22: TP010-0032768 | K22: 1982-01-01 | L22: Электроснабжение
A23: с. Волово | B23: Воловский | C23: Воловский РЭС | D23: СТП-10кВ 40 кВА №В-154 Волово | E23: Филиал ОАО "МРСК-Центра" - "Липецкэнерго" | F23: Филиал ОАО "МРСК-Центра" - "Липецкэнерго" | G23: ТП 10кВ | H23: 40,00 кВА | I23: 40 | J23: TP010-0032774 | K23: 2011-01-31 | L23: Электроснабжение
A24: с. Н. Чесночное | B24: Воловский | C24: Воловский РЭС | D24: КТП-10кВ 250 кВА №В-255 Чесночное | E24: Филиал ОАО "МРСК-Центра" - "Липецкэнерго" | F24: Филиал ОАО "МРСК-Центра" - "Липецкэнерго" | G24: ТП 10кВ | H24: 400,00 кВА | I24: 350 | J24: TP010-0032776 | K24: 1978-01-01 | L24: Электроснабжение
A25: с. Димитрово | B25: Воловский | C25: Воловский РЭС | D25: ЗТП-10кВ 400 кВА №В-267 Димитрово | E25: Филиал ОАО "МРСК-Центра" - "Липецкэнерго" | F25: Филиал ОАО "МРСК-Центра" - "Липецкэнерго" | G25: ТП 10кВ | H25: 400,00 кВА | I25: 378 | J25: TP010-0032780 | K25: 1980-01-01 | L25: Электроснабжение
A26: с. Гатище | B26: Воловский | C26: Воловский РЭС | D26: КТП-10кВ 100 кВА №В-004 Гатище | E26: Филиал ОАО "МРСК-Центра" - "Липецкэнерго" | F26: Филиал ОАО "МРСК-Центра" - "Липецкэнерго" | G26: ТП 10кВ | H26: 100,00 кВА | I26: 85 | J26: TP010-0032786 | K26: 1982-01-01 | L26: Электроснабжение
A27: с. Гатище | B27: Воловский | C27: Воловский РЭС | D27: КТП-10кВ 25 кВА №В-005 Гатище | E27: Филиал ОАО "МРСК-Центра" - "Липецкэнерго" | F27: Филиал ОАО "МРСК-Центра" - "Липецкэнерго" | G27: ТП 10кВ | H27: 25,00 кВА | I27: 25 | J27: TP010-0032790 | K27: 1969-01-01 | L27: Электроснабжение
A28: с. Пикалово | B28: Воловский | C28: Воловский РЭС | D28: КТП-10кВ 250 кВА №В-007 Пикалово | E28: Филиал ОАО "МРСК-Центра" - "Липецкэнерго" | F28: Филиал ОАО "МРСК-Центра" - "Липецкэнерго" | G28: ТП 10кВ | H28: 250,00 кВА | I28: 203 | J28: TP010-0032791 | K28: 1982-01-01 | L28: Электроснабжение
A29: с. Пикалово | B29: Воловский | C29: Воловский РЭС | D29: КТП-10кВ 160 кВА №В-008 Пикалово | E29: Филиал ОАО "МРСК-Центра" - "Липецкэнерго" | F29: Филиал ОАО "МРСК-Центра" - "Липецкэнерго" | G29: ТП 10кВ | H29: 160,00 кВА | I29: 146 | J29: TP010-0032795 | K29: 1982-01-01 | L29: Электроснабжение
A30: с. Гатище | B30: Воловский | C30: Воловский РЭС | D30: КТП-10кВ 250 кВА №В-010 Гатище | E30: Филиал ОАО "МРСК-Центра" - "Липецкэнерго" | F30: Филиал ОАО "МРСК-Центра" - "Липецкэнерго" | G30: ТП 10кВ | H30: 250,00 кВА | I30: 210 | J30: TP010-0032798 | K30: 1980-01-01 | L30: Электроснабжение
A31: с. Гатище | B31: Воловский | C31: Воловский РЭС | D31: КТП-10кВ 63 кВА №В-011 Гатище | E31: Филиал ОАО "МРСК-Центра" - "Липецкэнерго" | F31: Филиал ОАО "МРСК-Центра" - "Липецкэнерго" | G31: ТП 10кВ | H31: 63,00 кВА | I31: 48 | J31: TP010-0033048 | K31: 1969-01-01 | L31: Электроснабжение
A32: с. Гатище | B32: Воловский | C32: Воловский РЭС | D32: КТП-10кВ 250 кВА №В-012 Гатище | E32: Филиал ОАО "МРСК-Центра" - "Липецкэнерго" | F32: Филиал ОАО "МРСК-Центра" - "Липецкэнерго" | G32: ТП 10кВ | H32: 250,00 кВА | I32: 238 | J32: TP010-0033049 | K32: 1985-01-01 | L32: Электроснабжение
A33: с. Гатище | B33: Воловский | C33: Воловский РЭС | D33: КТП-10кВ 160 кВА №В-013 Гатище | E33: Филиал ОАО "МРСК-Центра" - "Липецкэнерго" | F33: Филиал ОАО "МРСК-Центра" - "Липецкэнерго" | G33: ТП 10кВ | H33: 100,00 кВА | I33: 78 | J33: TP010-0033051 | K33: 1982-01-01 | L33: Электроснабжение
A34: с. Гатище | B34: Воловский | C34: Воловский РЭС | D34: КТП-10кВ 250 кВА №В-014 Гатище | E34: Филиал ОАО "МРСК-Центра" - "Липецкэнерго" | F34: Филиал ОАО "МРСК-Центра" - "Липецкэнерго" | G34: ТП 10кВ | H34: 250,00 кВА | I34: 210 | J34: TP010-0033052 | K34: 1977-01-01 | L34: Электроснабжение
A35: с. Гатище | B35: Воловский | C35: Воловский РЭС | D35: КТП-10кВ 250 кВА №В-015 Гатище | E35: Филиал ОАО "МРСК-Центра" - "Липецкэнерго" | F35: Филиал ОАО "МРСК-Центра" - "Липецкэнерго" | G35: ТП 10кВ | H35: 250,00 кВА | I35: 244 | J35: TP010-0033053 | K35: 1981-01-01 | L35: Электроснабжение
A36: с. Гатище | B36: Воловский | C36: Воловский РЭС | D36: КТП-10кВ 160 кВА №В-016 Гатище | E36: Филиал ОАО "МРСК-Центра" - "Липецкэнерго" | F36: Филиал ОАО "МРСК-Центра" - "Липецкэнерго" | G36: ТП 10кВ | H36: 160,00 кВА | I36: 153 | J36: TP010-0033054 | K36: 1985-01-01 | L36: Электроснабжение
A37: с. Гатище | B37: Воловский | C37: Воловский РЭС | D37: КТП-10кВ 400 кВА №В-019 Гатище | E37: Филиал ОАО "МРСК-Центра" - "Липецкэнерго" | F37: Филиал ОАО "МРСК-Центра" - "Липецкэнерго" | G37: ТП 10кВ | H37: 400,00 кВА | I37: 373 | J37: TP010-0033055 | K37: 1996-01-01 | L37: Электроснабжение
A38: с. Б.Ивановка | B38: Воловский | C38: Воловский РЭС | D38: КТП-10кВ 40 кВА №В-020 Б.Ивановка | E38: Филиал ОАО "МРСК-Центра" - "Липецкэнерго" | F38: Филиал ОАО "МРСК-Центра" - "Липецкэнерго" | G38: ТП 10кВ | H38: 100,00 кВА | I38: 21 | J38: TP010-0033058 | K38: 1982-01-01 | L38: Электроснабжение
A39: д. Дробышево | B39: Воловский | C39: Воловский РЭС | D39: КТП-10кВ 40 кВА №В-023 Дробышево | E39: Филиал ОАО "МРСК-Центра" - "Липецкэнерго" | F39: Филиал ОАО "МРСК-Центра" - "Липецкэнерго" | G39: ТП 10кВ | H39: 40,00 кВА | I39: 26 | J39: TP010-0033059 | K39: 1977-01-01 | L39: Электроснабжение
A40: с. Юрское | B40: Воловский | C40: Воловский РЭС | D40: КТП-10кВ 250 кВА №В-026 Юрское | E40: Филиал ОАО "МРСК-Центра" - "Липецкэнерго" | F40: Филиал ОАО "МРСК-Центра" - "Липецкэнерго" | G40: ТП 10кВ | H40: 250,00 кВА | I40: 235 | J40: TP010-0033063 | K40: 1972-01-01 | L40: Электроснабжение
A41: с. Юрское | B41: Воловский | C41: Воловский РЭС | D41: КТП-10кВ 63 кВА №В-027 Юрское | E41: Филиал ОАО "МРСК-Центра" - "Липецкэнерго" | F41: Филиал ОАО "МРСК-Центра" - "Липецкэнерго" | G41: ТП 10кВ | H41: 63,00 кВА | I41: 48 | J41: TP010-0033064 | K41: 1977-01-01 | L41: Электроснабжение
A42: с. Юрское | B42: Воловский | C42: Воловский РЭС | D42: КТП-10кВ 250 кВА №В-028 Юрское | E42: Филиал ОАО "МРСК-Центра" - "Липецкэнерго" | F42: Филиал ОАО "МРСК-Центра" - "Липецкэнерго" | G42: ТП 10кВ | H42: 250,00 кВА | I42: 213 | J42: TP010-0033065 | K42: 1982-01-01 | L42: Электроснабжение
A43: с. Юрское | B43: Воловский | C43: Воловский РЭС | D43: КТП-10кВ 250 кВА №В-029 Юрское | E43: Филиал ОАО "МРСК-Центра" - "Липецкэнерго" | F43: Филиал ОАО "МРСК-Центра" - "Липецкэнерго" | G43: ТП 10кВ | H43: 250,00 кВА | I43: 240 | J43: TP010-0033066 | K43: 1977-01-01 | L43: Электроснабжение
A44: Юрские дворы | B44: Воловский | C44: Воловский РЭС | D44: КТП-10кВ 25 кВА №В-031 Юрские дворы | E44: Филиал ОАО "МРСК-Центра" - "Липецкэнерго" | F44: Филиал ОАО "МРСК-Центра" - "Липецкэнерго" | G44: ТП 10кВ | H44: 25,00 кВА | I44: 15 | J44: TP010-0033068 | K44: 1977-01-01 | L44: Электроснабжение
A45: Юрское | B45: Воловский | C45: Воловский РЭС | D45: КТП-10кВ 100 кВА №В-032 Юрское | E45: Филиал ОАО "МРСК-Центра" - "Липецкэнерго" | F45: Филиал ОАО "МРСК-Центра" - "Липецкэнерго" | G45: ТП 10кВ | H45: 100,00 кВА | I45: 66 | J45: TP010-0033069 | K45: 1985-01-01 | L45: Электроснабжение
A46: с. Спасское | B46: Воловский | C46: Воловский РЭС | D46: КТП-10кВ 250 кВА №В-035 Спасское | E46: Филиал ОАО "МРСК-Центра" - "Липецкэнерго" | F46: Филиал ОАО "МРСК-Центра" - "Липецкэнерго" | G46: ТП 10кВ | H46: 250,00 кВА | I46: 225 | J46: TP010-0033070 | K46: 2002-01-01 | L46: Электроснабжение
A47: с. Б.Ивановка | B47: Воловский | C47: Воловский РЭС | D47: КТП-10кВ 160 кВА №В-037 Б.Ивановка | E47: Филиал ОАО "МРСК-Центра" - "Липецкэнерго" | F47: Филиал ОАО "МРСК-Центра" - "Липецкэнерго" | G47: ТП 10кВ | H47: 160,00 кВА | I47: 141 | J47: TP010-0033072 | K47: 1982-01-01 | L47: Электроснабжение
A48: с. Б.Ивановка | B48: Воловский | C48: Воловский РЭС | D48: КТП-10кВ 250 кВА №В-049 Б.Ивановка | E48: Филиал ОАО "МРСК-Центра" - "Липецкэнерго" | F48: Филиал ОАО "МРСК-Центра" - "Липецкэнерго" | G48: ТП 10кВ | H48: 250,00 кВА | I48: 233 | J48: TP010-0033073 | K48: 1968-01-01 | L48: Электроснабжение
A49: с. Захаровка | B49: Воловский | C49: Воловский РЭС | D49: КТП-10кВ 100 кВА №В-051 Захаровка | E49: Филиал ОАО "МРСК-Центра" - "Липецкэнерго" | F49: Филиал ОАО "МРСК-Центра" - "Липецкэнерго" | G49: ТП 10кВ | H49: 100,00 кВА | I49: 77 | J49: TP010-0033074 | K49: 1982-01-01 | L49: Электроснабжение
A50: д. Б.Вершина | B50: Воловский | C50: Воловский РЭС | D50: КТП-10кВ 63 кВА №В-052 Б.Вершина | E50: Филиал ОАО "МРСК-Центра" - "Липецкэнерго" | F50: Филиал ОАО "МРСК-Центра" - "Липецкэнерго" | G50: ТП 10кВ | H50: 63,00 кВА | I50: 58 | J50: TP010-0033076 | K50: 1984-01-01 | L50: Электроснабжение
A51: д. Алексеевка | B51: Воловский | C51: Воловский РЭС | D51: КТП-10кВ 40 кВА №В-053 2-я Алексеевка | E51: Филиал ОАО "МРСК-Центра" - "Липецкэнерго" | F51: Филиал ОАО "МРСК-Центра" - "Липецкэнерго" | G51: ТП 10кВ | H51: 40,00 кВА | I51: 33 | J51: TP010-0033079 | K51: 1970-01-01 | L51: Электроснабжение
A52: д. Александровка | B52: Воловский | C52: Воловский РЭС | D52: КТП-10кВ 63 кВА №В-055 Александровка | E52: Филиал ОАО "МРСК-Центра" - "Липецкэнерго" | F52: Филиал ОАО "МРСК-Центра" - "Липецкэнерго" | G52: ТП 10кВ | H52: 63,00 кВА | I52: 43 | J52: TP010-0033080 | K52: 1970-01-01 | L52: Электроснабжение
A53: д. Александровка | B53: Воловский | C53: Воловский РЭС | D53: КТП-10кВ 400 кВА №В-056 Александровка | E53: Филиал ОАО "МРСК-Центра" - "Липецкэнерго" | F53: Филиал ОАО "МРСК-Центра" - "Липецкэнерго" | G53: ТП 10кВ | H53: 400,00 кВА | I53: 378 | J53: TP010-0033082 | K53: 1970-01-01 | L53: Электроснабжение
A54: д. Александровка | B54: Воловский | C54: Воловский РЭС | D54: КТП-10кВ 250 кВА №В-057 Александровка | E54: Филиал ОАО "МРСК-Центра" - "Липецкэнерго" | F54: Филиал ОАО "МРСК-Центра" - "Липецкэнерго" | G54: ТП 10кВ | H54: 250,00 кВА | I54: 227 | J54: TP010-0033085 | K54: 1970-01-01 | L54: Электроснабжение
A55: с. Захаровка | B55: Воловский | C55: Воловский РЭС | D55: КТП-10кВ 160 кВА №В-059 Захаровка | E55: Филиал ОАО "МРСК-Центра" - "Липецкэнерго" | F55: Филиал ОАО "МРСК-Центра" - "Липецкэнерго" | G55: ТП 10кВ | H55: 160,00 кВА | I55: 86 | J55: TP010-0033086 | K55: 1984-01-01 | L55: Электроснабжение
A56: с. Б.Ивановка | B56: Воловский | C56: Воловский РЭС | D56: КТП-10кВ 100 кВА №В-060 Б.Ивановка | E56: Филиал ОАО "МРСК-Центра" - "Липецкэнерго" | F56: Филиал ОАО "МРСК-Центра" - "Липецкэнерго" | G56: ТП 10кВ | H56: 100,00 кВА | I56: 73 | J56: TP010-0033087 | K56: 1986-01-01 | L56: Электроснабжение
A57: с. Б.Ивановка | B57: Воловский | C57: Воловский РЭС | D57: КТП-10кВ 63 кВА №В-061 Б.Ивановка | E57: Филиал ОАО "МРСК-Центра" - "Липецкэнерго" | F57: Филиал ОАО "МРСК-Центра" - "Липецкэнерго" | G57: ТП 10кВ | H57: 63,00 кВА | I57: 45 | J57: TP010-0033088 | K57: 1987-01-01 | L57: Электроснабжение
A58: с. Б.Ивановка | B58: Воловский | C58: Воловский РЭС | D58: КТП-10кВ 400 кВА №В-070 Б.Ивановка | E58: Филиал ОАО "МРСК-Центра" - "Липецкэнерго" | F58: Филиал ОАО "МРСК-Центра" - "Липецкэнерго" | G58: ТП 10кВ | H58: 400,00 кВА | I58: 353 | J58: TP010-0033089 | K58: 2008-08-30 | L58: Электроснабжение
A59: д. Сапрон | B59: Воловский | C59: Воловский РЭС | D59: КТП-10кВ 160 кВА №В-067 Сапрон | E59: Филиал ОАО "МРСК-Центра" - "Липецкэнерго" | F59: Филиал ОАО "МРСК-Центра" - "Липецкэнерго" | G59: ТП 10кВ | H59: 160,00 кВА | I59: 128 | J59: TP010-0033090 | K59: 1978-01-01 | L59: Электроснабжение
A60: д. Сапрон | B60: Воловский | C60: Воловский РЭС | D60: КТП-10кВ 250 кВА №В-068 Сапрон | E60: Филиал ОАО "МРСК-Центра" - "Липецкэнерго" | F60: Филиал ОАО "МРСК-Центра" - "Липецкэнерго" | G60: ТП 10кВ | H60: 250,00 кВА | I60: 225 | J60: TP010-0033091 | K60: 1982-01-01 | L60: Электроснабжение
A61: д. Сапрон | B61: Воловский | C61: Воловский РЭС | D61: КТП-10кВ 63 кВА №В-069 Сапрон | E61: Филиал ОАО "МРСК-Центра" - "Липецкэнерго" | F61: Филиал ОАО "МРСК-Центра" - "Липецкэнерго" | G61: ТП 10кВ | H61: 63,00 кВА | I61: 50 | J61: TP010-0033093 | K61: 1968-01-01 | L61: Электроснабжение
A62: с. Захаровка | B62: Воловский | C62: Воловский РЭС | D62: КТП-10кВ 250 кВА №В-071 Захаровка | E62: Филиал ОАО "МРСК-Центра" - "Липецкэнерго" | F62: Филиал ОАО "МРСК-Центра" - "Липецкэнерго" | G62: ТП 10кВ | H62: 250,00 кВА | I62: 238 | J62: TP010-0033098 | K62: 1984-01-01 | L62: Электроснабжение
A63: с. Захаровка | B63: Воловский | C63: Воловский РЭС | D63: КТП-10кВ 160 кВА №В-072 Захаровка | E63: Филиал ОАО "МРСК-Центра" - "Липецкэнерго" | F63: Филиал ОАО "МРСК-Центра" - "Липецкэнерго" | G63: ТП 10кВ | H63: 160,00 кВА | I63: 128 | J63: TP010-0033100 | K63: 1984-01-01 | L63: Электроснабжение
A64: с. Захаровка | B64: Воловский | C64: Воловский РЭС | D64: КТП-10кВ 250 кВА №В-073 Захаровка | E64: Филиал ОАО "МРСК-Центра" - "Липецкэнерго" | F64: Филиал ОАО "МРСК-Центра" - "Липецкэнерго" | G64: ТП 10кВ | H64: 250,00 кВА | I64: 246 | J64: TP010-0033101 | K64: 1984-01-01 | L64: Электроснабжение
A65: с. Захаровка | B65: Воловский | C65: Воловский РЭС | D65: КТП-10кВ 250 кВА №В-074 Захаровка | E65: Филиал ОАО "МРСК-Центра" - "Липецкэнерго" | F65: Филиал ОАО "МРСК-Центра" - "Липецкэнерго" | G65: ТП 10кВ | H65: 250,00 кВА | I65: 250 | J65: TP010-0033103 | K65: 1984-01-01 | L65: Электроснабжение
A66: с. Захаровка | B66: Воловский | C66: Воловский РЭС | D66: КТП-10кВ 100 кВА №В-075 Захаровка | E66: Филиал ОАО "МРСК-Центра" - "Липецкэнерго" | F66: Филиал ОАО "МРСК-Центра" - "Липецкэнерго" | G66: ТП 10кВ | H66: 100,00 кВА | I66: 78 | J66: TP010-0033105 | K66: 1984-01-01 | L66: Электроснабжение
A67: д. Маково | B67: Воловский | C67: Воловский РЭС | D67: КТП-10кВ 160 кВА №В-076 Маково | E67: Филиал ОАО "МРСК-Центра" - "Липецкэнерго" | F67: Филиал ОАО "МРСК-Центра" - "Липецкэнерго" | G67: ТП 10кВ | H67: 160,00 кВА | I67: 128 | J67: TP010-0033106 | K67: 1972-01-01 | L67: Электроснабжение
A68: с. Ломигоры | B68: Воловский | C68: Воловский РЭС | D68: КТП-10кВ 250 кВА №В-077 Ломигоры | E68: Филиал ОАО "МРСК-Центра" - "Липецкэнерго" | F68: Филиал ОАО "МРСК-Центра" - "Липецкэнерго" | G68: ТП 10кВ | H68: 250,00 кВА | I68: 229 | J68: TP010-0033110 | K68: 1983-01-01 | L68: Электроснабжение
A69: с. Ломигоры | B69: Воловский | C69: Воловский РЭС | D69: КТП-10кВ 315 кВА №В-079 Ломигоры | E69: Филиал ОАО "МРСК-Центра" - "Липецкэнерго" | F69: Филиал ОАО "МРСК-Центра" - "Липецкэнерго" | G69: ТП 10кВ | H69: 315,00 кВА | I69: 303 | J69: TP010-0033111 | K69: 1983-01-01 | L69: Электроснабжение
A70: с. Ломигоры | B70: Воловский | C70: Воловский РЭС | D70: КТП-10кВ 160 кВА №В-080 Ломигоры | E70: Филиал ОАО "МРСК-Центра" - "Липецкэнерго" | F70: Филиал ОАО "МРСК-Центра" - "Липецкэнерго" | G70: ТП 10кВ | H70: 160,00 кВА | I70: 147 | J70: TP010-0033112 | K70: 1995-01-01 | L70: Электроснабжение
A71: д. Елизаветинка | B71: Воловский | C71: Воловский РЭС | D71: КТП-10кВ 25 кВА №В-081 Гордеевка | E71: Филиал ОАО "МРСК-Центра" - "Липецкэнерго" | F71: Филиал ОАО "МРСК-Центра" - "Липецкэнерго" | G71: ТП 10кВ | H71: 25,00 кВА | I71: 24 | J71: TP010-0033113 | K71: 1995-01-01 | L71: Электроснабжение
A72: д. Казанка | B72: Воловский | C72: Воловский РЭС | D72: КТП-10кВ 40 кВА №В-083 Казанка | E72: Филиал ОАО "МРСК-Центра" - "Липецкэнерго" | F72: Филиал ОАО "МРСК-Центра" - "Липецкэнерго" | G72: ТП 10кВ | H72: 40,00 кВА | I72: 39 | J72: TP010-0033116 | K72: 1995-01-01 | L72: Электроснабжение
A73: с. Ломигоры | B73: Воловский | C73: Воловский РЭС | D73: КТП-10кВ 160 кВА №В-084 Ломигоры | E73: Филиал ОАО "МРСК-Центра" - "Липецкэнерго" | F73: Филиал ОАО "МРСК-Центра" - "Липецкэнерго" | G73: ТП 10кВ | H73: 160,00 кВА | I73: 143 | J73: TP010-0033120 | K73: 1983-01-01 | L73: Электроснабжение
A74: с. Ломигоры | B74: Воловский | C74: Воловский РЭС | D74: КТП-10кВ 160 кВА №В-085 Ломигоры | E74: Филиал ОАО "МРСК-Центра" - "Липецкэнерго" | F74: Филиал ОАО "МРСК-Центра" - "Липецкэнерго" | G74: ТП 10кВ | H74: 160,00 кВА | I74: 155 | J74: TP010-0033121 | K74: 1985-01-01 | L74: Электроснабжение
A75: с. Ломигоры | B75: Воловский | C75: Воловский РЭС | D75: КТП-10кВ 400 кВА №В-086 Ломигоры | E75: Филиал ОАО "МРСК-Центра" - "Липецкэнерго" | F75: Филиал ОАО "МРСК-Центра" - "Липецкэнерго" | G75: ТП 10кВ | H75: 400,00 кВА | I75: 377 | J75: TP010-0033142 | K75: 1983-01-01 | L75: Электроснабжение
A76: с. Замарайка | B76: Воловский | C76: Воловский РЭС | D76: КТП-10кВ 160 кВА №В-090 Замарайка | E76: Филиал ОАО "МРСК-Центра" - "Липецкэнерго" | F76: Филиал ОАО "МРСК-Центра" - "Липецкэнерго" | G76: ТП 10кВ | H76: 160,00 кВА | I76: 140 | J76: TP010-0033143 | K76: 1983-01-01 | L76: Электроснабжение
A77: с. Замарайка | B77: Воловский | C77: Воловский РЭС | D77: КТП-10кВ 160 кВА №В-091 Замарайка | E77: Филиал ОАО "МРСК-Центра" - "Липецкэнерго" | F77: Филиал ОАО "МРСК-Центра" - "Липецкэнерго" | G77: ТП 10кВ | H77: 160,00 кВА | I77: 142 | J77: TP010-0033176 | K77: 1985-01-01 | L77: Электроснабжение
A78: с. Замарайка | B78: Воловский | C78: Воловский РЭС | D78: КТП-10кВ 250 кВА №В-092 Замарайка | E78: Филиал ОАО "МРСК-Центра" - "Липецкэнерго" | F78: Филиал ОАО "МРСК-Центра" - "Липецкэнерго" | G78: ТП 10кВ | H78: 250,00 кВА | I78: 244 | J78: TP010-0033178 | K78: 1982-01-01 | L78: Электроснабжение
A79: с. Замарайка | B79: Воловский | C79: Воловский РЭС | D79: КТП-10кВ 160 кВА №В-093 Замарайка | E79: Филиал ОАО "МРСК-Центра" - "Липецкэнерго" | F79: Филиал ОАО "МРСК-Центра" - "Липецкэнерго" | G79: ТП 10кВ | H79: 160,00 кВА | I79: 133 | J79: TP010-0033181 | K79: 1976-01-01 | L79: Электроснабжение
A80: д. Воронцовка | B80: Воловский | C80: Воловский РЭС | D80: КТП 10кВ №В-094 100кВА Воронцовка | E80: Филиал ОАО "МРСК-Центра" - "Липецкэнерго" | F80: Филиал ОАО "МРСК-Центра" - "Липецкэнерго" | G80: ТП 10кВ | H80: 100,00 кВА | I80: 90 | J80: TP010-0033187 | K80: 1982-01-01 | L80: Электроснабжение
A81: д. Воронцовка | B81: Воловский | C81: Воловский РЭС | D81: КТП-10кВ 60 кВА №В-095 Воронцовка | E81: Филиал ОАО "МРСК-Центра" - "Липецкэнерго" | F81: Филиал ОАО "МРСК-Центра" - "Липецкэнерго" | G81: ТП 10кВ | H81: 63,00 кВА | I81: 53 | J81: TP010-0033189 | K81: 1978-01-01 | L81: Электроснабжение
A82: с. Замарайка | B82: Воловский | C82: Воловский РЭС | D82: КТП-10кВ 40 кВА №В-096 Замарайка | E82: Филиал ОАО "МРСК-Центра" - "Липецкэнерго" | F82: Филиал ОАО "МРСК-Центра" - "Липецкэнерго" | G82: ТП 10кВ | H82: 40,00 кВА | I82: 31 | J82: TP010-0033192 | K82: 1982-01-01 | L82: Электроснабжение
A83: с. Замарайка | B83: Воловский | C83: Воловский РЭС | D83: КТП-10кВ 400 кВА №В-098 Замарайка | E83: Филиал ОАО "МРСК-Центра" - "Липецкэнерго" | F83: Филиал ОАО "МРСК-Центра" - "Липецкэнерго" | G83: ТП 10кВ | H83: 400,00 кВА | I83: 395 | J83: TP010-0033201 | K83: 1982-01-01 | L83: Электроснабжение
A84: с. Турчаново | B84: Воловский | C84: Воловский РЭС | D84: КТП-10кВ 160 кВА №В-101 Турчаново | E84: Филиал ОАО "МРСК-Центра" - "Липецкэнерго" | F84: Филиал ОАО "МРСК-Центра" - "Липецкэнерго" | G84: ТП 10кВ | H84: 160,00 кВА | I84: 141 | J84: TP010-0033202 | K84: 1982-01-01 | L84: Электроснабжение
A85: с. Турчаново | B85: Воловский | C85: Воловский РЭС | D85: КТП-10кВ 160 кВА №В-102 Турчаново | E85: Филиал ОАО "МРСК-Центра" - "Липецкэнерго" | F85: Филиал ОАО "МРСК-Центра" - "Липецкэнерго" | G85: ТП 10кВ | H85: 160,00 кВА | I85: 154 | J85: TP010-0033203 | K85: 1982-01-01 | L85: Электроснабжение
A86: с. Турчаново | B86: Воловский | C86: Воловский РЭС | D86: КТП-10кВ 100 кВА №В-103 Турчаново | E86: Филиал ОАО "МРСК-Центра" - "Липецкэнерго" | F86: Филиал ОАО "МРСК-Центра" - "Липецкэнерго" | G86: ТП 10кВ | H86: 100,00 кВА | I86: 79 | J86: TP010-0033205 | K86: 1976-01-01 | L86: Электроснабжение
A87: п. Красный Луч | B87: Воловский | C87: Воловский РЭС | D87: КТП-10кВ 63 кВА №В-104 Красный Луч | E87: Филиал ОАО "МРСК-Центра" - "Липецкэнерго" | F87: Филиал ОАО "МРСК-Центра" - "Липецкэнерго" | G87: ТП 10кВ | H87: 40,00 кВА | I87: 39 | J87: TP010-0033206 | K87: 1982-01-01 | L87: Электроснабжение
A88: с. Волово | B88: Воловский | C88: Воловский РЭС | D88: МТП-10кВ 63 кВА №В-108 Волово | E88: Филиал ОАО "МРСК-Центра" - "Липецкэнерго" | F88: Филиал ОАО "МРСК-Центра" - "Липецкэнерго" | G88: ТП 10кВ | H88: 63,00 кВА | I88: 54 | J88: TP010-0033207 | K88: 1997-01-01 | L88: Электроснабжение
A89: с. Волово | B89: Воловский | C89: Воловский РЭС | D89: КТП-10кВ 160 кВА №В-113 Волово | E89: Филиал ОАО "МРСК-Центра" - "Липецкэнерго" | F89: Филиал ОАО "МРСК-Центра" - "Липецкэнерго" | G89: ТП 10кВ | H89: 160,00 кВА | I89: 150 | J89: TP010-0033209 | K89: 1979-01-01 | L89: Электроснабжение
A90: с. Волово | B90: Воловский | C90: Воловский РЭС | D90: КТП-10кВ 200 кВА №В-116 Волово | E90: Филиал ОАО "МРСК-Центра" - "Липецкэнерго" | F90: Филиал ОАО "МРСК-Центра" - "Липецкэнерго" | G90: ТП 10кВ | H90: 250,00 кВА | I90: 218 | J90: TP010-0033214 | K90: 2000-01-01 | L90: Электроснабжение
A91: с. Волово | B91: Воловский | C91: Воловский РЭС | D91: КТП-10кВ 250 кВА №В-117 Волово | E91: Филиал ОАО "МРСК-Центра" - "Липецкэнерго" | F91: Филиал ОАО "МРСК-Центра" - "Липецкэнерго" | G91: ТП 10кВ | H91: 250,00 кВА | I91: 210 | J91: TP010-0033228 | K91: 1982-01-01 | L91: Электроснабжение
A92: с. Волово | B92: Воловский | C92: Воловский РЭС | D92: КТП 10кВ №В 120 400кВА Волово | E92: Филиал ОАО "МРСК-Центра" - "Липецкэнерго" | F92: Филиал ОАО "МРСК-Центра" - "Липецкэнерго" | G92: ТП 10кВ | H92: 400,00 кВА | I92: 377 | J92: TP010-0033232 | K92: 1981-01-01 | L92: Электроснабжение
A93: с. Воловчик | B93: Воловский | C93: Воловский РЭС | D93: КТП-10кВ 100 кВА №В-121 Воловчик | E93: Филиал ОАО "МРСК-Центра" - "Липецкэнерго" | F93: Филиал ОАО "МРСК-Центра" - "Липецкэнерго" | G93: ТП 10кВ | H93: 100,00 кВА | I93: 80 | J93: TP010-0033234 | K93: 1983-01-01 | L93: Электроснабжение
A94: с. Воловчик | B94: Воловский | C94: Воловский РЭС | D94: КТП-10кВ 160 кВА №В-122 Воловчик | E94: Филиал ОАО "МРСК-Центра" - "Липецкэнерго" | F94: Филиал ОАО "МРСК-Центра" - "Липецкэнерго" | G94: ТП 10кВ | H94: 160,00 кВА | I94: 135 | J94: TP010-0033236 | K94: 1983-01-01 | L94: Электроснабжение
A95: с. Воловчик | B95: Воловский | C95: Воловский РЭС | D95: КТП-10кВ 250 кВА №В-123 Воловчик | E95: Филиал ОАО "МРСК-Центра" - "Липецкэнерго" | F95: Филиал ОАО "МРСК-Центра" - "Липецкэнерго" | G95: ТП 10кВ | H95: 250,00 кВА | I95: 230 | J95: TP010-0033238 | K95: 1983-01-01 | L95: Электроснабжение
A96: с. Воловчик | B96: Воловский | C96: Воловский РЭС | D96: КТП-10кВ 40 кВА №В-124 Воловчик | E96: Филиал ОАО "МРСК-Центра" - "Липецкэнерго" | F96: Филиал ОАО "МРСК-Центра" - "Липецкэнерго" | G96: ТП 10кВ | H96: 40,00 кВА | I96: 25 | J96: TP010-0033240 | K96: 1983-01-01 | L96: Электроснабжение
A97: с. Воловчик | B97: Воловский | C97: Воловский РЭС | D97: КТП-10кВ 63 кВА №В-125 Воловчик | E97: Филиал ОАО "МРСК-Центра" - "Липецкэнерго" | F97: Филиал ОАО "МРСК-Центра" - "Липецкэнерго" | G97: ТП 10кВ | H97: 63,00 кВА | I97: 43 | J97: TP010-0033242 | K97: 1983-01-01 | L97: Электроснабжение
A98: с. Воловчик | B98: Воловский | C98: Воловский РЭС | D98: КТП-10кВ 160 кВА №В-129 Воловчик | E98: Филиал ОАО "МРСК-Центра" - "Липецкэнерго" | F98: Филиал ОАО "МРСК-Центра" - "Липецкэнерго" | G98: ТП 10кВ | H98: 160,00 кВА | I98: 151 | J98: TP010-0033245 | K98: 1983-01-01 | L98: Электроснабжение
A99: д. Кшень | B99: Воловский | C99: Воловский РЭС | D99: КТП-10кВ 100 кВА №В-130 Кшень | E99: Филиал ОАО "МРСК-Центра" - "Липецкэнерго" | F99: Филиал ОАО "МРСК-Центра" - "Липецкэнерго" | G99: ТП 10кВ | H99: 100,00 кВА | I99: 85 | J99: TP010-0033247 | K99: 1983-01-01 | L99: Электроснабжение
A100: п. Новый | B100: Воловский | C100: Воловский РЭС | D100: КТП-10кВ 250 кВА №В-132 Новый | E100: Филиал ОАО "МРСК-Центра" - "Липецкэнерго" | F100: Филиал ОАО "МРСК-Центра" - "Липецкэнерго" | G100: ТП 10кВ | H100: 250,00 кВА | I100: 250 | J100: TP010-0033249 | K100: 1983-01-01 | L100: Электроснабжение
A101: д. Кшень | B101: Воловский | C101: Воловский РЭС | D101: КТП-10кВ 63 кВА №В-133 Кшень | E101: Филиал ОАО "МРСК-Центра" - "Липецкэнерго" | F101: Филиал ОАО "МРСК-Центра" - "Липецкэнерго" | G101: ТП 10кВ | H101: 63,00 кВА | I101: 52 | J101: TP010-0033251 | K101: 1983-01-01 | L101: Электроснабжение
A102: д. Кшень | B102: Воловский | C102: Воловский РЭС | D102: КТП-10кВ 63 кВА №В-135 Кшень | E102: Филиал ОАО "МРСК-Центра" - "Липецкэнерго" | F102: Филиал ОАО "МРСК-Центра" - "Липецкэнерго" | G102: ТП 10кВ | H102: 63,00 кВА | I102: 55 | J102: TP010-0033254 | K102: 1983-01-01 | L102: Электроснабжение
A103: с. Воловчик | B103: Воловский | C103: Воловский РЭС | D103: КТП-10кВ 63 кВА №В-136 Воловчик | E103: Филиал ОАО "МРСК-Центра" - "Липецкэнерго" | F103: Филиал ОАО "МРСК-Центра" - "Липецкэнерго" | G103: ТП 10кВ | H103: 63,00 кВА | I103: 54 | J103: TP010-0033255 | K103: 1983-01-01 | L103: Электроснабжение
A104: с. Воловчик | B104: Воловский | C104: Воловский РЭС | D104: КТП-10кВ 400 кВА №В-137 Воловчик | E104: Филиал ОАО "МРСК-Центра" - "Липецкэнерго" | F104: Филиал ОАО "МРСК-Центра" - "Липецкэнерго" | G104: ТП 10кВ | H104: 400,00 кВА | I104: 389 | J104: TP010-0033260 | K104: 1983-01-01 | L104: Электроснабжение
A105: с. Воловчик | B105: Воловский | C105: Воловский РЭС | D105: КТП-10кВ 160 кВА №В-138 Воловчик | E105: Филиал ОАО "МРСК-Центра" - "Липецкэнерго" | F105: Филиал ОАО "МРСК-Центра" - "Липецкэнерго" | G105: ТП 10кВ | H105: 160,00 кВА | I105: 151 | J105: TP010-0033261 | K105: 1986-01-01 | L105: Электроснабжение
A106: с. Волово | B106: Воловский | C106: Воловский РЭС | D106: КТП-10кВ 250 кВА №В-140 Волово | E106: Филиал ОАО "МРСК-Центра" - "Липецкэнерго" | F106: Филиал ОАО "МРСК-Центра" - "Липецкэнерго" | G106: ТП 10кВ | H106: 250,00 кВА | I106: 193 | J106: TP010-0033262 | K106: 1986-01-01 | L106: Электроснабжение
A107: с. Волово | B107: Воловский | C107: Воловский РЭС | D107: КТП-10кВ 400 кВА №В-141 Волово | E107: Филиал ОАО "МРСК-Центра" - "Липецкэнерго" | F107: Филиал ОАО "МРСК-Центра" - "Липецкэнерго" | G107: ТП 10кВ | H107: 400,00 кВА | I107: 329 | J107: TP010-0033265 | K107: 1998-01-01 | L107: Электроснабжение
A108: с. Нижнее Большое | B108: Воловский | C108: Воловский РЭС | D108: КТП-10кВ 250 кВА №В-172 Нижнее Большое | E108: Филиал ОАО "МРСК-Центра" - "Липецкэнерго" | F108: Филиал ОАО "МРСК-Центра" - "Липецкэнерго" | G108: ТП 10кВ | H108: 250,00 кВА | I108: 147 | J108: TP010-0033267 | K108: 1985-01-01 | L108: Электроснабжение
A109: с. Нижнее Большое | B109: Воловский | C109: Воловский РЭС | D109: КТП-10кВ 160 кВА №В-173 Нижнее Большое | E109: Филиал ОАО "МРСК-Центра" - "Липецкэнерго" | F109: Филиал ОАО "МРСК-Центра" - "Липецкэнерго" | G109: ТП 10кВ | H109: 160,00 кВА | I109: 136 | J109: TP010-0033268 | K109: 1978-01-01 | L109: Электроснабжение
A110: с. Нижнее Большое | B110: Воловский | C110: Воловский РЭС | D110: КТП-10кВ 100 кВА №В-174 Нижнее Большое | E110: Филиал ОАО "МРСК-Центра" - "Липецкэнерго" | F110: Филиал ОАО "МРСК-Центра" - "Липецкэнерго" | G110: ТП 10кВ | H110: 100,00 кВА | I110: 86 | J110: TP010-0033270 | K110: 1978-01-01 | L110: Электроснабжение
A111: с. Нижнее Большое | B111: Воловский | C111: Воловский РЭС | D111: КТП-10кВ 160 кВА №В-175 Нижнее Большое | E111: Филиал ОАО "МРСК-Центра" - "Липецкэнерго" | F111: Филиал ОАО "МРСК-Центра" - "Липецкэнерго" | G111: ТП 10кВ | H111: 160,00 кВА | I111: 143 | J111: TP010-0033271 | K111: 1978-01-01 | L111: Электроснабжение
A112: с. Нижнее Большое | B112: Воловский | C112: Воловский РЭС | D112: КТП-10кВ 100 кВА №В-177 Нижнее Большое | E112: Филиал ОАО "МРСК-Центра" - "Липецкэнерго" | F112: Филиал ОАО "МРСК-Центра" - "Липецкэнерго" | G112: ТП 10кВ | H112: 100,00 кВА | I112: 81 | J112: TP010-0033272 | K112: 1978-01-01 | L112: Электроснабжение
A113: с. Вышнее Большое | B113: Воловский | C113: Воловский РЭС | D113: КТП-10кВ 63 кВА №В-178 Вышнее Большое | E113: Филиал ОАО "МРСК-Центра" - "Липецкэнерго" | F113: Филиал ОАО "МРСК-Центра" - "Липецкэнерго" | G113: ТП 10кВ | H113: 60,00 кВА | I113: 48 | J113: TP010-0033274 | K113: 1978-01-01 | L113: Электроснабжение
A114: с. Вышнее Большое | B114: Воловский | C114: Воловский РЭС | D114: КТП-10кВ 250 кВА №В-179 Вышнее Большое | E114: Филиал ОАО "МРСК-Центра" - "Липецкэнерго" | F114: Филиал ОАО "МРСК-Центра" - "Липецкэнерго" | G114: ТП 10кВ | H114: 250,00 кВА | I114: 238 | J114: TP010-0033275 | K114: 1979-01-01 | L114: Электроснабжение
A115: с. Вышнее Большое | B115: Воловский | C115: Воловский РЭС | D115: КТП-10кВ 250 кВА №В-180 Вышнее Большое | E115: Филиал ОАО "МРСК-Центра" - "Липецкэнерго" | F115: Филиал ОАО "МРСК-Центра" - "Липецкэнерго" | G115: ТП 10кВ | H115: 250,00 кВА | I115: 235 | J115: TP010-0033276 | K115: 1967-01-01 | L115: Электроснабжение
A116: с. Вышнее Большое | B116: Воловский | C116: Воловский РЭС | D116: КТП-10кВ 250 кВА №В-181 Вышнее Большое | E116: Филиал ОАО "МРСК-Центра" - "Липецкэнерго" | F116: Филиал ОАО "МРСК-Центра" - "Липецкэнерго" | G116: ТП 10кВ | H116: 250,00 кВА | I116: 225 | J116: TP010-0033278 | K116: 1979-01-01 | L116: Электроснабжение
A117: с. Вышнее Большое | B117: Воловский | C117: Воловский РЭС | D117: КТП-10кВ 250 кВА №В-183 Вышнее Большое | E117: Филиал ОАО "МРСК-Центра" - "Липецкэнерго" | F117: Филиал ОАО "МРСК-Центра" - "Липецкэнерго" | G117: ТП 10кВ | H117: 250,00 кВА | I117: 233 | J117: TP010-0033280 | K117: 1967-01-01 | L117: Электроснабжение
A118: с. Вышнее Большое | B118: Воловский | C118: Воловский РЭС | D118: КТП-10кВ 100 кВА №В-184 Вышнее Большое | E118: Филиал ОАО "МРСК-Центра" - "Липецкэнерго" | F118: Филиал ОАО "МРСК-Центра" - "Липецкэнерго" | G118: ТП 10кВ | H118: 100,00 кВА | I118: 89 | J118: TP010-0033281 | K118: 1979-01-01 | L118: Электроснабжение
A119: с. Вышнее Большое | B119: Воловский | C119: Воловский РЭС | D119: КТП-10кВ 100 кВА №В-185 Вышнее Большое | E119: Филиал ОАО "МРСК-Центра" - "Липецкэнерго" | F119: Филиал ОАО "МРСК-Центра" - "Липецкэнерго" | G119: ТП 10кВ | H119: 100,00 кВА | I119: 88 | J119: TP010-0033282 | K119: 1978-01-01 | L119: Электроснабжение
A120: с. Вышнее Большое | B120: Воловский | C120: Воловский РЭС | D120: КТП-10кВ 250 кВА №В-186 Вышнее Большое | E120: Филиал ОАО "МРСК-Центра" - "Липецкэнерго" | F120: Филиал ОАО "МРСК-Центра" - "Липецкэнерго" | G120: ТП 10кВ | H120: 250,00 кВА | I120: 239 | J120: TP010-0033285 | K120: 1967-01-01 | L120: Электроснабжение
A121: с. Вышнее Большое | B121: Воловский | C121: Воловский РЭС | D121: КТП-10кВ 160 кВА №В-187 Вышнее Большое | E121: Филиал ОАО "МРСК-Центра" - "Липецкэнерго" | F121: Филиал ОАО "МРСК-Центра" - "Липецкэнерго" | G121: ТП 10кВ | H121: 160,00 кВА | I121: 60 | J121: TP010-0033286 | K121: 1985-01-01 | L121: Электроснабжение
A122: с. Нижнее Большое | B122: Воловский | C122: Воловский РЭС | D122: КТП-10кВ 160 кВА №В-190 Нижнее Большое | E122: Филиал ОАО "МРСК-Центра" - "Липецкэнерго" | F122: Филиал ОАО "МРСК-Центра" - "Липецкэнерго" | G122: ТП 10кВ | H122: 160,00 кВА | I122: 141 | J122: TP010-0033287 | K122: 1978-01-01 | L122: Электроснабжение
A123: с. Панино | B123: Воловский | C123: Воловский РЭС | D123: КТП-10кВ 63 кВА №В-192 Панино | E123: Филиал ОАО "МРСК-Центра" - "Липецкэнерго" | F123: Филиал ОАО "МРСК-Центра" - "Липецкэнерго" | G123: ТП 10кВ | H123: 63,00 кВА | I123: 54 | J123: TP010-0033289 | K123: 1996-01-01 | L123: Электроснабжение
A124: с. Панино | B124: Воловский | C124: Воловский РЭС | D124: КТП-10кВ 160 кВА №В-193 Панино | E124: Филиал ОАО "МРСК-Центра" - "Липецкэнерго" | F124: Филиал ОАО "МРСК-Центра" - "Липецкэнерго" | G124: ТП 10кВ | H124: 160,00 кВА | I124: 145 | J124: TP010-0033290 | K124: 1982-01-01 | L124: Электроснабжение
A125: с. Панино | B125: Воловский | C125: Воловский РЭС | D125: КТП-10кВ 250 кВА №В-194 Панино | E125: Филиал ОАО "МРСК-Центра" - "Липецкэнерго" | F125: Филиал ОАО "МРСК-Центра" - "Липецкэнерго" | G125: ТП 10кВ | H125: 250,00 кВА | I125: 239 | J125: TP010-0033292 | K125: 1980-01-01 | L125: Электроснабжение
A126: с. Панино | B126: Воловский | C126: Воловский РЭС | D126: КТП-10кВ 250 кВА №В-195 Панино | E126: Филиал ОАО "МРСК-Центра" - "Липецкэнерго" | F126: Филиал ОАО "МРСК-Центра" - "Липецкэнерго" | G126: ТП 10кВ | H126: 250,00 кВА | I126: 244 | J126: TP010-0033293 | K126: 1973-01-01 | L126: Электроснабжение
A127: с. Панино | B127: Воловский | C127: Воловский РЭС | D127: КТП-10кВ 100 кВА №В-196 Панино | E127: Филиал ОАО "МРСК-Центра" - "Липецкэнерго" | F127: Филиал ОАО "МРСК-Центра" - "Липецкэнерго" | G127: ТП 10кВ | H127: 100,00 кВА | I127: 78 | J127: TP010-0033298 | K127: 1973-01-01 | L127: Электроснабжение
A128: с. Панино | B128: Воловский | C128: Воловский РЭС | D128: КТП-10кВ 40 кВА №В-197 Панино | E128: Филиал ОАО "МРСК-Центра" - "Липецкэнерго" | F128: Филиал ОАО "МРСК-Центра" - "Липецкэнерго" | G128: ТП 10кВ | H128: 40,00 кВА | I128: 33 | J128: TP010-0033306 | K128: 1984-01-01 | L128: Электроснабжение
A129: с. Захаровка | B129: Воловский | C129: Воловский РЭС | D129: КТП-10кВ 63 кВА №В-198 Захаровка | E129: Филиал ОАО "МРСК-Центра" - "Липецкэнерго" | F129: Филиал ОАО "МРСК-Центра" - "Липецкэнерго" | G129: ТП 10кВ | H129: 63,00 кВА | I129: 41 | J129: TP010-0033307 | K129: 1984-01-01 | L129: Электроснабжение
A130: д. Алексеевка | B130: Воловский | C130: Воловский РЭС | D130: КТП-10кВ 40 кВА №В-199 Алексеевка | E130: Филиал ОАО "МРСК-Центра" - "Липецкэнерго" | F130: Филиал ОАО "МРСК-Центра" - "Липецкэнерго" | G130: ТП 10кВ | H130: 40,00 кВА | I130: 28 | J130: TP010-0033309 | K130: 1970-01-01 | L130: Электроснабжение
A131: д. Богданово | B131: Воловский | C131: Воловский РЭС | D131: КТП-10кВ 100 кВА №В-201 Богданово | E131: Филиал ОАО "МРСК-Центра" - "Липецкэнерго" | F131: Филиал ОАО "МРСК-Центра" - "Липецкэнерго" | G131: ТП 10кВ | H131: 100,00 кВА | I131: 86 | J131: TP010-0033313 | K131: 1994-01-01 | L131: Электроснабжение
A132: с. Казаково | B132: Воловский | C132: Воловский РЭС | D132: КТП-10кВ 160 кВА №В-202 Казаково | E132: Филиал ОАО "МРСК-Центра" - "Липецкэнерго" | F132: Филиал ОАО "МРСК-Центра" - "Липецкэнерго" | G132: ТП 10кВ | H132: 160,00 кВА | I132: 147 | J132: TP010-0033317 | K132: 1994-01-01 | L132: Электроснабжение
A133: с. Казаково | B133: Воловский | C133: Воловский РЭС | D133: МТП-10кВ 100 кВА №В-203 Казаково | E133: Филиал ОАО "МРСК-Центра" - "Липецкэнерго" | F133: Филиал ОАО "МРСК-Центра" - "Липецкэнерго" | G133: ТП 10кВ | H133: 100,00 кВА | I133: 92 | J133: TP010-0033321 | K133: 2005-01-01 | L133: Электроснабжение
A134: с. Казаково | B134: Воловский | C134: Воловский РЭС | D134: КТП-10кВ 250 кВА №В-206 Казаково | E134: Филиал ОАО "МРСК-Центра" - "Липецкэнерго" | F134: Филиал ОАО "МРСК-Центра" - "Липецкэнерго" | G134: ТП 10кВ | H134: 250,00 кВА | I134: 223 | J134: TP010-0033324 | K134: 1995-01-01 | L134: Электроснабжение
A135: с. Спасское | B135: Воловский | C135: Воловский РЭС | D135: КТП-10кВ 160 кВА №В-207 Спасское | E135: Филиал ОАО "МРСК-Центра" - "Липецкэнерго" | F135: Филиал ОАО "МРСК-Центра" - "Липецкэнерго" | G135: ТП 10кВ | H135: 160,00 кВА | I135: 139 | J135: TP010-0033331 | K135: 1982-01-01 | L135: Электроснабжение
A136: д. Ефимовка | B136: Воловский | C136: Воловский РЭС | D136: КТП-10кВ 63 кВА №В-210 Ефимовка | E136: Филиал ОАО "МРСК-Центра" - "Липецкэнерго" | F136: Филиал ОАО "МРСК-Центра" - "Липецкэнерго" | G136: ТП 10кВ | H136: 63,00 кВА | I136: 52 | J136: TP010-0033363 | K136: 1982-01-01 | L136: Электроснабжение
A137: д. Ефимовка | B137: Воловский | C137: Воловский РЭС | D137: КТП-10кВ 63 кВА №В-212 Ефимовка | E137: Филиал ОАО "МРСК-Центра" - "Липецкэнерго" | F137: Филиал ОАО "МРСК-Центра" - "Липецкэнерго" | G137: ТП 10кВ | H137: 63,00 кВА | I137: 53 | J137: TP010-0033366 | K137: 1982-01-01 | L137: Электроснабжение
A138: д. Ефимовка | B138: Воловский | C138: Воловский РЭС | D138: КТП-10кВ 63 кВА №В-211 Ефимовка | E138: Филиал ОАО "МРСК-Центра" - "Липецкэнерго" | F138: Филиал ОАО "МРСК-Центра" - "Липецкэнерго" | G138: ТП 10кВ | H138: 63,00 кВА | I138: 51 | J138: TP010-0033368 | K138: 1982-01-01 | L138: Электроснабжение
A139: с. Ветчиновка | B139: Воловский | C139: Воловский РЭС | D139: КТП-10кВ 40 кВА №В-213 Ветчиновка | E139: Филиал ОАО "МРСК-Центра" - "Липецкэнерго" | F139: Филиал ОАО "МРСК-Центра" - "Липецкэнерго" | G139: ТП 10кВ | H139: 40,00 кВА | I139: 36 | J139: TP010-0033370 | K139: 1986-01-01 | L139: Электроснабжение
A140: с. Спасское | B140: Воловский | C140: Воловский РЭС | D140: КТП-10кВ 400 кВА №В-216 Спасское | E140: Филиал ОАО "МРСК-Центра" - "Липецкэнерго" | F140: Филиал ОАО "МРСК-Центра" - "Липецкэнерго" | G140: ТП 10кВ | H140: 400,00 кВА | I140: 392 | J140: TP010-0033375 | K140: 1980-01-01 | L140: Электроснабжение
A141: с. Липовец | B141: Воловский | C141: Воловский РЭС | D141: КТП-10кВ 250 кВА №В-221 Липовец | E141: Филиал ОАО "МРСК-Центра" - "Липецкэнерго" | F141: Филиал ОАО "МРСК-Центра" - "Липецкэнерго" | G141: ТП 10кВ | H141: 250,00 кВА | I141: 226 | J141: TP010-0033384 | K141: 1985-01-01 | L141: Электроснабжение
A142: с. Липовец | B142: Воловский | C142: Воловский РЭС | D142: КТП-10кВ 250 кВА №В-222 Липовец | E142: Филиал ОАО "МРСК-Центра" - "Липецкэнерго" | F142: Филиал ОАО "МРСК-Центра" - "Липецкэнерго" | G142: ТП 10кВ | H142: 250,00 кВА | I142: 233 | J142: TP010-0033388 | K142: 1972-01-01 | L142: Электроснабжение
A143: с. Кириллово | B143: Воловский | C143: Воловский РЭС | D143: КТП-10кВ 63 кВА №В-223 Кириллово | E143: Филиал ОАО "МРСК-Центра" - "Липецкэнерго" | F143: Филиал ОАО "МРСК-Центра" - "Липецкэнерго" | G143: ТП 10кВ | H143: 63,00 кВА | I143: 30 | J143: TP010-0033398 | K143: 1965-01-01 | L143: Электроснабжение
A144: с. Кириллово | B144: Воловский | C144: Воловский РЭС | D144: КТП-10кВ 400 кВА №В-225 Кириллово | E144: Филиал ОАО "МРСК-Центра" - "Липецкэнерго" | F144: Филиал ОАО "МРСК-Центра" - "Липецкэнерго" | G144: ТП 10кВ | H144: 400,00 кВА | I144: 372 | J144: TP010-0033400 | K144: 1973-01-01 | L144: Электроснабжение
A145: Емильяновка | B145: Воловский | C145: Воловский РЭС | D145: КТП-10кВ 100 кВА №В-228 Емильяновка | E145: Филиал ОАО "МРСК-Центра" - "Липецкэнерго" | F145: Филиал ОАО "МРСК-Центра" - "Липецкэнерго" | G145: ТП 10кВ | H145: 100,00 кВА | I145: 81 | J145: TP010-0033403 | K145: 1994-01-01 | L145: Электроснабжение
A146: Липовец | B146: Воловский | C146: Воловский РЭС | D146: КТП-10кВ 40 кВА №В-229 Липовец | E146: Филиал ОАО "МРСК-Центра" - "Липецкэнерго" | F146: Филиал ОАО "МРСК-Центра" - "Липецкэнерго" | G146: ТП 10кВ | H146: 40,00 кВА | I146: 26 | J146: TP010-0033404 | K146: 1978-01-01 | L146: Электроснабжение
A147: Липовец | B147: Воловский | C147: Воловский РЭС | D147: КТП-10кВ 40 кВА №В-230 Липовец | E147: Филиал ОАО "МРСК-Центра" - "Липецкэнерго" | F147: Филиал ОАО "МРСК-Центра" - "Липецкэнерго" | G147: ТП 10кВ | H147: 40,00 кВА | I147: 31 | J147: TP010-0033407 | K147: 1978-01-01 | L147: Электроснабжение
A148: Гудалово | B148: Воловский | C148: Воловский РЭС | D148: КТП-10кВ 40 кВА №В-231 Гудалово | E148: Филиал ОАО "МРСК-Центра" - "Липецкэнерго" | F148: Филиал ОАО "МРСК-Центра" - "Липецкэнерго" | G148: ТП 10кВ | H148: 40,00 кВА | I148: 32 | J148: TP010-0033408 | K148: 1965-01-01 | L148: Электроснабжение
A149: Красный Уголок | B149: Воловский | C149: Воловский РЭС | D149: КТП-10кВ 63 кВА №В-232 Красный Уголок | E149: Филиал ОАО "МРСК-Центра" - "Липецкэнерго" | F149: Филиал ОАО "МРСК-Центра" - "Липецкэнерго" | G149: ТП 10кВ | H149: 63,00 кВА | I149: 56 | J149: TP010-0033410 | K149: 1965-01-01 | L149: Электроснабжение
A150: Заря | B150: Воловский | C150: Воловский РЭС | D150: КТП-10кВ 63 кВА №В-233 Заря | E150: Филиал ОАО "МРСК-Центра" - "Липецкэнерго" | F150: Филиал ОАО "МРСК-Центра" - "Липецкэнерго" | G150: ТП 10кВ | H150: 63,00 кВА | I150: 48 | J150: TP010-0033411 | K150: 1995-01-01 | L150: Электроснабжение
A151: Самарино | B151: Воловский | C151: Воловский РЭС | D151: КТП-10кВ 160 кВА №В-235 Самарино | E151: Филиал ОАО "МРСК-Центра" - "Липецкэнерго" | F151: Филиал ОАО "МРСК-Центра" - "Липецкэнерго" | G151: ТП 10кВ | H151: 160,00 кВА | I151: 95 | J151: TP010-0033415 | K151: 1973-01-01 | L151: Электроснабжение
A152: Самарино | B152: Воловский | C152: Воловский РЭС | D152: КТП-10кВ 100 кВА №В-236 Самарино | E152: Филиал ОАО "МРСК-Центра" - "Липецкэнерго" | F152: Филиал ОАО "МРСК-Центра" - "Липецкэнерго" | G152: ТП 10кВ | H152: 100,00 кВА | I152: 62 | J152: TP010-0033417 | K152: 1973-01-01 | L152: Электроснабжение
A153: Кириллово | B153: Воловский | C153: Воловский РЭС | D153: КТП-10кВ 250 кВА №В-237 Кириллово | E153: Филиал ОАО "МРСК-Центра" - "Липецкэнерго" | F153: Филиал ОАО "МРСК-Центра" - "Липецкэнерго" | G153: ТП 10кВ | H153: 250,00 кВА | I153: 233 | J153: TP010-0033420 | K153: 1984-01-01 | L153: Электроснабжение
A154: Кириллово | B154: Воловский | C154: Воловский РЭС | D154: КТП-10кВ 250 кВА №В-239 Кириллово | E154: Филиал ОАО "МРСК-Центра" - "Липецкэнерго" | F154: Филиал ОАО "МРСК-Центра" - "Липецкэнерго" | G154: ТП 10кВ | H154: 250,00 кВА | I154: 235 | J154: TP010-0033422 | K154: 1985-01-01 | L154: Электроснабжение
A155: Самарино | B155: Воловский | C155: Воловский РЭС | D155: КТП-10кВ 400 кВА №В-241 Самарино | E155: Филиал ОАО "МРСК-Центра" - "Липецкэнерго" | F155: Филиал ОАО "МРСК-Центра" - "Липецкэнерго" | G155: ТП 10кВ | H155: 400,00 кВА | I155: 376 | J155: TP010-0033423 | K155: 1985-01-01 | L155: Электроснабжение
A156: Нижнее Большое | B156: Воловский | C156: Воловский РЭС | D156: КТП-10кВ 250 кВА №В-242 Нижнее Большое | E156: Филиал ОАО "МРСК-Центра" - "Липецкэнерго" | F156: Филиал ОАО "МРСК-Центра" - "Липецкэнерго" | G156: ТП 10кВ | H156: 250,00 кВА | I156: 230 | J156: TP010-0033426 | K156: 1970-01-01 | L156: Электроснабжение
A157: Нижнее Большое | B157: Воловский | C157: Воловский РЭС | D157: КТП-10кВ 250 кВА №В-245 Нижнее Большое | E157: Филиал ОАО "МРСК-Центра" - "Липецкэнерго" | F157: Филиал ОАО "МРСК-Центра" - "Липецкэнерго" | G157: ТП 10кВ | H157: 250,00 кВА | I157: 216 | J157: TP010-0033428 | K157: 1985-01-01 | L157: Электроснабжение
A158: Димитрово | B158: Воловский | C158: Воловский РЭС | D158: КТП-10кВ 160 кВА №В-251 Димитрово | E158: Филиал ОАО "МРСК-Центра" - "Липецкэнерго" | F158: Филиал ОАО "МРСК-Центра" - "Липецкэнерго" | G158: ТП 10кВ | H158: 100,00 кВА | I158: 66 | J158: TP010-0033430 | K158: 1971-01-01 | L158: Электроснабжение
A159: Димитрово | B159: Воловский | C159: Воловский РЭС | D159: КТП-10кВ 160 кВА №В-252 Димитрово | E159: Филиал ОАО "МРСК-Центра" - "Липецкэнерго" | F159: Филиал ОАО "МРСК-Центра" - "Липецкэнерго" | G159: ТП 10кВ | H159: 160,00 кВА | I159: 130 | J159: TP010-0033432 | K159: 1978-01-01 | L159: Электроснабжение
A160: Димитрово | B160: Воловский | C160: Воловский РЭС | D160: КТП-10кВ 100 кВА №В-253 Димитрово | E160: Филиал ОАО "МРСК-Центра" - "Липецкэнерго" | F160: Филиал ОАО "МРСК-Центра" - "Липецкэнерго" | G160: ТП 10кВ | H160: 100,00 кВА | I160: 81 | J160: TP010-0033436 | K160: 2006-11-30 | L160: Электроснабжение
A161: Чесночное | B161: Воловский | C161: Воловский РЭС | D161: КТП-10кВ 400 кВА №В-256 Чесночное | E161: Филиал ОАО "МРСК-Центра" - "Липецкэнерго" | F161: Филиал ОАО "МРСК-Центра" - "Липецкэнерго" | G161: ТП 10кВ | H161: 400,00 кВА | I161: 333 | J161: TP010-0033441 | K161: 1970-01-01 | L161: Электроснабжение
A162: Димитрово | B162: Воловский | C162: Воловский РЭС | D162: КТП-10кВ 160 кВА №В-258 Димитрово | E162: Филиал ОАО "МРСК-Центра" - "Липецкэнерго" | F162: Филиал ОАО "МРСК-Центра" - "Липецкэнерго" | G162: ТП 10кВ | H162: 160,00 кВА | I162: 123 | J162: TP010-0033444 | K162: 1978-01-01 | L162: Электроснабжение
A163: Димитрово | B163: Воловский | C163: Воловский РЭС | D163: КТП-10кВ 160 кВА №В-259 Димитрово | E163: Филиал ОАО "МРСК-Центра" - "Липецкэнерго" | F163: Филиал ОАО "МРСК-Центра" - "Липецкэнерго" | G163: ТП 10кВ | H163: 160,00 кВА | I163: 156 | J163: TP010-0033446 | K163: 1971-01-01 | L163: Электроснабжение
A164: Большие Выселки | B164: Воловский | C164: Воловский РЭС | D164: КТП-10кВ 40 кВА №В-260 Большие Выселки | E164: Филиал ОАО "МРСК-Центра" - "Липецкэнерго" | F164: Филиал ОАО "МРСК-Центра" - "Липецкэнерго" | G164: ТП 10кВ | H164: 40,00 кВА | I164: 25 | J164: TP010-0033449 | K164: 1978-01-01 | L164: Электроснабжение
A165: Димитрово | B165: Воловский | C165: Воловский РЭС | D165: КТП-10кВ 100 кВА №В-261 Димитрово | E165: Филиал ОАО "МРСК-Центра" - "Липецкэнерго" | F165: Филиал ОАО "МРСК-Центра" - "Липецкэнерго" | G165: ТП 10кВ | H165: 100,00 кВА | I165: 84 | J165: TP010-0033466 | K165: 1979-01-01 | L165: Электроснабжение
A166: Предтечевка | B166: Воловский | C166: Воловский РЭС | D166: КТП-10кВ 160 кВА №В-263 Предтечевка | E166: Филиал ОАО "МРСК-Центра" - "Липецкэнерго" | F166: Филиал ОАО "МРСК-Центра" - "Липецкэнерго" | G166: ТП 10кВ | H166: 160,00 кВА | I166: 155 | J166: TP010-0033470 | K166: 1978-01-01 | L166: Электроснабжение
A167: Предтечевка | B167: Воловский | C167: Воловский РЭС | D167: КТП-10кВ 160 кВА №В-265 Предтечевка | E167: Филиал ОАО "МРСК-Центра" - "Липецкэнерго" | F167: Филиал ОАО "МРСК-Центра" - "Липецкэнерго" | G167: ТП 10кВ | H167: 160,00 кВА | I167: 154 | J167: TP010-0033471 | K167: 1979-01-01 | L167: Электроснабжение
A168: Чесночное | B168: Воловский | C168: Воловский РЭС | D168: КТП-10кВ 250 кВА №В-266 Чесночное | E168: Филиал ОАО "МРСК-Центра" - "Липецкэнерго" | F168: Филиал ОАО "МРСК-Центра" - "Липецкэнерго" | G168: ТП 10кВ | H168: 250,00 кВА | I168: 220 | J168: TP010-0033474 | K168: 2008-02-29 | L168: Электроснабжение
A169: Васильевка | B169: Воловский | C169: Воловский РЭС | D169: КТП-10кВ 100 кВА №В-271 Васильевка | E169: Филиал ОАО "МРСК-Центра" - "Липецкэнерго" | F169: Филиал ОАО "МРСК-Центра" - "Липецкэнерго" | G169: ТП 10кВ | H169: 100,00 кВА | I169: 93 | J169: TP010-0033475 | K169: 1970-01-01 | L169: Электроснабжение
A170: Васильевка | B170: Воловский | C170: Воловский РЭС | D170: КТП-10кВ 250 кВА №В-275 Васильевка | E170: Филиал ОАО "МРСК-Центра" - "Липецкэнерго" | F170: Филиал ОАО "МРСК-Центра" - "Липецкэнерго" | G170: ТП 10кВ | H170: 250,00 кВА | I170: 194 | J170: TP010-0033486 | K170: 1979-01-01 | L170: Электроснабжение
A171: Зеленый Луг | B171: Воловский | C171: Воловский РЭС | D171: КТП-10кВ 100 кВА №В-278 Зеленый Луг | E171: Филиал ОАО "МРСК-Центра" - "Липецкэнерго" | F171: Филиал ОАО "МРСК-Центра" - "Липецкэнерго" | G171: ТП 10кВ | H171: 63,00 кВА | I171: 35 | J171: TP010-0033489 | K171: 1995-01-01 | L171: Электроснабжение
A172: Набережное | B172: Воловский | C172: Воловский РЭС | D172: КТП-10кВ 160 кВА №В-303 Набережное | E172: Филиал ОАО "МРСК-Центра" - "Липецкэнерго" | F172: Филиал ОАО "МРСК-Центра" - "Липецкэнерго" | G172: ТП 10кВ | H172: 160,00 кВА | I172: 115 | J172: TP010-0033491 | K172: 1999-01-01 | L172: Электроснабжение
A173: Пушкино | B173: Воловский | C173: Воловский РЭС | D173: КТП-10кВ 63 кВА №В-311 Пушкино | E173: Филиал ОАО "МРСК-Центра" - "Липецкэнерго" | F173: Филиал ОАО "МРСК-Центра" - "Липецкэнерго" | G173: ТП 10кВ | H173: 63,00 кВА | I173: 51 | J173: TP010-0033494 | K173: 1987-01-01 | L173: Электроснабжение
A174: Ленина | B174: Воловский | C174: Воловский РЭС | D174: КТП-10кВ 40 кВА №В-314 Ленина | E174: Филиал ОАО "МРСК-Центра" - "Липецкэнерго" | F174: Филиал ОАО "МРСК-Центра" - "Липецкэнерго" | G174: ТП 10кВ | H174: 40,00 кВА | I174: 29 | J174: TP010-0033495 | K174: 1987-01-01 | L174: Электроснабжение
A175: Большовка | B175: Воловский | C175: Воловский РЭС | D175: КТП-10кВ 250 кВА №В-316 Большовка | E175: Филиал ОАО "МРСК-Центра" - "Липецкэнерго" | F175: Филиал ОАО "МРСК-Центра" - "Липецкэнерго" | G175: ТП 10кВ | H175: 250,00 кВА | I175: 231 | J175: TP010-0033519 | K175: 1979-01-01 | L175: Электроснабжение
A176: Большовка | B176: Воловский | C176: Воловский РЭС | D176: КТП-10кВ 160 кВА №В-317 Большовка | E176: Филиал ОАО "МРСК-Центра" - "Липецкэнерго" | F176: Филиал ОАО "МРСК-Центра" - "Липецкэнерго" | G176: ТП 10кВ | H176: 160,00 кВА | I176: 142 | J176: TP010-0033523 | K176: 1987-01-01 | L176: Электроснабжение
A177: Большовка | B177: Воловский | C177: Воловский РЭС | D177: КТП-10кВ 63 кВА №В-318 Большовка | E177: Филиал ОАО "МРСК-Центра" - "Липецкэнерго" | F177: Филиал ОАО "МРСК-Центра" - "Липецкэнерго" | G177: ТП 10кВ | H177: 63,00 кВА | I177: 55 | J177: TP010-0033524 | K177: 1987-01-01 | L177: Электроснабжение
A178: Ивановка | B178: Воловский | C178: Воловский РЭС | D178: КТП-10кВ 160 кВА №В-319 Ивановка | E178: Филиал ОАО "МРСК-Центра" - "Липецкэнерго" | F178: Филиал ОАО "МРСК-Центра" - "Липецкэнерго" | G178: ТП 10кВ | H178: 160,00 кВА | I178: 136 | J178: TP010-0033525 | K178: 1979-01-01 | L178: Электроснабжение
A179: Ивановка | B179: Воловский | C179: Воловский РЭС | D179: КТП-10кВ 160 кВА №В-320 Ивановка | E179: Филиал ОАО "МРСК-Центра" - "Липецкэнерго" | F179: Филиал ОАО "МРСК-Центра" - "Липецкэнерго" | G179: ТП 10кВ | H179: 160,00 кВА | I179: 123 | J179: TP010-0033526 | K179: 1985-01-01 | L179: Электроснабжение
A180: Ивановка | B180: Воловский | C180: Воловский РЭС | D180: КТП-10кВ 250 кВА №В-322 Ивановка | E180: Филиал ОАО "МРСК-Центра" - "Липецкэнерго" | F180: Филиал ОАО "МРСК-Центра" - "Липецкэнерго" | G180: ТП 10кВ | H180: 250,00 кВА | I180: 223 | J180: TP010-0033536 | K180: 1987-01-01 | L180: Электроснабжение
A181: Ожога | B181: Воловский | C181: Воловский РЭС | D181: КТП-10кВ 400 кВА №В-323 Ожога | E181: Филиал ОАО "МРСК-Центра" - "Липецкэнерго" | F181: Филиал ОАО "МРСК-Центра" - "Липецкэнерго" | G181: ТП 10кВ | H181: 400,00 кВА | I181: 379 | J181: TP010-0033537 | K181: 1970-05-01 | L181: Электроснабжение
A182: Ожога | B182: Воловский | C182: Воловский РЭС | D182: КТП-10кВ 160 кВА №В-324 Ожога | E182: Филиал ОАО "МРСК-Центра" - "Липецкэнерго" | F182: Филиал ОАО "МРСК-Центра" - "Липецкэнерго" | G182: ТП 10кВ | H182: 160,00 кВА | I182: 143 | J182: TP010-0033538 | K182: 1979-01-01 | L182: Электроснабжение
A183: Володаровка | B183: Воловский | C183: Воловский РЭС | D183: КТП-10кВ 100 кВА №В-325 Володаровка | E183: Филиал ОАО "МРСК-Центра" - "Липецкэнерго" | F183: Филиал ОАО "МРСК-Центра" - "Липецкэнерго" | G183: ТП 10кВ | H183: 100,00 кВА | I183: 89 | J183: TP010-0033540 | K183: 1979-01-01 | L183: Электроснабжение
A184: Ожога | B184: Воловский | C184: Воловский РЭС | D184: КТП-10кВ 100 кВА №В-326 Ожога | E184: Филиал ОАО "МРСК-Центра" - "Липецкэнерго" | F184: Филиал ОАО "МРСК-Центра" - "Липецкэнерго" | G184: ТП 10кВ | H184: 100,00 кВА | I184: 71 | J184: TP010-0033541 | K184: 1970-01-01 | L184: Электроснабжение
A185: Ожога | B185: Воловский | C185: Воловский РЭС | D185: КТП-10кВ 160 кВА №В-327 Ожога | E185: Филиал ОАО "МРСК-Центра" - "Липецкэнерго" | F185: Филиал ОАО "МРСК-Центра" - "Липецкэнерго" | G185: ТП 10кВ | H185: 160,00 кВА | I185: 115 | J185: TP010-0033542 | K185: 1969-01-01 | L185: Электроснабжение
A186: Ожога | B186: Воловский | C186: Воловский РЭС | D186: КТП-10кВ 100 кВА №В-328 Ожога | E186: Филиал ОАО "МРСК-Центра" - "Липецкэнерго" | F186: Филиал ОАО "МРСК-Центра" - "Липецкэнерго" | G186: ТП 10кВ | H186: 100,00 кВА | I186: 100 | J186: TP010-0033543 | K186: 1985-01-01 | L186: Электроснабжение
A187: Никольское | B187: Воловский | C187: Воловский РЭС | D187: КТП-10кВ 40 кВА №В-330 Никольское | E187: Филиал ОАО "МРСК-Центра" - "Липецкэнерго" | F187: Филиал ОАО "МРСК-Центра" - "Липецкэнерго" | G187: ТП 10кВ | H187: 40,00 кВА | I187: 24 | J187: TP010-0033545 | K187: 1985-01-01 | L187: Электроснабжение
A188: Ивановка | B188: Воловский | C188: Воловский РЭС | D188: КТП-10кВ 400 кВА №В-331 Ивановка | E188: Филиал ОАО "МРСК-Центра" - "Липецкэнерго" | F188: Филиал ОАО "МРСК-Центра" - "Липецкэнерго" | G188: ТП 10кВ | H188: 400,00 кВА | I188: 372 | J188: TP010-0033603 | K188: 1987-01-01 | L188: Электроснабжение
A189: Большая Горчако | B189: Воловский | C189: Воловский РЭС | D189: КТП-10кВ 160 кВА №В-335 Большая Горчако | E189: Филиал ОАО "МРСК-Центра" - "Липецкэнерго" | F189: Филиал ОАО "МРСК-Центра" - "Липецкэнерго" | G189: ТП 10кВ | H189: 160,00 кВА | I189: 140 | J189: TP010-0033606 | K189: 1971-01-01 | L189: Электроснабжение
A190: Горчаковка | B190: Воловский | C190: Воловский РЭС | D190: КТП-10кВ 160 кВА №В-336 Горчаковка | E190: Филиал ОАО "МРСК-Центра" - "Липецкэнерго" | F190: Филиал ОАО "МРСК-Центра" - "Липецкэнерго" | G190: ТП 10кВ | H190: 160,00 кВА | I190: 135 | J190: TP010-0033611 | K190: 1970-01-01 | L190: Электроснабжение
A191: Чесночное | B191: Воловский | C191: Воловский РЭС | D191: КТП-10кВ 40 кВА №В-337 Чесночное | E191: Филиал ОАО "МРСК-Центра" - "Липецкэнерго" | F191: Филиал ОАО "МРСК-Центра" - "Липецкэнерго" | G191: ТП 10кВ | H191: 40,00 кВА | I191: 37 | J191: TP010-0033612 | K191: 1971-01-01 | L191: Электроснабжение
A192: Красный Пахарь | B192: Воловский | C192: Воловский РЭС | D192: КТП-10кВ 63 кВА №В-339 Красный Пахарь | E192: Филиал ОАО "МРСК-Центра" - "Липецкэнерго" | F192: Филиал ОАО "МРСК-Центра" - "Липецкэнерго" | G192: ТП 10кВ | H192: 63,00 кВА | I192: 60 | J192: TP010-0033616 | K192: 1990-01-01 | L192: Электроснабжение
A193: Малая Горчаковка | B193: Воловский | C193: Воловский РЭС | D193: КТП-10кВ 63 кВА №В-340 Малая Горчаковка | E193: Филиал ОАО "МРСК-Центра" - "Липецкэнерго" | F193: Филиал ОАО "МРСК-Центра" - "Липецкэнерго" | G193: ТП 10кВ | H193: 63,00 кВА | I193: 60 | J193: TP010-0033633 | K193: 1990-01-01 | L193: Электроснабжение
A194: Коломенец | B194: Воловский | C194: Воловский РЭС | D194: КТП-10кВ 63 кВА №В-348 Коломенец | E194: Филиал ОАО "МРСК-Центра" - "Липецкэнерго" | F194: Филиал ОАО "МРСК-Центра" - "Липецкэнерго" | G194: ТП 10кВ | H194: 63,00 кВА | I194: 51 | J194: TP010-0033635 | K194: 1989-01-01 | L194: Электроснабжение
A195: Никольское | B195: Воловский | C195: Воловский РЭС | D195: КТП 10кВ №В-353 100кВА Никольское | E195: Филиал ОАО "МРСК-Центра" - "Липецкэнерго" | F195: Филиал ОАО "МРСК-Центра" - "Липецкэнерго" | G195: ТП 10кВ | H195: 100,00 кВА | I195: 76 | J195: TP010-0033637 | K195: 1994-01-01 | L195: Электроснабжение
A196: Семеновка | B196: Воловский | C196: Воловский РЭС | D196: КТП-10кВ 400 кВА №В-371 Семеновка | E196: Филиал ОАО "МРСК-Центра" - "Липецкэнерго" | F196: Филиал ОАО "МРСК-Центра" - "Липецкэнерго" | G196: ТП 10кВ | H196: 400,00 кВА | I196: 345 | J196: TP010-0033639 | K196: 1985-01-01 | L196: Электроснабжение
A197: Большая Ивановка | B197: Воловский | C197: Воловский РЭС | D197: КТП-10кВ 63 кВА №В-372 Большая Ивановка | E197: Филиал ОАО "МРСК-Центра" - "Липецкэнерго" | F197: Филиал ОАО "МРСК-Центра" - "Липецкэнерго" | G197: ТП 10кВ | H197: 63,00 кВА | I197: 48 | J197: TP010-0033643 | K197: 1986-01-01 | L197: Электроснабжение
A198: Новоселки | B198: Воловский | C198: Воловский РЭС | D198: КТП-10кВ 40 кВА №В-315 Новоселки | E198: Филиал ОАО "МРСК-Центра" - "Липецкэнерго" | F198: Филиал ОАО "МРСК-Центра" - "Липецкэнерго" | G198: ТП 10кВ | H198: 40,00 кВА | I198: 35 | J198: TP010-0033646 | K198: 1985-01-01 | L198: Электроснабжение
A199: Ивановка | B199: Воловский | C199: Воловский РЭС | D199: КТП-10кВ 250 кВА №В-321 Ивановка | E199: Филиал ОАО "МРСК-Центра" - "Липецкэнерго" | F199: Филиал ОАО "МРСК-Центра" - "Липецкэнерго" | G199: ТП 10кВ | H199: 250,00 кВА | I199: 218 | J199: TP010-0033655 | K199: 1991-01-01 | L199: Электроснабжение
A200: Ивановка | B200: Воловский | C200: Воловский РЭС | D200: КТП-10кВ 100 кВА №В-329 Ивановка | E200: Филиал ОАО "МРСК-Центра" - "Липецкэнерго" | F200: Филиал ОАО "МРСК-Центра" - "Липецкэнерго" | G200: ТП 10кВ | H200: 100,00 кВА | I200: 79 | J200: TP010-0033659 | K200: 1987-01-01 | L200: Электроснабжение
... 7933 more rows

Sheet Приоритет
A1: Перечень ПС 35-110 кВ к которым возможно осуществить технологическое присоединение производителей сельскохозяйственной продукции
A2: № п/п | B2: Район субъекта РФ | C2: Наименованиеобъектацентрапитания, | D2: Наименование объекта центра питания, | E2: Установленная мощность трансформаторов | F2: Существующая нагрузка по замерам, МВА | G2: Фактический резерв мощности с учетом замеров режимного дня, МВА | H2: Приоритетная категория надежности электроснабжения при указанном резерве мощности, (не выше)
A3: 1 | B3: Елецкий | C3: Агрегатная | D3: 110/6 | E3: 16+16 | F3: 13.5 | G3: 4.15 | H3: 2
A4: 2 | B4: Елецкий | C4: Западная | D4: 110/6 | E4: 40+40 | F4: 22.91 | G4: 20.39 | H4: 2
A5: 3 | B5: Тербунский | C5: Тербунскийгончар | D5: 110/10 | E5: 25+25 | F5: 0.4 | G5: 25.85 | H5: 2
A6: 4 | B6: Елецкий | C6: Табак | D6: 110/6 | E6: 16+16 | F6: 7.29 | G6: 11.01 | H6: 2
A7: 5 | B7: Елецкий | C7: Лукошкино | D7: 110/10 | E7: 10+2,5 | F7: 0.7 | G7: 2.035 | H7: 3
A8: 6 | B8: Лебедянский | C8: Нива | D8: 110/10 | E8: 10+10 | F8: 7.31 | G8: 6.19 | H8: 3
A9: 7 | B9: Лебедянский | C9: Ольховец | D9: 110/10 | E9: 2,5+2,5 | F9: 1.23 | G9: 2.095 | H9: 3
A10: 8 | B10: Лебедянский | C10: Куймань | D10: 110/10 | E10: 2,5+2,5 | F10: 0.8 | G10: 2.625 | H10: 3
A11: 9 | B11: Краснинский | C11: Лутошкино | D11: 110/10 | E11: 2,5+2,5 | F11: 0.21 | G11: 2.625 | H11: 3
A12: 10 | B12: Лев-Толстовский | C12: Круглое | D12: 110/10 | E12: 2,5+2,5 | F12: 0.41 | G12: 2.625 | H12: 3
A13: 11 | B13: г. Липецк | C13: Юго-Западная | D13: 110/10/6 | E13: 40+40+40 | F13: 38.7 | G13: 52.42 | H13: 3
A14: 12 | B14: г. Липецк | C14: Привокзальная | D14: 110/6 | E14: 20+20+25 | F14: 41.14 | G14: 2.77 | H14: 3
A15: 13 | B15: г. Липецк | C15: Южная | D15: 110/10/6 | E15: 40+40 | F15: 34.86 | G15: 9.5 | H15: 3
A16: 14 | B16: Липецкий | C16: Ситовка | D16: 110/6 | E16: 10+10 | F16: 4.18 | G16: 7.3 | H16: 3
A17: 15 | B17: г. Липецк | C17: ЛТП | D17: 110/6 | E17: 6,3+10 | F17: 2.41 | G17: 4.205 | H17: 2
A18: 16 | B18: г. Липецк | C18: КПД | D18: 110/6 | E18: 10+16 | F18: 4.84 | G18: 5.66 | H18: 2
A19: 17 | B19: г. Липецк | C19: Октябрьская | D19: 110/10 | E19: 40+40 | F19: 23.93 | G19: 21.52 | H19: 3
A20: 18 | B20: г. Липецк | C20: Манежная | D20: 110/10 | E20: 40+40 | F20: 2.07 | G20: 39.93 | H20: 2
A21: 19 | B21: г. Липецк | C21: Университетская | D21: 110/10 | E21: 40+40 | F21: 1.17 | G21: 40.83 | H21: 2
A22: 20 | B22: г. Липецк | C22: Тепличная | D22: 110/6 | E22: 15+15 | F22: 5.77 | G22: 11.67 | H22: 2
A23: 21 | B23: г. Липецк | C23: Трубная-2 | D23: 110/6 | E23: 25+25 | F23: 4.01 | G23: 22.24 | H23: 2
A24: 22 | B24: г. Липецк | C24: ГПП-2ЛТЗ | D24: 110/6 | E24: 63+63 | F24: 13.56 | G24: 53.79 | H24: 2
A25: 23 | B25: Елецкий | C25: Авангард | D25: 35/10 | E25: 4+4 | F25: 1.9 | G25: 2.8 | H25: 3
A26: 24 | B26: Становлянский | C26: Бабарыкино | D26: 35/10 | E26: 2,5+2,5 | F26: 0.84 | G26: 2.085 | H26: 3
A27: 25 | B27: Задонский | C27: Аврора | D27: 35/10 | E27: 2,5+2,5 | F27: 0.96 | G27: 2.065 | H27: 3
A28: 26 | B28: Долгоруковский | C28: Б.Боёвка | D28: 35/10 | E28: 2,5+2,5 | F28: 0.36 | G28: 2.485 | H28: 3
A29: 27 | B29: Тербунский | C29: Борки | D29: 35/10 | E29: 2,5+2,5 | F29: 1.02 | G29: 1.605 | H29: 2
A30: 28 | B30: Елецкий | C30: Восточная | D30: 35/6 | E30: 10+16 | F30: 6.02 | G30: 5.63 | H30: 2
A31: 29 | B31: Воловский | C31: Васильевка | D31: 35/10 | E31: 2,5+2,5 | F31: 0.64 | G31: 2.085 | H31: 3
A32: 30 | B32: Елецкий | C32: Воронец | D32: 35/10 | E32: 4+4 | F32: 2.24 | G32: 1.96 | H32: 2
A33: 31 | B33: Елецкий | C33: Голиково | D33: 35/6 | E33: 1,8+1,6 | F33: 0.89 | G33: 1.59 | H33: 3
A34: 32 | B34: Воловский | C34: Гатище | D34: 35/10 | E34: 2,5+2,5 | F34: 0.38 | G34: 2.345 | H34: 3
A35: 33 | B35: Задонский | C35: Гнилуша | D35: 35/10 | E35: 6,3+6,3 | F35: 1.45 | G35: 5.365 | H35: 2
A36: 34 | B36: Долгоруковский | C36: Грызлово | D36: 35/10 | E36: 2,5+2,5 | F36: 0.89 | G36: 2.035 | H36: 3
A37: 35 | B37: Долгоруковский | C37: Жерновное | D37: 35/10 | E37: 2,5+2,5 | F37: 0.52 | G37: 2.515 | H37: 3
A38: 36 | B38: Задонский | C38: Задонск-сельск. | D38: 35/10 | E38: 3,2+4 | F38: 1.88 | G38: 1.48 | H38: 3
A39: 37 | B39: Воловский | C39: Захаровка | D39: 35/10 | E39: 2,5+2,5 | F39: 0.43 | G39: 2.325 | H39: 3
A40: 38 | B40: Елецкий | C40: Казаки | D40: 35/10 | E40: 4+4 | F40: 1.52 | G40: 2.68 | H40: 2
A41: 39 | B41: Задонский | C41: Колесово | D41: 35/10 | E41: 6,3+6,3 | F41: 2.89 | G41: 4.025 | H41: 3
A42: 40 | B42: Тербунский | C42: Князево | D42: 35/10 | E42: 2,5+2,5 | F42: 0.31 | G42: 2.315 | H42: 2
A43: 41 | B43: Становлянский | C43: Кириллово | D43: 35/10 | E43: 2,5+2,5 | F43: 0.62 | G43: 2.005 | H43: 2
A44: 42 | B44: Задонский | C44: Ксизово | D44: 35/10 | E44: 2,5+2,5 | F44: 0.2 | G44: 2.425 | H44: 2
A45: 43 | B45: Становлянский | C45: Ламское | D45: 35/10 | E45: 2,5+2,5 | F45: 1.6 | G45: 1.265 | H45: 3
A46: 44 | B46: Задонский | C46: Казачье | D46: 35/10 | E46: 2,5+2,5 | F46: 0.35 | G46: 2.275 | H46: 2
A47: 45 | B47: Измалковский | C47: Лебяжье | D47: 35/10 | E47: 2,5+1,6 | F47: 0.27 | G47: 1.41 | H47: 2
A48: 46 | B48: Долгоруковский | C48: Ломовец | D48: 35/10 | E48: 1,6+2,5 | F48: 0.38 | G48: 1.3 | H48: 2
A49: 47 | B49: Задонский | C49: Ольшанец | D49: 35/10 | E49: 2,5+4 | F49: 1.17 | G49: 1.455 | H49: 3
A50: 48 | B50: Становлянский | C50: Плоское | D50: 35/10 | E50: 4+4 | F50: 3.47 | G50: 1.53 | H50: 3
A51: 49 | B51: Долгоруковский | C51: Стегаловка | D51: 35/10 | E51: 2,5+3,2 | F51: 0.43 | G51: 2.295 | H51: 3
A52: 50 | B52: Елецкий | C52: Солидарность | D52: 35/10 | E52: 4+4 | F52: 2.21 | G52: 3.19 | H52: 3
A53: 51 | B53: Долгоруковский | C53: Тимирязево | D53: 35/10 | E53: 4+4 | F53: 1.22 | G53: 3.28 | H53: 3
A54: 52 | B54: Елецкий | C54: Талица | D54: 35/10 | E54: 2,5+2,5 | F54: 1.82 | G54: 1.005 | H54: 3
A55: 53 | B55: Тербунский | C55: II-еТербуны | D55: 35/10 | E55: 2,5+2,5 | F55: 1.26 | G55: 1.365 | H55: 2
A56: 54 | B56: Задонский | C56: ТихийДон | D56: 35/10 | E56: 4+4 | F56: 0.62 | G56: 3.71 | H56: 3
A57: 55 | B57: Елецкий | C57: Хитрово | D57: 35/10 | E57: 6,3+6,3 | F57: 1.06 | G57: 5.555 | H57: 2
A58: 56 | B58: Становлянский | C58: Чернолес | D58: 35/10 | E58: 2,5+2,5 | F58: 0.32 | G58: 2.305 | H58: 2
A59: 57 | B59: Задонский | C59: ПС№5 | D59: 35/6 | E59: 6,3+3,2 | F59: 1.37 | G59: 1.99 | H59: 3
A60: 58 | B60: Краснинский | C60: Красное | D60: 35/10 | E60: 4+4 | F60: 2.69 | G60: 2.81 | H60: 3
A61: 59 | B61: Данковский | C61: Теплое | D61: 35/10 | E61: 2,5+2,5 | F61: 1.34 | G61: 2.625 | H61: 3
A62: 60 | B62: Данковский | C62: Данков-сельская | D62: 35/10 | E62: 6,3+6,3 | F62: 4.91 | G62: 3.805 | H62: 3
A63: 61 | B63: Чаплыгинский | C63: Колыбельская | D63: 35/10 | E63: 2,5+2,5 | F63: 1.01 | G63: 1.615 | H63: 2
A64: 62 | B64: Лев-Толстовский | C64: Топки | D64: 35/10 | E64: 2,5+2,5 | F64: 0.64 | G64: 2.625 | H64: 3
A65: 63 | B65: Лебедянский | C65: Агроном | D65: 35/10 | E65: 4+6,3 | F65: 1.88 | G65: 3.32 | H65: 3
A66: 64 | B66: Лебедянский | C66: Троекурово-совхозная | D66: 35/10 | E66: 2,5+2,5 | F66: 1.7 | G66: 1.925 | H66: 3
A67: 65 | B67: Лев-Толстовский | C67: Гагарино | D67: 35/10 | E67: 1,8+1,8 | F67: 0.43 | G67: 1.89 | H67: 3
A68: 66 | B68: Краснинский | C68: Сергиевка | D68: 35/10 | E68: 2,5+2,5 | F68: 0.31 | G68: 2.625 | H68: 3
A69: 67 | B69: Краснинский | C69: Дрезгалово | D69: 35/10 | E69: 1,6+1,6 | F69: 0.72 | G69: 1.36 | H69: 3
A70: 68 | B70: Данковский | C70: Долгое | D70: 35/10 | E70: 2,5+2,5 | F70: 0.26 | G70: 2.365 | H70: 2
A71: 69 | B71: Данковский | C71: Воскресеновка | D71: 35/10 | E71: 1,6+1,6 | F71: 0.45 | G71: 1.23 | H71: 3
A72: 70 | B72: Краснинский | C72: Сапрыкино | D72: 35/10 | E72: 1,6+2,5 | F72: 0.53 | G72: 1.15 | H72: 2
A73: 71 | B73: Чаплыгинский | C73: Новополянье | D73: 35/10 | E73: 2,5+2,5 | F73: 0.48 | G73: 2.145 | H73: 2
A74: 72 | B74: Чаплыгинский | C74: Ведное | D74: 35/10 | E74: 2,5+2,5 | F74: 0.85 | G74: 2.075 | H74: 3
A75: 73 | B75: Данковский | C75: Бигильдино | D75: 35/10 | E75: 2,5+2,5 | F75: 0.82 | G75: 2.155 | H75: 3
A76: 74 | B76: Лебедянский | C76: Культура | D76: 35/10 | E76: 2,5+2,5 | F76: 0.94 | G76: 2.625 | H76: 3
A77: 75 | B77: Данковский | C77: Борятино | D77: 35/10 | E77: 2,5+2,5 | F77: 0.43 | G77: 2.625 | H77: 3
A78: 76 | B78: Лебедянский | C78: Б.Попово | D78: 35/10 | E78: 2,5+2,5 | F78: 1.46 | G78: 2.625 | H78: 3
A79: 77 | B79: Лебедянский | C79: Б.Избищи | D79: 35/10 | E79: 2,5+2,5 | F79: 1.38 | G79: 2.245 | H79: 3
A80: 78 | B80: Данковский | C80: Полибино | D80: 35/10 | E80: 2,5+2,5 | F80: 0.29 | G80: 2.335 | H80: 2
A81: 79 | B81: Краснинский | C81: Дубрава | D81: 35/10 | E81: 2,5+2,5 | F81: 0.21 | G81: 2.415 | H81: 2
A82: 80 | B82: Данковский | C82: Хрущево | D82: 35/10 | E82: 2,5+2,5 | F82: 0.49 | G82: 2.135 | H82: 2
A83: 81 | B83: Лебедянский | C83: Б.Верх | D83: 35/10 | E83: 2,5+2,5 | F83: 0.5 | G83: 2.125 | H83: 2
A84: 82 | B84: Лев-Толстовский | C84: Головинщино | D84: 35/10 | E84: 2,5+2,5 | F84: 0.8 | G84: 1.825 | H84: 2
A85: 83 | B85: Краснинский | C85: Яблонево | D85: 35/10 | E85: 2,5+2,5 | F85: 0.84 | G85: 1.785 | H85: 2
A86: 84 | B86: Данковский | C86: Политово | D86: 35/10 | E86: 2,5+2,5 | F86: 0.87 | G86: 1.755 | H86: 2
A87: 85 | B87: Лев-Толстовский | C87: Комплекс | D87: 35/10 | E87: 4+4 | F87: 0.96 | G87: 4.2 | H87: 3
A88: 86 | B88: Липецкий | C88: №4 | D88: 35/6 | E88: 4+4 | F88: 4.21 | G88: 1.45 | H88: 3
A89: 87 | B89: Грязинский | C89: Грязи-город | D89: 35/6 | E89: 6,3+5,6 | F89: 3.69 | G89: 3.69 | H89: 3
A90: 88 | B90: Грязинский | C90: КняжьяБайгора | D90: 35/10 | E90: 1,6+1,6 | F90: 0.44 | G90: 1.31 | H90: 3
A91: 89 | B91: Грязинский | C91: Правда | D91: 35/10 | E91: 4+2,5 | F91: 1.12 | G91: 1.505 | H91: 3
A92: 90 | B92: Грязинский | C92: КраснаяДубрава | D92: 35/10 | E92: 2,5+2,5 | F92: 0.56 | G92: 2.295 | H92: 3
A93: 91 | B93: Грязинский | C93: Вперед | D93: 35/10 | E93: 4+4 | F93: 0.84 | G93: 3.36 | H93: 2
A94: 92 | B94: Грязинский | C94: Малей | D94: 35/10 | E94: 4+2,5 | F94: 0.68 | G94: 2.145 | H94: 3
A95: 93 | B95: Грязинский | C95: Сошки | D95: 35/10 | E95: 4+4 | F95: 0.67 | G95: 4 | H95: 3
A96: 94 | B96: Добровский | C96: Трубетчино | D96: 35/10 | E96: 2,5+2,5 | F96: 1.57 | G96: 1.055 | H96: 2
A97: 95 | B97: Добровский | C97: Ратчино | D97: 35/10 | E97: 2,5+2,5 | F97: 1.41 | G97: 1.215 | H97: 2
A98: 96 | B98: Добровский | C98: Каликино | D98: 35/10 | E98: 3,2+3,2 | F98: 1.75 | G98: 1.61 | H98: 2
A99: 97 | B99: Липецкий | C99: Грязное | D99: 35/10 | E99: 4+4 | F99: 1.44 | G99: 2.76 | H99: 2
A100: 98 | B100: Липецкий | C100: ЧастаяДубрава | D100: 35/10 | E100: 4+4 | F100: 1.87 | G100: 3.88 | H100: 3
A101: 99 | B101: Липецкий | C101: Вешаловка | D101: 35/6 | E101: 2,5+2,5 | F101: 0.79 | G101: 1.835 | H101: 2
A102: 100 | B102: Липецкий | C102: Пружинки | D102: 35/10 | E102: 2,5+2,5 | F102: 0.74 | G102: 1.885 | H102: 2
A103: 101 | B103: Липецкий | C103: Стебаево | D103: 35/10 | E103: 2,5+2,5 | F103: 0.82 | G103: 2.155 | H103: 3
A104: 102 | B104: Липецкий | C104: Хлебопродукты | D104: 35/10 | E104: 6,3+6,3 | F104: 4.79 | G104: 2.575 | H104: 3
A105: 103 | B105: Липецкий | C105: Сенцово | D105: 35/10 | E105: 10+10 | F105: 6.26 | G105: 4.5 | H105: 2
A106: 104 | B106: Липецкий | C106: Мясокомбинат | D106: 35/10 | E106: 6,3+6,3 | F106: 4.35 | G106: 4.02 | H106: 3
A107: 105 | B107: Липецкий | C107: Птицефабрика | D107: 35/6 | E107: 4+4 | F107: 1.43 | G107: 2.77 | H107: 2
A108: 106 | B108: Липецкий | C108: Водозабор | D108: 35/6 | E108: 10+10 | F108: 0.91 | G108: 9.59 | H108: 2
A109: 107 | B109: Добринский | C109: Петровская | D109: 35/10 | E109: 2,5+4 | F109: 0.62 | G109: 2.235 | H109: 3
A110: 108 | B110: Добринский | C110: Лебедянка | D110: 35/10 | E110: 2,5+2,5 | F110: 0.68 | G110: 1.945 | H110: 2
A111: 109 | B111: Добринский | C111: Новочеркутино | D111: 35/10 | E111: 4+4 | F111: 1.03 | G111: 3.37 | H111: 3
A112: 110 | B112: Добринский | C112: Ивановка | D112: 35/10 | E112: 2,5+2,5 | F112: 1.02 | G112: 1.735 | H112: 3
A113: 111 | B113: Усманский | C113: Поддубровка | D113: 35/10 | E113: 2,5+2,5 | F113: 1.45 | G113: 1.975 | H113: 3
A114: 112 | B114: Добринский | C114: Плавица | D114: 35/10 | E114: 1,6+1,6 | F114: 0.72 | G114: 1.12 | H114: 3
A115: 113 | B115: Добринский | C115: Паршиновка | D115: 35/10 | E115: 1,6+2,5 | F115: 0.39 | G115: 1.29 | H115: 2
A116: 114 | B116: Добринский | C116: ТалицкийЧамлык | D116: 35/10 | E116: 3,2+4 | F116: 1.48 | G116: 2.46 | H116: 3
A117: 115 | B117: Добринский | C117: Демшинка | D117: 35/10 | E117: 2,5+2,5 | F117: 0.46 | G117: 2.165 | H117: 2
A118: 116 | B118: Усманский | C118: Березняговка | D118: 35/10 | E118: 1,6+1,6 | F118: 1.17 | G118: 1.15 | H118: 3
A119: 117 | B119: Усманский | C119: Дмитриевка | D119: 35/10 | E119: 2,5+2,5 | F119: 0.73 | G119: 2.055 | H119: 3
A120: 118 | B120: Усманский | C120: Пашково | D120: 35/10 | E120: 2,5+2,5 | F120: 1.4 | G120: 2.155 | H120: 3
A121: 119 | B121: Усманский | C121: Бочиновка | D121: 35/10 | E121: 4+4 | F121: 2.76 | G121: 2.08 | H121: 3
A122: 120 | B122: Усманский | C122: Федоровка | D122: 35/10 | E122: 2,5+2,5 | F122: 0.37 | G122: 2.635 | H122: 3
A123: 121 | B123: Усманский | C123: Куликово | D123: 35/10 | E123: 2,5+2,5 | F123: 0.46 | G123: 2.475 | H123: 3
A124: 122 | B124: Хлевенский | C124: Дмитряшевка | D124: 35/10 | E124: 2,5+2,5 | F124: 0.36 | G124: 2.265 | H124: 2
A125: 123 | B125: Хлевенский | C125: Речная | D125: 35/10 | E125: 4+4 | F125: 1.18 | G125: 3.02 | H125: 2
A126: 124 | B126: Хлевенский | C126: Негачевка | D126: 35/10 | E126: 2,5+2,5 | F126: 0.66 | G126: 1.965 | H126: 2
A127: 125 | B127: Грязинский | C127: Карамышево | D127: 35/10 | E127: 10+10 | F127: 0.88 | G127: 9.62 | H127: 2
A128: 126 | B128: Липецкий | C128: Тюшевка | D128: 35/10 | E128: 4+4 | F128: 1.08 | G128: 3.12 | H128: 2
A129: 127 | B129: Грязинский | C129: Сселки | D129: 35/10 | E129: 10+10 | F129: 2.44 | G129: 8.06 | H129: 2
A130: 128 | B130: Долгоруковский | C130: Долгоруково | D130: 110/35/10 | E130: 6,3+10 | F130: 8.51 | G130: 1.605 | H130: 3
A131: 129 | B131: Воловский | C131: Волово | D131: 110/35/10 | E131: 10+10 | F131: 3.15 | G131: 7.85 | H131: 3
A132: 130 | B132: Измалковский | C132: Измалково | D132: 110/35/10 | E132: 10+10 | F132: 6.46 | G132: 5.34 | H132: 3
A133: 131 | B133: Задонский | C133: Гороховская | D133: 110/35/10 | E133: 16+16 | F133: 13.89 | G133: 5.01 | H133: 3
A134: 132 | B134: Задонский | C134: Донская | D134: 110/35/10 | E134: 10+10 | F134: 4.94 | G134: 7.1 | H134: 3
A135: 133 | B135: Лебедянский | C135: Лебедянь | D135: 110/35/10 | E135: 16+16 | F135: 15.87 | G135: 13.45 | H135: 3
A136: 134 | B136: Чаплыгинский | C136: Чаплыгин-новая | D136: 110/35/10 | E136: 16+16 | F136: 10.41 | G136: 9.56 | H136: 3
A137: 135 | B137: Чаплыгинский | C137: Компрессорная | D137: 110/35/10 | E137: 16+16 | F137: 6.5 | G137: 14.3 | H137: 3
A138: 136 | B138: Краснинский | C138: Россия | D138: 110/35/10 | E138: 16+16 | F138: 6.12 | G138: 16.11 | H138: 3
A139: 137 | B139: Данковский | C139: Березовка | D139: 110/35/10 | E139: 16+10 | F139: 2.64 | G139: 9.91 | H139: 3
A140: 138 | B140: Лев-Толстовский | C140: Астапово | D140: 110/35/10 | E140: 16+16 | F140: 12.32 | G140: 16.04 | H140: 3
A141: 139 | B141: Данковский | C141: Химическая | D141: 110/35/10 | E141: 16+16 | F141: 8.94 | G141: 14.44 | H141: 3
A142: 140 | B142: г. Липецк | C142: Бугор | D142: 110/35/6 | E142: 63+63 | F142: 22.96 | G142: 42.19 | H142: 3
A143: 141 | B143: г. Липецк | C143: Цементная | D143: 110/35/6 | E143: 40+32+63 | F143: 37.83 | G143: 29.44 | H143: 3
A144: 142 | B144: Грязинский | C144: Т-1,Т-2Гидрооборудование | D144: 110/10/6 | E144: 25+25 | F144: 6.82 | G144: 9.935 | H144: 3
A145: 143 | B145: Усманский | C145: Усмань | D145: 110/35/10 | E145: 16+16 | F145: 14.19 | G145: 6.81 | H145: 3
A146: 144 | B146: Усманский | C146: Аксай | D146: 110/35/10 | E146: 10+10 | F146: 3.14 | G146: 8.15 | H146: 3
A147: 145 | B147: Усманский | C147: Никольская | D147: 110/35/10 | E147: 6,3+6,3 | F147: 5.35 | G147: 3.015 | H147: 3
A148: 146 | B148: Добринский | C148: Добринка | D148: 110/35/10 | E148: 16+10 | F148: 10.35 | G148: 2.65 | H148: 3
A149: 147 | B149: Добринский | C149: ВерхняяМатренка | D149: 110/35/10 | E149: 6,3+6,3 | F149: 2.24 | G149: 5.175 | H149: 3
A150: 148 | B150: Грязинский | C150: Казинка | D150: 110/35/10 | E150: 16+16 | F150: 18.21 | G150: 4.95 | H150: 3
A151: 149 | B151: Добровский | C151: Доброе | D151: 110/35/10 | E151: 16+16 | F151: 11.91 | G151: 7.89 | H151: 3
A152: 150 | B152: Липецкий | C152: Вербилово | D152: 110/35/6 | E152: 10+6,3 | F152: 3.53 | G152: 3.89 | H152: 3
A153: 151 | B153: Хлевенский | C153: Хлевное | D153: 110/35/10 | E153: 16+16 | F153: 13.87 | G153: 5.43 | H153: 3
A154: 152 | B154: Воловский | C154: Набережное | D154: 110/35/10 | E154: 6,3+10 | F154: 3.31 | G154: 4.51 | H154: 3
A155: 153 | B155: Чаплыгинский | C155: Троекурово | D155: 110/35/10 | E155: 10+6,3 | F155: 1.67 | G155: 6.62 | H155: 3
